{"text_format":"1","workbook":"xlsx","n_sheets":7,"sheets":["JPK","Sprzedaż","Zakupy","VAT-7","VAT-ZD","UPO","A"],"not_rendered":{"charts":0,"images":39,"macros":1,"external_links":0,"defined_names":36,"comments":0,"pivot_tables":0},"unopened":[],"bounds":{"document_bytes":16777216,"sheet_cells":100000,"rows_first":2000,"rows_last":500,"rows_between":2000,"halvings":0,"cell_chars":16384,"cell_head_chars":4096},"cells_cut":0,"cells_raw":0,"read":"whole","date_system":"1900"}

{"sheet":"JPK","index":0,"n_rows":249,"n_cols":36,"rows_kept":249,"cut":false,"hidden":false,"merged":[[7,2,7,11],[7,12,7,20],[7,21,7,23],[0,0,0,12],[0,13,0,24],[1,1,1,24],[2,1,2,24],[3,2,3,23],[4,2,4,23],[5,2,5,23],[6,2,6,11],[6,12,6,13],[6,14,6,20],[6,21,6,23],[8,2,8,4],[8,6,8,23],[13,2,13,3],[13,4,13,9],[13,10,13,16],[13,17,13,19],[13,20,13,23],[9,2,9,23],[10,2,10,23],[11,2,12,3],[11,4,11,9],[11,10,11,16],[11,17,11,23],[12,4,12,9],[12,10,12,16],[12,17,12,23],[25,3,25,23],[14,2,14,23],[15,3,15,23],[16,3,16,23],[17,3,17,23],[18,3,18,23],[19,2,19,23],[20,2,20,23],[21,2,21,23],[22,3,22,23],[23,3,23,23],[24,3,24,23],[26,2,26,23],[27,2,27,23],[28,3,28,23],[29,3,29,23],[30,3,30,12],[30,13,30,23],[31,3,31,6],[31,7,31,12],[31,13,31,19],[31,20,31,23],[32,3,32,6],[32,7,32,12],[32,13,32,19],[32,20,32,23],[92,1,92,24],[33,2,33,23],[34,2,34,23],[35,3,35,9],[35,10,35,23],[36,3,36,9],[36,10,36,23],[37,2,37,23],[55,2,55,18],[55,19,55,22],[64,1,64,24],[90,1,90,24]]}
["Uruchamianie przycisków i opcji (q) wymaga włączenia makro",null,null,null,null,null,null,null,null,null,null,null,null,"Instrukcja",null,null,null,null,null,null,null,null,null,null,null,null,null,null,1,"POLSKA","PL","DOLNOŚLĄSKIE",1,"LpSprzedazy",1,"LpZakupu"]
[null,null,null,null,null,null,null,null,null,null,null,null,null,null,null,null,null,null,null,null,null,null,null,null,null,null,null,null,null,"AFGANISTAN","AF","KUJAWSKO-POMORSKIE",2,"NrKontrahenta",2,"NrDostawcy"]
[null,null,null,null,null,null,null,null,null,null,null,null,null,null,null,null,null,null,null,null,null,null,null,null,null,null,null,null,null,"ALAND ISLANDS","AX","LUBELSKIE",3,"NazwaKontrahenta",3,"NazwaDostawcy"]
[null,null,"  POLA JASNE WYPEŁNIA PODATNIK, WYPEŁNIĆ KOMPUTEROWO DUŻYMI LITERAMI",null,null,null,null,null,null,null,null,null,null,null,null,null,null,null,null,null,null,null,null,null,null,null,null,null,null,"ALBANIA","AL","LUBUSKIE",4,"AdresKontrahenta",4,"AdresDostawcy"]
[null,null,"                 Składanie JPK wyłącznie w wersji elektronicznej",null,null,null,null,null,null,null,null,null,null,null,null,null,null,null,null,null,null,null,null,null,null,null,null,null,null,"ALGIERIA","DZ","ŁÓDZKIE",5,"DowodSprzedazy",5,"DowodZakupu"]
[null,null,null,null,null,null,null,null,null,null,null,null,null,null,null,null,null,null,null,null,null,null,null,null,null,null,null,null,null,"ANDORA","AD","MAŁOPOLSKIE",6,"DataWystawienia",6,"DataZakupu"]
[null,null," 1. Numer Identyfikacji Podatkowej",null,null,null,null,null,null,null,null,null," 2. Nr dokumentu",null,null,null,null,null,null,null,null," 3. Status",null,null,null,null,null,null,null,"ANGOLA","AO","MAZOWIECKIE",7,"DataSprzedazy",7,"DataWplywu"]
[null,null,1111111111,null,null,null,null,null,null,null,null,null,null,null,null,null,null,null,null,null,null,null,null,null,null,null,null,null,null,"ANGUILLA","AI","OPOLSKIE",8,"K_10",8,"K_43"]
[null,null,"  JPK_VAT(3)",null,null,null,"WERSJA DEMONSTRACYJNA",null,null,null,null,null,null,null,null,null,null,null,null,null,null,null,null,null,null,null,null,null,null,"ANTARKTYDA","AQ","PODKARPACKIE",9,"K_11",9,"K_44"]
[null,null,"JEDNOLITY PLIK KONTROLNY\nDLA EWIDENCJI ZAKUPU I SPRZEDAŻY VAT",null,null,null,null,null,null,null,null,null,null,null,null,null,null,null,null,null,null,null,null,null,null,null,null,null,null,"ANTIGUA I BARBUDA","AG","PODLASKIE",10,"K_12",10,"K_45"]
[null,null,"                                                   za okres",null,null,null,null,null,null,null,null,null,null,null,null,null,null,null,null,null,null,null,null,null,null,null,null,null,null,"ANTYLE HOLENDERSKIE","AN","POMORSKIE",11,"K_13",11,"K_46"]
[null,null,null,null," 4. Od (dzień - miesiąc - rok)",null,null,null,null,null," 5. Do (dzień - miesiąc - rok)",null,null,null,null,null,null,null,null,null,null,null,null,null,null,null,null,null,null,"ARABIA SAUDYJSKA","SA","ŚLĄSKIE",12,"K_14",12,"K_47"]
[null,null,null,null,1012019,null,null,null,null,null,31012019,null,null,null,null,null,null,null,null,null,null,null,null,null,null,null,null,null,null,"ARGENTYNA","AR","ŚWIĘTOKRZYSKIE",13,"K_15",13,"K_48"]
[null,null,null,null,null,null,null,null,null,null,null,null,null,null,null,null,null,null,null,null,null,null,null,null,null,null,null,null,null,"ARMENIA","AM","WARMIŃSKO-MAZURSKIE",14,"K_16",14,"K_49"]
[null,null," A. MIEJSCE I CEL SKŁADANIA JPK",null,null,null,null,null,null,null,null,null,null,null,null,null,null,null,null,null,null,null,null,null,null,null,null,null,null,"ARUBA","AW","WIELKOPOLSKIE",15,"K_17",15,"K_50"]
[null,null,null," 6. Miejsce składania informacji JPK",null,null,null,null,null,null,null,null,null,null,null,null,null,null,null,null,null,null,null,null,null,null,null,null,null,"AUSTRALIA","AU","ZACHODNIOPOMORSKIE",16,"K_18"]
[null,null,null,"MINISTERSTWO FINANSÓW",null,null,null,null,null,null,null,null,null,null,null,null,null,null,null,null,null,null,null,null,null,null,null,null,null,"AUSTRIA","AT",null,17,"K_19"]
[null,null,null," 7. Cel złożenia  (0 - złożenie po raz pierwszy, od 1 - kolejny numer złożonej korekty):",null,null,null,null,null,null,null,null,null,null,null,null,null,null,null,null,null,null,null,null,null,null,null,null,null,"AZERBEJDŻAN","AZ",null,18,"K_20"]
[null,null,null,0,null,null,null,null,null,null,null,null,null,null,null,null,null,null,null,null,null,null,null,null,null,null,null,null,null,"BAHAMY","BS",null,19,"K_21"]
[null,null,null,null,null,null,null,null,null,null,null,null,null,null,null,null,null,null,null,null,null,null,null,null,null,null,null,null,null,"BAHRAJN","BH",null,20,"K_22"]
[null,null," B. DANE PODATNIKA",null,null,null,null,null,null,null,null,null,null,null,null,null,null,null,null,null,null,null,null,null,null,null,null,null,null,"BANGLADESZ","BD",null,21,"K_23"]
[null,null," B.1. DANE IDENTYFIKACYJNE",null,null,null,null,null,null,null,null,null,null,null,null,null,null,null,null,null,null,null,null,null,null,null,null,null,null,"BARBADOS","BB",null,22,"K_24"]
[null,null,null," 8. Nazwa pełna",null,null,null,null,null,null,null,null,null,null,null,null,null,null,null,null,null,null,null,null,null,null,null,null,null,"BELGIA","BE",null,23,"K_25"]
[null,null,null,"NOWAK JÓZEF",null,null,null,null,null,null,null,null,null,null,null,null,null,null,null,null,null,null,null,null,null,null,null,null,null,"BELIZE","BZ",null,24,"K_26"]
[null,null,null," 9. Adres e-mail (nieobowiązkowy)",null,null,null,null,null,null,null,null,null,null,null,null,null,null,null,null,null,null,null,null,null,null,null,null,null,"BENIN","BJ",null,25,"K_27"]
[null,null,null,null,null,null,null,null,null,null,null,null,null,null,null,null,null,null,null,null,null,null,null,null,null,null,null,null,null,"BERMUDY","BM",null,26,"K_28"]
[null,null,null,null,null,null,null,null,null,null,null,null,null,null,null,null,null,null,null,null,null,null,null,null,null,null,null,null,null,"BHUTAN","BT",null,27,"K_29"]
[null,null," C. EWIDENCJA ZAKUPÓW I SPRZEDAŻY VAT",null,null,null,null,null,null,null,null,null,null,null,null,null,null,null,null,null,null,null,null,null,null,null,null,null,null,"BIAŁORUŚ","BY",null,28,"K_30"]
[null,null,null," 10. Nazwa systemu, z którego pochodzą dane",null,null,null,null,null,null,null,null,null,null,null,null,null,null,null,null,null,null,null,null,null,null,null,null,null,"BOLIWIA","BO",null,29,"K_31"]
[null,null,null,"EXCEL",null,null,null,null,null,null,null,null,null,null,null,null,null,null,null,null,null,null,null,null,null,null,null,null,null,"BOŚNIA I HERCEGOWINA","BA",null,30,"K_32"]
[null,null,null,"Ewidencja sprzedaży VAT",null,null,null,null,null,null,null,null,null,"Ewidencja zakupów VAT",null,null,null,null,null,null,null,null,null,null,null,null,null,null,null,"BOTSWANA","BW",null,31,"K_33"]
[null,null,null," 11. Liczba wierszy sprzedaży:",null,null,null,{"$f":"COUNTA(Sprzedaż!A4:A1048576)","v":9},null,null,null,null,null," 13. Liczba wierszy zakupów:",null,null,null,null,null,null,{"$f":"COUNTA(Zakupy!A4:A1048576)","v":6},null,null,null,null,null,null,null,null,"BRAZYLIA","BR",null,32,"K_34"]
[null,null,null," 12. Podatek należny:",null,null,null,{"$f":"SUM(Sprzedaż!N2,Sprzedaż!P2,Sprzedaż!R2,Sprzedaż!V2,Sprzedaż!X2,Sprzedaż!Z2,Sprzedaż!AB2,Sprzedaż!AE2,Sprzedaż!AG2:AI2)-SUM(Sprzedaż!AJ2:AK2)","v":411.44},null,null,null,null,null," 14. Podatek naliczony:",null,null,null,null,null,null,{"$f":"SUM(Zakupy!I2,Zakupy!K2:O2)","v":111.76},null,null,null,null,null,null,null,null,"BRUNEI DARUSSALAM","BN",null,33,"K_35"]
[null,null,null,null,null,null,null,null,null,null,null,null,null,null,null,null,null,null,null,null,null,null,null,null,null,null,null,null,null,"BRYTYJSKIE TERYTORIUM OCEANU INDYJSKIEGO","IO",null,34,"K_36"]
[null,null," D. DATA SPORZĄDZENIA JPK",null,null,null,null,null,null,null,null,null,null,null,null,null,null,null,null,null,null,null,null,null,null,null,null,null,null,"BUŁGARIA","BG",null,35,"K_37"]
[null,null,null," 15. Data wytworzenia JPK (dzień - miesiąc - rok)",null,null,null,null,null,null," 16. Uwagi własne (niewysyłane)",null,null,null,null,null,null,null,null,null,null,null,null,null,null,null,null,null,null,"BURKINA FASO","BF",null,36,"K_38"]
[null,null,null,"2019-02-24T15:43:05",null,null,null,null,null,null,null,null,null,null,null,null,null,null,null,null,null,null,null,null,null,null,null,null,null,"BURUNDI","BI",null,37,"K_39"]
[null,null,null,null,null,null,null,null,null,null,null,null,null,null,null,null,null,null,null,null,null,null,null,null,null,null,null,null,null,"CEUTA","XC"]
[null,null,null,null,null,null,null,null,null,null,null,null,null,null,null,null,null,null,null,null,null,null,null,null,null,null,null,null,null,"CHILE","CL"]
[null,null,null,null,null,null,null,null,null,null,null,null,null,null,null,null,null,null,null,null,null,null,null,null,null,null,null,null,null,"CHINY","CN"]
[null,null,null,null,null,null,null,null,null,null,null,null,null,null,null,null,null,null,null,null,null,null,null,null,null,null,null,null,null,"CHORWACJA","HR"]
[null,null,null,null,null,null,null,null,null,null,null,null,null,null,null,null,null,null,null,null,null,null,null,null,null,null,null,null,null,"CYPR","CY"]
[null,null,null,null,null,null,null,null,null,null,null,null,null,null,null,null,null,null,null,null,null,null,null,null,null,null,null,null,null,"CZAD","TD"]
[null,null,null,null,null,null,null,null,null,null,null,null,null,null,null,null,null,null,null,null,null,null,null,null,null,null,null,null,null,"CZARNOGÓRA","ME"]
[null,null,null,null,null,null,null,null,null,null,null,null,null,null,null,null,null,null,null,null,null,null,null,null,null,null,null,null,null,"DANIA","DK"]
[null,null,null,null,null,null,null,null,null,null,null,null,null,null,null,null,null,null,null,null,null,null,null,null,null,null,null,null,null,"DOMINIKA","DM"]
[null,null,null,null,null,null,null,null,null,null,null,null,null,null,null,null,null,null,null,null,null,null,null,null,null,null,null,null,null,"DOMINIKANA","DO"]
[null,null,null,null,null,null,null,null,null,null,null,null,null,null,null,null,null,null,null,null,null,null,null,null,null,null,null,null,null,"DŻIBUTI","DJ"]
[null,null,null,null,null,null,null,null,null,null,null,null,null,null,null,null,null,null,null,null,null,null,null,null,null,null,null,null,null,"EGIPT","EG"]
[null,null,null,null,null,null,null,null,null,null,null,null,null,null,null,null,null,null,null,null,null,null,null,null,null,null,null,null,null,"EKWADOR","EC"]
[null,null,null,null,null,null,null,null,null,null,null,null,null,null,null,null,null,null,null,null,null,null,null,null,null,null,null,null,null,"ERYTREA","ER"]
[null,null,null,null,null,null,null,null,null,null,null,null,null,null,null,null,null,null,null,null,null,null,null,null,null,null,null,null,null,"ESTONIA","EE"]
[null,null,null,null,null,null,null,null,null,null,null,null,null,null,null,null,null,null,null,null,null,null,null,null,null,null,null,null,null,"ETIOPIA","ET"]
[null,null,null,null,null,null,null,null,null,null,null,null,null,null,null,null,null,null,null,null,null,null,null,null,null,null,null,null,null,"FALKLANDY","FK"]
[null,null,null,null,null,null,null,null,null,null,null,null,null,null,null,null,null,null,null,null,null,null,null,null,null,null,null,null,null,"FIDŻI REPUBLIKA","FJ"]
[null,null,null,null,null,null,null,null,null,null,null,null,null,null,null,null,null,null,null,"JPK_VAT(3)",null,null,null,"1/1",null,null,null,null,null,"FILIPINY","PH"]
[null,null,null,null,null,null,null,null,null,null,null,null,null,null,null,null,null,null,null,null,null,null,null,null,null,null,null,null,null,"FINLANDIA","FI"]
[null,null,null,null,null,null,null,null,null,null,null,null,null,null,null,null,null,null,null,null,null,null,null,null,null,null,null,null,null,"FRANCJA","FR"]
[null,null,null,null,null,null,null,null,null,null,null,null,null,null,null,null,null,null,null,null,null,null,null,null,null,null,null,null,null,"FRANCUSKIE TERYTORIUM POŁUDNIOWE","TF"]
[null,null,null,null,null,null,null,null,null,null,null,null,null,null,null,null,null,null,null,null,null,null,null,null,null,null,null,null,null,"GABON","GA"]
[null,"INSTRUKCJA",null,null,null,null,null,null,null,null,null,null,null,null,null,null,null,null,null,null,null,null,null,null,null,null,null,null,null,"GAMBIA","GM"]
[null,"Arkusz zapisuje dane do pliku XML zgodnym z schematem Ministerstwa Finansów.",null,null,null,null,null,null,null,null,null,null,null,null,null,null,null,null,null,null,null,null,null,null,null,null,null,null,null,"GHANA","GH"]
[null,"Plik JPK w formacie xml zapisywany jest w tym samym folderze, w którym znajduje się ten arkusz Excela.",null,null,null,null,null,null,null,null,null,null,null,null,null,null,null,null,null,null,null,null,null,null,null,null,null,null,null,"GIBRALTAR","GI"]
[null,"Plik JPK można wysłać internetem przy użyciu programu Ministerstwa Finansów o nazwie:",null,null,null,null,null,null,null,null,null,null,null,null,null,null,null,null,null,null,null,null,null,null,null,null,null,null,null,"GRECJA","GR"]
[null,"Aplikacja MF do wysyłania plików Klient JPK 2.0",null,null,null,null,null,null,null,null,null,null,null,null,null,null,null,null,null,null,null,null,null,null,null,null,null,null,null,"GRENADA","GD"]
[null,"lub przy pomocy innych dostępnych aplikacji obsługujących wysyłkę plików JPK.",null,null,null,null,null,null,null,null,null,null,null,null,null,null,null,null,null,null,null,null,null,null,null,null,null,null,null,"GRENLANDIA","GL"]
[null,"Kliknięcie przycisku 'Zapisz JPK do pliku' w pierwszej  kolejności uruchamia procedurę sprawdzania poprawności danych",null,null,null,null,null,null,null,null,null,null,null,null,null,null,null,null,null,null,null,null,null,null,null,null,null,null,null,"GRUZJA","GE"]
[null,"a następnie zapisuje te dane do pliku JPK w formacie XML.",null,null,null,null,null,null,null,null,null,null,null,null,null,null,null,null,null,null,null,null,null,null,null,null,null,null,null,"GUAM","GU"]
[null,"Sprawdzenie poprawności danych uruchamia też przycisk 'Sprawdź' w arkuszu i naprawia formatowanie komórek.",null,null,null,null,null,null,null,null,null,null,null,null,null,null,null,null,null,null,null,null,null,null,null,null,null,null,null,"GUERNSEY","GG"]
[null,null,null,null,null,null,null,null,null,null,null,null,null,null,null,null,null,null,null,null,null,null,null,null,null,null,null,null,null,"GUJANA","GY"]
[null,"Procedura sprawdzania poprawności danych:",null,null,null,null,null,null,null,null,null,null,null,null,null,null,null,null,null,null,null,null,null,null,null,null,null,null,null,"GUJANA FRANCUSKA","GF"]
[null,"-  automatycznie uzupełnia narastająco kolumnę 'Lp',",null,null,null,null,null,null,null,null,null,null,null,null,null,null,null,null,null,null,null,null,null,null,null,null,null,null,null,"GWADELUPA","GP"]
[null,"-  zamienia separatory daty typu '.' (kropka) i '/' na '-',",null,null,null,null,null,null,null,null,null,null,null,null,null,null,null,null,null,null,null,null,null,null,null,null,null,null,null,"GWATEMALA","GT"]
[null,"-  zamienia separator liczb dziesiętnych typu '.' (kropka) na ',' (przecinek),",null,null,null,null,null,null,null,null,null,null,null,null,null,null,null,null,null,null,null,null,null,null,null,null,null,null,null,"GWINEA","GN"]
[null,"-  sprawdza, czy wypełnione są wszystkie pola obowiązkowe,",null,null,null,null,null,null,null,null,null,null,null,null,null,null,null,null,null,null,null,null,null,null,null,null,null,null,null,"GWINEA RÓWNIKOWA","GQ"]
[null,"-  sprawdza poprawność dat i kwot.",null,null,null,null,null,null,null,null,null,null,null,null,null,null,null,null,null,null,null,null,null,null,null,null,null,null,null,"GWINEA-BISSAU","GW"]
[null,"-  sprawdza poprawność utworzonego pliku XLM ze schematem XSD ze strony Ministerstwa Finansów.",null,null,null,null,null,null,null,null,null,null,null,null,null,null,null,null,null,null,null,null,null,null,null,null,null,null,null,"HAITI","HT"]
[null,null,null,null,null,null,null,null,null,null,null,null,null,null,null,null,null,null,null,null,null,null,null,null,null,null,null,null,null,"HISZPANIA","ES"]
[null,"Dane do arkusza można zaimportować z pliku xml zawierającego dane JPK przyciskiem 'Import pliku JPK'.",null,null,null,null,null,null,null,null,null,null,null,null,null,null,null,null,null,null,null,null,null,null,null,null,null,null,null,"HONDURAS","HN"]
[null,"Import umożliwia analizę danych przez filtrowanie. Import kilku plików dokonuje scalenia danych w kolejności ich otwierania.",null,null,null,null,null,null,null,null,null,null,null,null,null,null,null,null,null,null,null,null,null,null,null,null,null,null,null,"HONGKONG","HK"]
[null,"Warunkiem importu z kilku plików XML jest ten sam kod systemowy JPK z tego samego okresu Od Do.",null,null,null,null,null,null,null,null,null,null,null,null,null,null,null,null,null,null,null,null,null,null,null,null,null,null,null,"INDIE","IN"]
[null,null,null,null,null,null,null,null,null,null,null,null,null,null,null,null,null,null,null,null,null,null,null,null,null,null,null,null,null,"INDONEZJA","ID"]
[null,"Dane wprowadza się do arkuszy za pomocą przycisku 'Importuj z pliku csv,txt,xls,xml,dbf,ods'.",null,null,null,null,null,null,null,null,null,null,null,null,null,null,null,null,null,null,null,null,null,null,null,null,null,null,null,"IRAK","IQ"]
[null,"Do arkusza można zaimportować dane z kilku plików csv, txt, xls(xlsx) xml, dbf i ods które zostaną kolejno dodane.",null,null,null,null,null,null,null,null,null,null,null,null,null,null,null,null,null,null,null,null,null,null,null,null,null,null,null,"IRAN","IR"]
[null,"Jeżeli pliki zawierają dane w kolumnach oznaczonych nagłówkami, które wymienione są w trzecim wierszu",null,null,null,null,null,null,null,null,null,null,null,null,null,null,null,null,null,null,null,null,null,null,null,null,null,null,null,"IRLANDIA","IE"]
[null,"arkusza JPK to dane przeniesione zostaną automatycznie (nazwy nagłówków określono w schematach XSD).",null,null,null,null,null,null,null,null,null,null,null,null,null,null,null,null,null,null,null,null,null,null,null,null,null,null,null,"ISLANDIA","IS"]
[null,"Z pliku csv, txt, xls, xml, dbf i ods który nie posiada ww. nagłówków dane zostaną przeniesione następująco:",null,null,null,null,null,null,null,null,null,null,null,null,null,null,null,null,null,null,null,null,null,null,null,null,null,null,null,"IZRAEL","IL"]
[null,"- plik csv, txt, xml, dbf, ods zostanie otwarty jako arkusz, tak jak plik typu xls",null,null,null,null,null,null,null,null,null,null,null,null,null,null,null,null,null,null,null,null,null,null,null,null,null,null,null,"JAMAJKA","JM"]
[null,"- należy w otwartym arkuszu zaznaczyć pierwszą od lewej komórkę z danymi i nacisnąć klawisz funkcyjny F5",null,null,null,null,null,null,null,null,null,null,null,null,null,null,null,null,null,null,null,null,null,null,null,null,null,null,null,"JAPONIA","JP"]
[null,"Aby dane zostały przeniesione poprawnie plik musi zawierać taką samą liczbę kolumn z danymi jak arkusz JPK.",null,null,null,null,null,null,null,null,null,null,null,null,null,null,null,null,null,null,null,null,null,null,null,null,null,null,null,"JEMEN","YE"]
[null,null,null,null,null,null,null,null,null,null,null,null,null,null,null,null,null,null,null,null,null,null,null,null,null,null,null,null,null,"JERSEY","JE"]
[null,null,null,null,null,null,null,null,null,null,null,null,null,null,null,null,null,null,null,null,null,null,null,null,null,null,null,null,null,"JORDANIA","JO"]
[null,"Licencja programu \"Arkusze JPK\" opracowanego przez serwis \"Formularze podatkowe w Excelu\"",null,null,null,null,null,null,null,null,null,null,null,null,null,null,null,null,null,null,null,null,null,null,null,null,null,null,null,"KAJMANY","KY"]
[null,"§ 1 Udziela się licencjobiorcy niewyłącznej licencji na używanie programu na jednym komputerze przez okres",null,null,null,null,null,null,null,null,null,null,null,null,null,null,null,null,null,null,null,null,null,null,null,null,null,null,null,"KAMBODŻA","KH"]
[null,"      1 miesiąca od jego pobrania.",null,null,null,null,null,null,null,null,null,null,null,null,null,null,null,null,null,null,null,null,null,null,null,null,null,null,null,"KAMERUN","CM"]
[null,"§ 2 Licencja nie obejmuje prawa do rozpowszechniania, rozprowadzania i wypożyczania programu.",null,null,null,null,null,null,null,null,null,null,null,null,null,null,null,null,null,null,null,null,null,null,null,null,null,null,null,"KANADA","CA"]
[null,"§ 3 Licencjodawca nie bierze odpowiedzialności bezpośrednio lub pośrednio, za wybór Produktu przez Licencjobiorcę, oraz",null,null,null,null,null,null,null,null,null,null,null,null,null,null,null,null,null,null,null,null,null,null,null,null,null,null,null,"KATAR","QA"]
[null,"     za prawidłowość jego wykorzystania w każdym pojedynczym przypadku. Zalecamy skorzystanie z profesjonalnej pomocy",null,null,null,null,null,null,null,null,null,null,null,null,null,null,null,null,null,null,null,null,null,null,null,null,null,null,null,"KAZACHSTAN","KZ"]
[null,"     prawnej we wszystkich przypadkach związanych z zawieraniem umów i innych czynnościach cywilno - prawnych.",null,null,null,null,null,null,null,null,null,null,null,null,null,null,null,null,null,null,null,null,null,null,null,null,null,null,null,"KENIA","KE"]
[null,null,null,null,null,null,null,null,null,null,null,null,null,null,null,null,null,null,null,null,null,null,null,null,null,null,null,null,null,"KIRGISTAN","KG"]
[null,null,null,null,null,null,null,null,null,null,null,null,null,null,null,null,null,null,null,null,null,null,null,null,null,null,null,null,null,"KIRIBATI","KI"]
[null,null,null,null,null,null,null,null,null,null,null,null,null,null,null,null,null,null,null,null,null,null,null,null,null,null,null,null,null,"KOLUMBIA","CO"]
[null,null,null,null,null,null,null,null,null,null,null,null,null,null,null,null,null,null,null,null,null,null,null,null,null,null,null,null,null,"KOMORY","KM"]
[null,null,null,null,null,null,null,null,null,null,null,null,null,null,null,null,null,null,null,null,null,null,null,null,null,null,null,null,null,"KONGO","CG"]
[null,null,null,null,null,null,null,null,null,null,null,null,null,null,null,null,null,null,null,null,null,null,null,null,null,null,null,null,null,"KONGO, REPUBLIKA DEMOKRATYCZNA","CD"]
[null,null,null,null,null,null,null,null,null,null,null,null,null,null,null,null,null,null,null,null,null,null,null,null,null,null,null,null,null,"KOREAŃ\u0083SKA REPUBLIKA LUDOWO-DEMOKRATYCZNA","KP"]
[null,null,null,null,null,null,null,null,null,null,null,null,null,null,null,null,null,null,null,null,null,null,null,null,null,null,null,null,null,"KOSOWO","XK"]
[null,null,null,null,null,null,null,null,null,null,null,null,null,null,null,null,null,null,null,null,null,null,null,null,null,null,null,null,null,"KOSTARYKA","CR"]
[null,null,null,null,null,null,null,null,null,null,null,null,null,null,null,null,null,null,null,null,null,null,null,null,null,null,null,null,null,"KUBA","CU"]
[null,null,null,null,null,null,null,null,null,null,null,null,null,null,null,null,null,null,null,null,null,null,null,null,null,null,null,null,null,"KUWEJT","KW"]
[null,null,null,null,null,null,null,null,null,null,null,null,null,null,null,null,null,null,null,null,null,null,null,null,null,null,null,null,null,"LAOS","LA"]
[null,null,null,null,null,null,null,null,null,null,null,null,null,null,null,null,null,null,null,null,null,null,null,null,null,null,null,null,null,"LESOTHO","LS"]
[null,null,null,null,null,null,null,null,null,null,null,null,null,null,null,null,null,null,null,null,null,null,null,null,null,null,null,null,null,"LIBAN","LB"]
[null,null,null,null,null,null,null,null,null,null,null,null,null,null,null,null,null,null,null,null,null,null,null,null,null,null,null,null,null,"LIBERIA","LR"]
[null,null,null,null,null,null,null,null,null,null,null,null,null,null,null,null,null,null,null,null,null,null,null,null,null,null,null,null,null,"LIBIA","LY"]
[null,null,null,null,null,null,null,null,null,null,null,null,null,null,null,null,null,null,null,null,null,null,null,null,null,null,null,null,null,"LIECHTENSTEIN","LI"]
[null,null,null,null,null,null,null,null,null,null,null,null,null,null,null,null,null,null,null,null,null,null,null,null,null,null,null,null,null,"LITWA","LT"]
[null,null,null,null,null,null,null,null,null,null,null,null,null,null,null,null,null,null,null,null,null,null,null,null,null,null,null,null,null,"ŁOTWA","LV"]
[null,null,null,null,null,null,null,null,null,null,null,null,null,null,null,null,null,null,null,null,null,null,null,null,null,null,null,null,null,"LUKSEMBURG","LU"]
[null,null,null,null,null,null,null,null,null,null,null,null,null,null,null,null,null,null,null,null,null,null,null,null,null,null,null,null,null,"MACEDONIA","MK"]
[null,null,null,null,null,null,null,null,null,null,null,null,null,null,null,null,null,null,null,null,null,null,null,null,null,null,null,null,null,"MADAGASKAR","MG"]
[null,null,null,null,null,null,null,null,null,null,null,null,null,null,null,null,null,null,null,null,null,null,null,null,null,null,null,null,null,"MAJOTTA","YT"]
[null,null,null,null,null,null,null,null,null,null,null,null,null,null,null,null,null,null,null,null,null,null,null,null,null,null,null,null,null,"MAKAU","MO"]
[null,null,null,null,null,null,null,null,null,null,null,null,null,null,null,null,null,null,null,null,null,null,null,null,null,null,null,null,null,"MALAWI","MW"]
[null,null,null,null,null,null,null,null,null,null,null,null,null,null,null,null,null,null,null,null,null,null,null,null,null,null,null,null,null,"MALEDIWY","MV"]
[null,null,null,null,null,null,null,null,null,null,null,null,null,null,null,null,null,null,null,null,null,null,null,null,null,null,null,null,null,"MALEZJA","MY"]
[null,null,null,null,null,null,null,null,null,null,null,null,null,null,null,null,null,null,null,null,null,null,null,null,null,null,null,null,null,"MALI","ML"]
[null,null,null,null,null,null,null,null,null,null,null,null,null,null,null,null,null,null,null,null,null,null,null,null,null,null,null,null,null,"MALTA","MT"]
[null,null,null,null,null,null,null,null,null,null,null,null,null,null,null,null,null,null,null,null,null,null,null,null,null,null,null,null,null,"MARIANY PÓŁNOCNE","MP"]
[null,null,null,null,null,null,null,null,null,null,null,null,null,null,null,null,null,null,null,null,null,null,null,null,null,null,null,null,null,"MAROKO","MA"]
[null,null,null,null,null,null,null,null,null,null,null,null,null,null,null,null,null,null,null,null,null,null,null,null,null,null,null,null,null,"MARTYNIKA","MQ"]
[null,null,null,null,null,null,null,null,null,null,null,null,null,null,null,null,null,null,null,null,null,null,null,null,null,null,null,null,null,"MAURETANIA","MR"]
[null,null,null,null,null,null,null,null,null,null,null,null,null,null,null,null,null,null,null,null,null,null,null,null,null,null,null,null,null,"MAURITIUS","MU"]
[null,null,null,null,null,null,null,null,null,null,null,null,null,null,null,null,null,null,null,null,null,null,null,null,null,null,null,null,null,"MEKSYK","MX"]
[null,null,null,null,null,null,null,null,null,null,null,null,null,null,null,null,null,null,null,null,null,null,null,null,null,null,null,null,null,"MELILLA","XL"]
[null,null,null,null,null,null,null,null,null,null,null,null,null,null,null,null,null,null,null,null,null,null,null,null,null,null,null,null,null,"MIKRONEZJA","FM"]
[null,null,null,null,null,null,null,null,null,null,null,null,null,null,null,null,null,null,null,null,null,null,null,null,null,null,null,null,null,"MINOR","UM"]
[null,null,null,null,null,null,null,null,null,null,null,null,null,null,null,null,null,null,null,null,null,null,null,null,null,null,null,null,null,"MOŁDOWA","MD"]
[null,null,null,null,null,null,null,null,null,null,null,null,null,null,null,null,null,null,null,null,null,null,null,null,null,null,null,null,null,"MONAKO","MC"]
[null,null,null,null,null,null,null,null,null,null,null,null,null,null,null,null,null,null,null,null,null,null,null,null,null,null,null,null,null,"MONGOLIA","MN"]
[null,null,null,null,null,null,null,null,null,null,null,null,null,null,null,null,null,null,null,null,null,null,null,null,null,null,null,null,null,"MONTSERRAT","MS"]
[null,null,null,null,null,null,null,null,null,null,null,null,null,null,null,null,null,null,null,null,null,null,null,null,null,null,null,null,null,"MOZAMBIK","MZ"]
[null,null,null,null,null,null,null,null,null,null,null,null,null,null,null,null,null,null,null,null,null,null,null,null,null,null,null,null,null,"MYANMAR (BURMA)","MM"]
[null,null,null,null,null,null,null,null,null,null,null,null,null,null,null,null,null,null,null,null,null,null,null,null,null,null,null,null,null,"NAMIBIA","NA"]
[null,null,null,null,null,null,null,null,null,null,null,null,null,null,null,null,null,null,null,null,null,null,null,null,null,null,null,null,null,"NAURU","NR"]
[null,null,null,null,null,null,null,null,null,null,null,null,null,null,null,null,null,null,null,null,null,null,null,null,null,null,null,null,null,"NEPAL","NP"]
[null,null,null,null,null,null,null,null,null,null,null,null,null,null,null,null,null,null,null,null,null,null,null,null,null,null,null,null,null,"NIDERLANDY (HOLANDIA)","NL"]
[null,null,null,null,null,null,null,null,null,null,null,null,null,null,null,null,null,null,null,null,null,null,null,null,null,null,null,null,null,"NIEMCY","DE"]
[null,null,null,null,null,null,null,null,null,null,null,null,null,null,null,null,null,null,null,null,null,null,null,null,null,null,null,null,null,"NIGER","NE"]
[null,null,null,null,null,null,null,null,null,null,null,null,null,null,null,null,null,null,null,null,null,null,null,null,null,null,null,null,null,"NIGERIA","NG"]
[null,null,null,null,null,null,null,null,null,null,null,null,null,null,null,null,null,null,null,null,null,null,null,null,null,null,null,null,null,"NIKARAGUA","NI"]
[null,null,null,null,null,null,null,null,null,null,null,null,null,null,null,null,null,null,null,null,null,null,null,null,null,null,null,null,null,"NIUE","NU"]
[null,null,null,null,null,null,null,null,null,null,null,null,null,null,null,null,null,null,null,null,null,null,null,null,null,null,null,null,null,"NORFOLK","NF"]
[null,null,null,null,null,null,null,null,null,null,null,null,null,null,null,null,null,null,null,null,null,null,null,null,null,null,null,null,null,"NORWEGIA","NO"]
[null,null,null,null,null,null,null,null,null,null,null,null,null,null,null,null,null,null,null,null,null,null,null,null,null,null,null,null,null,"NOWA KALEDONIA","NC"]
[null,null,null,null,null,null,null,null,null,null,null,null,null,null,null,null,null,null,null,null,null,null,null,null,null,null,null,null,null,"NOWA ZELANDIA","NZ"]
[null,null,null,null,null,null,null,null,null,null,null,null,null,null,null,null,null,null,null,null,null,null,null,null,null,null,null,null,null,"OKUPOWANE TERYTORIUM PALESTYNY","PS"]
[null,null,null,null,null,null,null,null,null,null,null,null,null,null,null,null,null,null,null,null,null,null,null,null,null,null,null,null,null,"OMAN","OM"]
[null,null,null,null,null,null,null,null,null,null,null,null,null,null,null,null,null,null,null,null,null,null,null,null,null,null,null,null,null,"PAKISTAN","PK"]
[null,null,null,null,null,null,null,null,null,null,null,null,null,null,null,null,null,null,null,null,null,null,null,null,null,null,null,null,null,"PALAU","PW"]
[null,null,null,null,null,null,null,null,null,null,null,null,null,null,null,null,null,null,null,null,null,null,null,null,null,null,null,null,null,"PANAMA","PA"]
[null,null,null,null,null,null,null,null,null,null,null,null,null,null,null,null,null,null,null,null,null,null,null,null,null,null,null,null,null,"PAPUA NOWA GWINEA","PG"]
[null,null,null,null,null,null,null,null,null,null,null,null,null,null,null,null,null,null,null,null,null,null,null,null,null,null,null,null,null,"PARAGWAJ","PY"]
[null,null,null,null,null,null,null,null,null,null,null,null,null,null,null,null,null,null,null,null,null,null,null,null,null,null,null,null,null,"PERU","PE"]
[null,null,null,null,null,null,null,null,null,null,null,null,null,null,null,null,null,null,null,null,null,null,null,null,null,null,null,null,null,"PITCAIRN","PN"]
[null,null,null,null,null,null,null,null,null,null,null,null,null,null,null,null,null,null,null,null,null,null,null,null,null,null,null,null,null,"POLINEZJA FRANCUSKA","PF"]
[null,null,null,null,null,null,null,null,null,null,null,null,null,null,null,null,null,null,null,null,null,null,null,null,null,null,null,null,null,"POŁUDNIOWA GEORGIA I POŁUD.WYSPY SANDWICH","GS"]
[null,null,null,null,null,null,null,null,null,null,null,null,null,null,null,null,null,null,null,null,null,null,null,null,null,null,null,null,null,"PORTUGALIA","PT"]
[null,null,null,null,null,null,null,null,null,null,null,null,null,null,null,null,null,null,null,null,null,null,null,null,null,null,null,null,null,"PORTORYKO","PR"]
[null,null,null,null,null,null,null,null,null,null,null,null,null,null,null,null,null,null,null,null,null,null,null,null,null,null,null,null,null,"REP.ŚRODKOWOAFRYKAŃ\u0083SKA","CF"]
[null,null,null,null,null,null,null,null,null,null,null,null,null,null,null,null,null,null,null,null,null,null,null,null,null,null,null,null,null,"REPUBLIKA CZESKA","CZ"]
[null,null,null,null,null,null,null,null,null,null,null,null,null,null,null,null,null,null,null,null,null,null,null,null,null,null,null,null,null,"REPUBLIKA KOREI","KR"]
[null,null,null,null,null,null,null,null,null,null,null,null,null,null,null,null,null,null,null,null,null,null,null,null,null,null,null,null,null,"REPUBLIKA POŁUDNIOWEJ AFRYKI","ZA"]
[null,null,null,null,null,null,null,null,null,null,null,null,null,null,null,null,null,null,null,null,null,null,null,null,null,null,null,null,null,"REUNION","RE"]
[null,null,null,null,null,null,null,null,null,null,null,null,null,null,null,null,null,null,null,null,null,null,null,null,null,null,null,null,null,"ROSJA","RU"]
[null,null,null,null,null,null,null,null,null,null,null,null,null,null,null,null,null,null,null,null,null,null,null,null,null,null,null,null,null,"RUMUNIA","RO"]
[null,null,null,null,null,null,null,null,null,null,null,null,null,null,null,null,null,null,null,null,null,null,null,null,null,null,null,null,null,"RWANDA","RW"]
[null,null,null,null,null,null,null,null,null,null,null,null,null,null,null,null,null,null,null,null,null,null,null,null,null,null,null,null,null,"SAHARA ZACHODNIA","EH"]
[null,null,null,null,null,null,null,null,null,null,null,null,null,null,null,null,null,null,null,null,null,null,null,null,null,null,null,null,null,"SAINT BARTHELEMY","BL"]
[null,null,null,null,null,null,null,null,null,null,null,null,null,null,null,null,null,null,null,null,null,null,null,null,null,null,null,null,null,"SAINT KITTS I NEVIS","KN"]
[null,null,null,null,null,null,null,null,null,null,null,null,null,null,null,null,null,null,null,null,null,null,null,null,null,null,null,null,null,"SAINT LUCIA","LC"]
[null,null,null,null,null,null,null,null,null,null,null,null,null,null,null,null,null,null,null,null,null,null,null,null,null,null,null,null,null,"SAINT MARTIN","MF"]
[null,null,null,null,null,null,null,null,null,null,null,null,null,null,null,null,null,null,null,null,null,null,null,null,null,null,null,null,null,"SAINT VINCENT I GRENADYNY","VC"]
[null,null,null,null,null,null,null,null,null,null,null,null,null,null,null,null,null,null,null,null,null,null,null,null,null,null,null,null,null,"SALWADOR","SV"]
[null,null,null,null,null,null,null,null,null,null,null,null,null,null,null,null,null,null,null,null,null,null,null,null,null,null,null,null,null,"SAMOA","WS"]
[null,null,null,null,null,null,null,null,null,null,null,null,null,null,null,null,null,null,null,null,null,null,null,null,null,null,null,null,null,"SAMOA AMERYKAŃ\u0083SKIE","AS"]
[null,null,null,null,null,null,null,null,null,null,null,null,null,null,null,null,null,null,null,null,null,null,null,null,null,null,null,null,null,"SAN MARINO","SM"]
[null,null,null,null,null,null,null,null,null,null,null,null,null,null,null,null,null,null,null,null,null,null,null,null,null,null,null,null,null,"SENEGAL","SN"]
[null,null,null,null,null,null,null,null,null,null,null,null,null,null,null,null,null,null,null,null,null,null,null,null,null,null,null,null,null,"SERBIA","RS"]
[null,null,null,null,null,null,null,null,null,null,null,null,null,null,null,null,null,null,null,null,null,null,null,null,null,null,null,null,null,"SESZELE","SC"]
[null,null,null,null,null,null,null,null,null,null,null,null,null,null,null,null,null,null,null,null,null,null,null,null,null,null,null,null,null,"SIERRA LEONE","SL"]
[null,null,null,null,null,null,null,null,null,null,null,null,null,null,null,null,null,null,null,null,null,null,null,null,null,null,null,null,null,"SINGAPUR","SG"]
[null,null,null,null,null,null,null,null,null,null,null,null,null,null,null,null,null,null,null,null,null,null,null,null,null,null,null,null,null,"SŁOWACJA","SK"]
[null,null,null,null,null,null,null,null,null,null,null,null,null,null,null,null,null,null,null,null,null,null,null,null,null,null,null,null,null,"SŁOWENIA","SI"]
[null,null,null,null,null,null,null,null,null,null,null,null,null,null,null,null,null,null,null,null,null,null,null,null,null,null,null,null,null,"SOMALIA","SO"]
[null,null,null,null,null,null,null,null,null,null,null,null,null,null,null,null,null,null,null,null,null,null,null,null,null,null,null,null,null,"SRI LANKA","LK"]
[null,null,null,null,null,null,null,null,null,null,null,null,null,null,null,null,null,null,null,null,null,null,null,null,null,null,null,null,null,"SAINT PIERRE I MIQUELON","PM"]
[null,null,null,null,null,null,null,null,null,null,null,null,null,null,null,null,null,null,null,null,null,null,null,null,null,null,null,null,null,"STANY ZJEDNOCZONE AMERYKI","US"]
[null,null,null,null,null,null,null,null,null,null,null,null,null,null,null,null,null,null,null,null,null,null,null,null,null,null,null,null,null,"SUAZI","SZ"]
[null,null,null,null,null,null,null,null,null,null,null,null,null,null,null,null,null,null,null,null,null,null,null,null,null,null,null,null,null,"SUDAN","SD"]
[null,null,null,null,null,null,null,null,null,null,null,null,null,null,null,null,null,null,null,null,null,null,null,null,null,null,null,null,null,"SURINAM","SR"]
[null,null,null,null,null,null,null,null,null,null,null,null,null,null,null,null,null,null,null,null,null,null,null,null,null,null,null,null,null,"SVALBARD I JAN MAYEN","SJ"]
[null,null,null,null,null,null,null,null,null,null,null,null,null,null,null,null,null,null,null,null,null,null,null,null,null,null,null,null,null,"ŚWIĘTA HELENA","SH"]
[null,null,null,null,null,null,null,null,null,null,null,null,null,null,null,null,null,null,null,null,null,null,null,null,null,null,null,null,null,"SYRIA","SY"]
[null,null,null,null,null,null,null,null,null,null,null,null,null,null,null,null,null,null,null,null,null,null,null,null,null,null,null,null,null,"SZWAJCARIA","CH"]
[null,null,null,null,null,null,null,null,null,null,null,null,null,null,null,null,null,null,null,null,null,null,null,null,null,null,null,null,null,"SZWECJA","SE"]
[null,null,null,null,null,null,null,null,null,null,null,null,null,null,null,null,null,null,null,null,null,null,null,null,null,null,null,null,null,"TADŻYKISTAN","TJ"]
[null,null,null,null,null,null,null,null,null,null,null,null,null,null,null,null,null,null,null,null,null,null,null,null,null,null,null,null,null,"TAJLANDIA","TH"]
[null,null,null,null,null,null,null,null,null,null,null,null,null,null,null,null,null,null,null,null,null,null,null,null,null,null,null,null,null,"TAJWAN","TW"]
[null,null,null,null,null,null,null,null,null,null,null,null,null,null,null,null,null,null,null,null,null,null,null,null,null,null,null,null,null,"TANZANIA","TZ"]
[null,null,null,null,null,null,null,null,null,null,null,null,null,null,null,null,null,null,null,null,null,null,null,null,null,null,null,null,null,"TOGO","TG"]
[null,null,null,null,null,null,null,null,null,null,null,null,null,null,null,null,null,null,null,null,null,null,null,null,null,null,null,null,null,"TOKELAU","TK"]
[null,null,null,null,null,null,null,null,null,null,null,null,null,null,null,null,null,null,null,null,null,null,null,null,null,null,null,null,null,"TONGA","TO"]
[null,null,null,null,null,null,null,null,null,null,null,null,null,null,null,null,null,null,null,null,null,null,null,null,null,null,null,null,null,"TRYNIDAD I TOBAGO","TT"]
[null,null,null,null,null,null,null,null,null,null,null,null,null,null,null,null,null,null,null,null,null,null,null,null,null,null,null,null,null,"TUNEZJA","TN"]
[null,null,null,null,null,null,null,null,null,null,null,null,null,null,null,null,null,null,null,null,null,null,null,null,null,null,null,null,null,"TURCJA","TR"]
[null,null,null,null,null,null,null,null,null,null,null,null,null,null,null,null,null,null,null,null,null,null,null,null,null,null,null,null,null,"TURKMENISTAN","TM"]
[null,null,null,null,null,null,null,null,null,null,null,null,null,null,null,null,null,null,null,null,null,null,null,null,null,null,null,null,null,"TUVALU","TV"]
[null,null,null,null,null,null,null,null,null,null,null,null,null,null,null,null,null,null,null,null,null,null,null,null,null,null,null,null,null,"UGANDA","UG"]
[null,null,null,null,null,null,null,null,null,null,null,null,null,null,null,null,null,null,null,null,null,null,null,null,null,null,null,null,null,"UKRAINA","UA"]
[null,null,null,null,null,null,null,null,null,null,null,null,null,null,null,null,null,null,null,null,null,null,null,null,null,null,null,null,null,"URUGWAJ","UY"]
[null,null,null,null,null,null,null,null,null,null,null,null,null,null,null,null,null,null,null,null,null,null,null,null,null,null,null,null,null,"UZBEKISTAN","UZ"]
[null,null,null,null,null,null,null,null,null,null,null,null,null,null,null,null,null,null,null,null,null,null,null,null,null,null,null,null,null,"VANUATU","VU"]
[null,null,null,null,null,null,null,null,null,null,null,null,null,null,null,null,null,null,null,null,null,null,null,null,null,null,null,null,null,"WALLIS I FUTUNA","WF"]
[null,null,null,null,null,null,null,null,null,null,null,null,null,null,null,null,null,null,null,null,null,null,null,null,null,null,null,null,null,"WATYKAN","VA"]
[null,null,null,null,null,null,null,null,null,null,null,null,null,null,null,null,null,null,null,null,null,null,null,null,null,null,null,null,null,"WĘGRY","HU"]
[null,null,null,null,null,null,null,null,null,null,null,null,null,null,null,null,null,null,null,null,null,null,null,null,null,null,null,null,null,"WENEZUELA","VE"]
[null,null,null,null,null,null,null,null,null,null,null,null,null,null,null,null,null,null,null,null,null,null,null,null,null,null,null,null,null,"WIELKA BRYTANIA","GB"]
[null,null,null,null,null,null,null,null,null,null,null,null,null,null,null,null,null,null,null,null,null,null,null,null,null,null,null,null,null,"WIETNAM","VN"]
[null,null,null,null,null,null,null,null,null,null,null,null,null,null,null,null,null,null,null,null,null,null,null,null,null,null,null,null,null,"WŁOCHY","IT"]
[null,null,null,null,null,null,null,null,null,null,null,null,null,null,null,null,null,null,null,null,null,null,null,null,null,null,null,null,null,"WSCHODNI TIMOR","TL"]
[null,null,null,null,null,null,null,null,null,null,null,null,null,null,null,null,null,null,null,null,null,null,null,null,null,null,null,null,null,"WYBRZEŻE KOŚCI SŁONIOWEJ","CI"]
[null,null,null,null,null,null,null,null,null,null,null,null,null,null,null,null,null,null,null,null,null,null,null,null,null,null,null,null,null,"WYSPA BOUVETA","BV"]
[null,null,null,null,null,null,null,null,null,null,null,null,null,null,null,null,null,null,null,null,null,null,null,null,null,null,null,null,null,"WYSPA BOŻEGO NARODZENIA","CX"]
[null,null,null,null,null,null,null,null,null,null,null,null,null,null,null,null,null,null,null,null,null,null,null,null,null,null,null,null,null,"WYSPA MAN","IM"]
[null,null,null,null,null,null,null,null,null,null,null,null,null,null,null,null,null,null,null,null,null,null,null,null,null,null,null,null,null,"WYSPY COOKA","CK"]
[null,null,null,null,null,null,null,null,null,null,null,null,null,null,null,null,null,null,null,null,null,null,null,null,null,null,null,null,null,"WYSPY DZIEWICZE-USA","VI"]
[null,null,null,null,null,null,null,null,null,null,null,null,null,null,null,null,null,null,null,null,null,null,null,null,null,null,null,null,null,"WYSPY DZIEWICZE-W.B.","VG"]
[null,null,null,null,null,null,null,null,null,null,null,null,null,null,null,null,null,null,null,null,null,null,null,null,null,null,null,null,null,"WYSPY HEARD I MCDONALD","HM"]
[null,null,null,null,null,null,null,null,null,null,null,null,null,null,null,null,null,null,null,null,null,null,null,null,null,null,null,null,null,"WYSPY KOKOSOWE (KEELINGA)","CC"]
[null,null,null,null,null,null,null,null,null,null,null,null,null,null,null,null,null,null,null,null,null,null,null,null,null,null,null,null,null,"WYSPY MARSHALLA","MH"]
[null,null,null,null,null,null,null,null,null,null,null,null,null,null,null,null,null,null,null,null,null,null,null,null,null,null,null,null,null,"WYSPY OWCZE","FO"]
[null,null,null,null,null,null,null,null,null,null,null,null,null,null,null,null,null,null,null,null,null,null,null,null,null,null,null,null,null,"WYSPY SALOMONA","SB"]
[null,null,null,null,null,null,null,null,null,null,null,null,null,null,null,null,null,null,null,null,null,null,null,null,null,null,null,null,null,"WYSPY ŚWIĘTEGO TOMASZA I KSIĄŻĘCA","ST"]
[null,null,null,null,null,null,null,null,null,null,null,null,null,null,null,null,null,null,null,null,null,null,null,null,null,null,null,null,null,"WYSPY TURKS I CAICOS","TC"]
[null,null,null,null,null,null,null,null,null,null,null,null,null,null,null,null,null,null,null,null,null,null,null,null,null,null,null,null,null,"ZAMBIA","ZM"]
[null,null,null,null,null,null,null,null,null,null,null,null,null,null,null,null,null,null,null,null,null,null,null,null,null,null,null,null,null,"ZIELONY PRZYLĄDEK","CV"]
[null,null,null,null,null,null,null,null,null,null,null,null,null,null,null,null,null,null,null,null,null,null,null,null,null,null,null,null,null,"ZIMBABWE","ZW"]
[null,null,null,null,null,null,null,null,null,null,null,null,null,null,null,null,null,null,null,null,null,null,null,null,null,null,null,null,null,"ZJEDNOCZONE EMIRATY ARABSKIE","AE"]

{"sheet":"Sprzedaż","index":1,"n_rows":12,"n_cols":37,"rows_kept":12,"cut":false,"hidden":false,"merged":[]}
["Lp\nsprzedaży\n(wypełnia\nprzycisk\nSprawdź')","\nNumer\nKontrahenta","\nNazwa Kontrahenta","\nAdres Kontrahenta","\nDowód sprzedaży","\nData wystawienia","Data sprzedaży\n(szary\nciemniejszy poz\n nieobowiązkowe)","Dostawa towarów oraz świadczenie usług, na terytorium kraju, zwolnione od podatku","Dostawa towarów oraz świadczenie usług poza terytorium kraju","w tym świadczenie usług, o których mowa w art,100 ust,1 pkt 4 ustawy","Dostawa towarów oraz świadczenie usług na terytorium kraju, opodatkowane stawką 0%","w tym dostawa towarów, o której mowa w art,129 ustawy","Dostawa towarów oraz świadczenie usług na terytorium kraju, opodatkowane stawką 5%","Podatek należny 5%","Dostawa towarów oraz świadczenie usług na terytorium kraju, opodatkowane stawką 7% albo 8%","Podatek należny 7% albo 8%","Dostawa towarów oraz świadczenie usług na terytorium kraju, opodatkowane stawką 22% albo 23%","Podatek należny 22% albo 23%","Wewnątrzwspólnotowa dostawa towarów","Eksport towarów","Wewnątrzwspólnotowe nabycie towarów","Podatek należny od wewnątrzwspólnotowego nabycia towarów","Import towarów, podlegający rozliczeniu zgodnie z art,33a ustawy","Podatek należny od importu towarów","Import usług z wyłączeniem usług nabywanych od podatników podatku od wartości dodanej, do których stosuje się art, 28b ustawy","Podatek należny od importu usług","Import usług nabywanych od podatników podatku od wartości dodanej, do których stosuje się art, 28b ustawy","Podatek należny od importu usług","Dostawa towarów oraz świadczenie usług, dla których podatnikiem jest nabywca zgodnie z art,17 ust, 1 pkt 7 lub 8 ustawy (wypełnia dostawca)","Dostawa towarów, dla których podatnikiem jest nabywca zgodnie z art, 17 ust, 1 pkt 5 ustawy (wypełnia nabywca)","Podatek należny od dostawy towarów, dla których podatnikiem jest nabywca","Dostawa towarów oraz świadczenie usług, dla których podatnikiem jest nabywca zgodnie z art, 17 ust, 1 pkt 7 lub 8 ustawy (wypełnia nabywca)","Podatek należny od dostawy towarów oraz świadczenia usług","Kwota podatku należnego od towarów i usług objętych spisem z natury, o którym mowa w art,14 ust,5 ustawy","Zwrot odliczonej lub zwróconej kwoty wydatkowanej na zakup kas rejestrujących, o którym mowa w art, 111 ust, 6 ustawy","Kwota podatku należnego od wewnątrzwspólnotowego nabycia środków transportu, wykazanego w poz, 24, podlegająca wpłacie w terminie, o którym mowa w art, 103 ust, 3, w związku z ust, 4 ustawy","Kwota podatku od wewnątrzwspólnotowego nabycia paliw silnikowych, podlegająca wpłacie w terminach, o których mowa w art, 103 ust, 5a i 5b ustawy"]
[null,null,null,null,null,null,"Sumy:",{"$f":"SUM(H4:H1048576)","v":0},11,12,13,14,15,16,17,18,825.24,205.44,21,22,23,24,25,26,27,28,29,30,31,32,33,34,35,36,37,38,39]
["LpSprzedazy","NrKontrahenta","NazwaKontrahenta","AdresKontrahenta","DowodSprzedazy","DataWystawienia","DataSprzedazy","K_10","K_11","K_12","K_13","K_14","K_15","K_16","K_17","K_18","K_19","K_20","K_21","K_22","K_23","K_24","K_25","K_26","K_27","K_28","K_29","K_30","K_31","K_32","K_33","K_34","K_35","K_36","K_37","K_38","K_39"]
[1,"5252242171","KKKKKKKKKKK","AAAAAAAA","111/2017","2019-01-03","2019-01-03",null,11,12,13,14,15,16,17,18,19,20,21,22,23,24,25,26,27,28,29,30,31,32,33,34,35,36,37,38,39]
[2,"1132559331","LLLLLLLLLL","BBBBBBB","222/2017","2019-01-05","2019-01-05",null,null,null,null,null,null,null,null,null,100.78,23.18]
[3,"7272445205","MMMMMMM","CCCCCCCCCCCCC","333/2017","2019-01-07","2019-01-07",null,null,null,null,null,null,null,null,null,100.78,23.18]
[4,"1132626553","NNNNNNNNN","DDDDDDD","444/2017","2019-01-09","2019-01-09",null,null,null,null,null,null,null,null,null,100.78,23.18]
[5,"DE115235681","OOOOOOOO","EEEEEEEEEEE","555/2017","2019-01-11","2019-01-11",null,null,null,null,null,null,null,null,null,100.78,23.18]
[6,"DE12345678901","PPPPPPPPP","FFFFFF","666/2017","2019-01-13","2019-01-13",null,null,null,null,null,null,null,null,null,100.78,23.18]
[7,"7777777777","RRRRRRR","GGGGG","777/2017","2019-01-15","2019-01-15",null,null,null,null,null,null,null,null,null,100.78,23.18]
[8,"1132590192","SSSSSSS","HHHHHHHHHH","888/2017","2019-01-17","2019-01-17",null,null,null,null,null,null,null,null,null,100.78,23.18]
[9,"9999999999","TTTTTTTTT","IIIIIIIII","999/2017","2019-01-19","2019-01-19",null,null,null,null,null,null,null,null,null,100.78,23.18]

{"sheet":"Zakupy","index":2,"n_rows":9,"n_cols":15,"rows_kept":9,"cut":false,"hidden":false,"merged":[]}
["Lp\nzakupów\n(wypełnia\nprzycisk\nSprawdź')","Numer\nDostawcy","\nNazwa Dostawcy","\nAdres Dostawcy","\nDowód zakupu","\nData zakupu","Data wpływu\n(szary\nciemniejszy poz\n nieobowiązkowe)","Nabycie towarów i usług zaliczanych u podatnika do środków trwałych","Podatek naliczony od nabycia towarów i usług zaliczanych u podatnika do środków trwałych","Nabycie towarów i usług pozostałych","Podatek naliczony od nabycia towarów i usług pozostałych","Korekta podatku naliczonego od nabycia środków trwałych","Korekta podatku naliczonego od pozostałych nabyć","Korekta podatku naliczonego, o której mowa w art, 89b ust, 1 ustawy","Korekta podatku naliczonego, o której mowa w art, 89b ust, 4 ustawy"]
[null,null,null,null,null,null,"Sumy:",{"$f":"SUM(H4:H1048576)","v":1},1,481.5,110.76,0,0,0,0]
["LpZakupu","NrDostawcy","NazwaDostawcy","AdresDostawcy","DowodZakupu","DataZakupu","DataWplywu","K_43","K_44","K_45","K_46","K_47","K_48","K_49","K_50"]
[1,"5252242171","ZZZZZZ","ZZZZZZ","100/2018","2019-01-05","2019-01-05",1,1,80.25,18.46]
[2,"1132559331","YYYYYYY","YYYYYYY","200/2018","2019-01-07","2019-01-07",null,null,80.25,18.46]
[3,"7272445205","XXXXXXXXX","XXXXXXXXX","300/2018","2019-01-09","2019-01-09",null,null,80.25,18.46]
[4,"1132626553","WWWWWWWWWW","WWWWWWWWWW","400/2018","2019-01-11","2019-01-11",null,null,80.25,18.46]
[5,"1132590192","VVVVVVVVV","VVVVVVVVV","500/2018","2019-01-13","2019-01-13",null,null,80.25,18.46]
[6,"9999999999","UUUUUUUUU","UUUUUUUUU","600/2018","2019-01-15","2019-01-15",null,null,80.25,18.46]

{"sheet":"VAT-7","index":3,"n_rows":400,"n_cols":47,"rows_kept":400,"cut":false,"hidden":false,"merged":[[103,25,103,29],[119,25,120,29],[121,25,121,29],[111,25,112,29],[113,25,113,29],[114,25,115,29],[116,25,116,29],[110,25,110,29],[117,25,117,29],[118,25,118,29],[104,25,104,29],[108,25,109,29],[106,2,106,29],[107,3,107,24],[105,2,105,29],[107,25,107,29],[119,3,119,24],[120,3,120,24],[115,3,115,24],[116,3,116,24],[117,3,117,24],[118,3,118,24],[111,3,111,24],[103,3,103,24],[151,2,151,29],[146,4,146,19],[147,4,147,11],[148,4,148,29],[149,4,149,16],[150,2,150,29],[149,17,149,19],[149,20,149,29],[147,12,147,13],[147,14,147,19],[146,20,146,29],[147,20,147,22],[147,23,147,26],[147,27,147,29],[94,2,94,29],[91,18,91,24],[92,18,92,24],[93,18,93,24],[91,25,91,29],[92,25,92,29],[93,25,93,29],[100,25,100,29],[95,3,95,24],[98,3,98,24],[99,3,99,24],[63,19,64,24],[65,2,65,29],[66,2,66,25],[66,26,66,28],[33,6,33,18],[55,4,55,18],[41,4,41,18],[42,4,42,18],[52,4,52,18],[53,4,53,18],[54,4,54,18],[44,4,44,18],[45,4,45,18],[61,4,61,18],[50,25,50,29],[44,25,45,29],[49,19,49,24],[42,19,42,24],[43,19,43,24],[44,19,44,24],[45,19,45,24],[39,19,39,24],[40,19,40,24],[41,19,41,24],[1,2,1,29],[5,28,5,29],[6,28,6,29],[6,20,6,27],[23,4,23,29],[30,19,30,24],[31,19,31,24],[28,19,28,24],[5,20,5,21],[5,22,5,27],[28,25,29,29],[30,25,31,29],[11,20,11,23],[11,24,11,29],[24,4,24,29],[30,4,30,18],[31,4,31,18],[28,4,28,18],[18,2,18,29],[22,10,22,21],[20,4,20,19],[22,22,22,29],[16,21,16,29],[17,21,17,26],[203,2,203,29],[12,2,12,8],[12,9,12,29],[13,2,13,8],[13,9,13,29],[14,2,14,29],[15,2,15,29],[19,2,19,29],[20,2,20,3],[200,2,200,29],[201,2,201,29],[202,2,202,25],[202,26,202,28],[196,2,196,29],[197,2,197,29],[198,2,198,29],[199,2,199,29],[20,20,20,29],[25,2,25,29],[26,2,26,29],[27,2,27,18],[27,19,27,24],[24,2,24,3],[71,2,71,29],[46,25,47,29],[57,25,59,29],[50,4,50,18],[27,25,27,29],[29,19,29,24],[192,2,192,29],[172,2,172,29],[173,2,173,29],[174,2,174,29],[175,2,175,29],[168,2,168,29],[169,2,169,29],[170,2,170,29],[171,2,171,29],[164,2,164,29],[165,2,165,29],[166,2,166,29],[167,2,167,29],[160,2,160,29],[161,2,161,29],[162,2,162,29],[34,19,34,24],[180,2,180,29],[181,2,181,29],[182,2,182,29],[183,2,183,29],[176,2,176,29],[177,2,177,29],[178,2,178,29],[179,2,179,29],[23,2,23,3],[88,2,88,29],[86,4,86,24],[87,4,87,24],[87,25,87,29],[89,2,89,17],[89,18,89,24],[89,25,89,29],[90,3,90,17],[90,18,90,24],[90,25,90,29],[96,3,96,24],[97,25,97,29],[98,25,98,29],[99,25,99,29],[95,25,95,29],[163,2,163,29],[156,2,156,29],[194,2,194,29],[195,2,195,29],[188,2,188,29],[189,2,189,29],[190,2,190,29],[191,2,191,29],[184,2,184,29],[185,2,185,29],[186,2,186,29],[187,2,187,29],[193,2,193,29],[157,2,157,29],[158,2,158,29],[159,2,159,29],[152,22,152,29],[153,22,155,29],[154,3,154,12],[155,3,155,12],[154,13,154,21],[155,13,155,21],[152,3,152,12],[153,3,153,12],[152,13,152,21],[153,13,153,21],[144,2,144,29],[145,3,145,29],[137,2,137,29],[138,2,138,8],[138,9,138,10],[138,11,138,29],[143,2,143,29],[139,2,139,29],[141,2,141,29],[142,2,142,29],[140,1,140,30],[136,3,136,13],[136,14,136,20],[135,21,135,29],[136,21,136,26],[136,27,136,29],[129,2,129,29],[131,12,132,15],[133,12,134,15],[131,16,132,20],[133,16,134,17],[133,18,134,20],[131,21,132,26],[133,21,134,21],[133,22,134,26],[131,27,132,29],[133,27,134,27],[133,28,134,29],[135,3,135,20],[131,3,131,11],[132,3,132,11],[133,3,133,11],[134,3,134,11],[130,2,130,29],[128,25,128,29],[123,17,123,24],[124,17,124,24],[125,17,125,24],[126,17,126,24],[122,25,122,29],[123,25,123,29],[124,25,124,29],[125,25,125,29],[122,5,122,24],[123,7,126,16],[127,8,127,24],[128,8,128,24],[127,3,127,7],[128,3,128,7],[123,3,123,6],[124,3,124,6],[125,3,125,6],[126,3,126,6],[121,3,122,4],[126,25,126,29],[127,25,127,29],[121,5,121,24],[112,3,112,24],[113,3,113,24],[114,3,114,24],[109,3,109,24],[110,3,110,24],[108,3,108,24],[104,3,104,24],[86,25,86,29],[81,25,82,29],[86,2,87,3],[81,4,81,18],[82,4,82,18],[81,19,82,24],[83,2,83,29],[102,25,102,29],[100,3,100,24],[101,3,101,24],[102,3,102,24],[96,25,96,29],[97,3,97,24],[101,25,101,29],[91,3,91,17],[92,3,92,17],[93,3,93,17],[77,25,77,29],[78,25,78,29],[79,25,79,29],[72,25,72,29],[73,25,73,29],[84,2,84,29],[85,2,85,24],[85,25,85,29],[80,25,80,29],[74,25,74,29],[75,25,75,29],[78,4,78,24],[79,4,79,24],[76,4,76,24],[77,4,77,24],[80,19,80,24],[80,4,80,18],[74,4,74,24],[75,4,75,24],[76,25,76,29],[72,4,72,24],[73,4,73,24],[67,2,67,29],[69,2,69,29],[70,2,70,29],[37,19,37,24],[38,19,38,24],[58,4,58,18],[59,4,59,18],[56,4,56,18],[57,4,57,18],[37,4,37,5],[37,6,37,18],[39,4,39,18],[40,4,40,18],[62,4,62,18],[64,2,64,3],[63,25,64,29],[63,4,63,18],[64,4,64,18],[60,4,60,18],[48,25,48,29],[49,25,49,29],[49,4,49,18],[51,2,51,3],[52,2,52,3],[34,25,35,29],[32,19,32,24],[44,2,44,3],[45,2,45,3],[46,2,46,3],[47,2,47,3],[48,2,48,3],[49,2,49,3],[33,19,33,24],[32,25,33,29],[36,4,36,5],[36,6,36,18],[36,25,37,29],[35,4,35,18],[32,6,32,18],[32,2,32,3],[33,2,33,3],[34,2,34,3],[35,2,35,3],[35,19,35,24],[36,19,36,24],[46,4,46,18],[47,4,47,18],[48,4,48,18],[50,2,50,3],[50,19,50,24],[39,2,39,3],[40,2,40,3],[41,2,41,3],[42,2,42,3],[43,2,43,3],[53,2,53,3],[36,2,36,3],[37,2,37,3],[38,2,38,3],[38,4,38,18],[51,4,51,18],[43,4,43,18],[51,19,51,24],[52,19,52,24],[46,19,46,24],[47,19,47,24],[48,19,48,24],[61,25,61,29],[62,25,62,29],[56,25,56,29],[53,25,54,29],[55,25,55,29],[60,19,60,24],[61,19,61,24],[53,19,54,24],[58,19,59,24],[42,25,42,29],[0,0,0,21],[0,22,0,42],[63,2,63,3],[58,2,58,3],[59,2,59,3],[60,2,60,3],[61,2,61,3],[2,2,2,29],[62,2,62,3],[54,2,54,3],[55,2,55,3],[56,2,56,3],[57,2,57,3],[3,2,3,29],[4,2,4,29],[5,2,5,19],[6,2,6,19],[7,2,7,10],[62,19,62,24],[55,19,55,24],[56,19,56,24],[57,19,57,24],[60,25,60,29],[31,2,31,3],[9,2,10,14],[11,2,11,14],[68,1,68,30],[11,15,11,19],[28,2,28,3],[29,2,29,3],[17,2,17,3],[16,2,16,3],[9,15,9,19],[10,15,10,19],[9,20,9,23],[10,20,10,23],[9,24,10,29],[51,25,51,29],[52,25,52,29],[34,4,34,18],[17,27,17,29],[29,4,29,18],[43,25,43,29],[38,25,38,29],[39,25,39,29],[40,25,40,29],[41,25,41,29],[22,2,22,3],[21,2,21,3],[16,4,16,20],[17,4,17,20],[21,4,21,29],[22,4,22,9],[7,11,7,29],[8,2,8,14],[30,2,30,3],[8,15,8,23],[8,24,8,29]]}
["Uruchamianie przycisków i opcji (q) wymaga włączenia makro",null,null,null,null,null,null,null,null,null,null,null,null,null,null,null,null,null,null,null,null,null,"Jak wysłać deklarację podatkową internetem?",null,null,null,null,null,null,null,null,null,null,null,null,null,null,null,null,null,null,null,null,null,null,1,0]
[null,null,null,null,null,null,null,null,null,null,null,null,null,null,null,null,null,null,null,null,null,null,null,null,null,null,null,null,null,null,null,null,null,"URZĄD SKARBOWY W AUGUSTOWIE","2002",null,null,null,null,null,null,null,null,null,null,2]
[null,null,null,null,null,null,null,null,null,null,null,null,null,null,null,null,null,null,null,null,null,null,null,null,null,null,null,null,null,null,null,null,null,"URZĄD SKARBOWY W BARTOSZYCACH","2802",null,null,null,null,null,null,null,null,null,null,0]
[null,null,"          DEKLARACJA JEST SKŁADANA WYŁĄCZNIE ZA POMOCĄ ŚRODKÓW KOMUNIKACJI ELEKTRONICZNEJ         www.portalpodatkowy.mf.gov.pl",null,null,null,null,null,null,null,null,null,null,null,null,null,null,null,null,null,null,null,null,null,null,null,null,null,null,null,null,null,null,"URZĄD SKARBOWY W BEŁCHATOWIE","1002",null,null,null,null,null,null,null,null,null,null,0]
[null,null,null,null,null,null,null,null,null,null,null,null,null,null,null,null,null,null,null,null,null,null,null,null,null,null,null,null,null,null,null,null,null,"URZĄD SKARBOWY W BĘDZINIE","2402",null,null,null,null,null,null,null,null,null,null,0]
[null,null," 1. Identyfikator podatkowy NIP podatnika",null,null,null,null,null,null,null,null,null,null,null,null,null,null,null,null,null," 2. Nr dokumentu",null,"testowy",null,null,null,null,null," 3. Status",null,null,null,null,"URZĄD SKARBOWY W BIAŁEJ PODLASKIEJ","0602",null,null,null,null,null,null,null,null,null,null,0]
[null,null,1111111111,null,null,null,null,null,null,null,null,null,null,null,null,null,null,null,null,null,"1ff62314601f0cff3e10790a2b3044fb",null,null,null,null,null,null,null,200,null,null,null,null,"URZĄD SKARBOWY W BIAŁOBRZEGACH","1402",null,null,null,null,null,null,null,null,null,null,0]
[null,null,"   VAT-7",null,null,null,null,null,null,null,null," DEKLARACJA DLA PODATKU OD TOWARÓW I USŁUG",null,null,null,null,null,null,null,null,null,null,null,null,null,null,null,null,null,null,null,null,null,"URZĄD SKARBOWY W BIAŁOGARDZIE","3202",null,null,null,null,null,null,null,null,null,null,0]
[null,null,null,null,null,null,null,null,null,null,null,null,null,null,null,null,null,null,null,null,null,null,null,null,null,null,null,null,null,null,null,null,null,"PIERWSZY URZĄD SKARBOWY W BIAŁYMSTOKU","2003",null,null,null,null,null,null,null,null,null,null,0]
[null,null,"za ",null,null,null,null,null,null,null,null,null,null,null,null," 4. Miesiąc",null,null,null,null," 5. Rok",null,null,null,null,null,null,null,null,null,null,null,null,"DRUGI URZĄD SKARBOWY W BIAŁYMSTOKU","2004",null,null,null,null,null,null,null,null,null,null,0]
[null,null,null,null,null,null,null,null,null,null,null,null,null,null,null,1,null,null,null,null,2019,null,null,null,null,null,null,null,null,null,null,null,null,"URZĄD SKARBOWY W BIELSKU PODLASKIM","2005",null,null,null,null,null,null,null,null,null,null,0]
[null,null,null,null,null,null,null,null,null,null,null,null,null,null,null,null,null,null,null,null,null,null,null,null,null,null,null,null,null,null,null,null,null,"PIERWSZY URZĄD SKARBOWY W BIELSKU-BIAŁEJ","2403"]
[null,null,"   Podstawa prawna:",null,null,null,null,null,null," Art. 99 ust. 1 ustawy z dnia 11 marca 2004 r. o podatku od towarów i usług (Dz. U. z 2018 r. poz. 2174, z późn. zm.), zwanej dalej „ustawą”.",null,null,null,null,null,null,null,null,null,null,null,null,null,null,null,null,null,null,null,null,null,null,null,"DRUGI URZĄD SKARBOWY W BIELSKU-BIAŁEJ","2404"]
[null,null,"    Składający:",null,null,null,null,null,null," Podatnicy, o których mowa w art. 15 ustawy, obowiązani do składania deklaracji za okresy miesięczne zgodnie z art. 99 ust. 1 ustawy.",null,null,null,null,null,null,null,null,null,null,null,null,null,null,null,null,null,null,null,null,null,null,null,"DRUGI ŚLĄSKI URZĄD SKARBOWY W BIELSKU-BIAŁEJ","2472"]
[null,null,null,null,null,null,null,null,null,null,null,null,null,null,null,null,null,null,null,null,null,null,null,null,null,null,null,null,null,null,null,null,null,"URZĄD SKARBOWY W BIŁGORAJU","0603"]
[null,null,"  A. MIEJSCE I CEL SKŁADANIA DEKLARACJI",null,null,null,null,null,null,null,null,null,null,null,null,null,null,null,null,null,null,null,null,null,null,null,null,null,null,null,null,null,null,"URZĄD SKARBOWY W BOCHNI","1202"]
[null,null,null,null," 6. Urząd skarbowy, do którego adresowana jest deklaracja",null,null,null,null,null,null,null,null,null,null,null,null,null,null,null,null," 7. Cel złożenia formularza (zaznaczyć właściwy kwadrat):",null,null,null,null,null,null,null,null,null,null,null,"URZĄD SKARBOWY W BOLESŁAWCU","0202"]
[null,null,null,null,"URZĄD SKARBOWY W BARTOSZYCACH",null,null,null,null,null,null,null,null,null,null,null,null,null,null,null,null,"          1. złożenie deklaracji",null,null,null,null,null,"     2. korekta deklaracji 1)",null,null,null,null,{"$f":"VLOOKUP(E18,US,2,FALSE)","v":"2802"},"URZĄD SKARBOWY W BRANIEWIE","2803"]
[null,null,null,null,null,null,null,null,null,null,null,null,null,null,null,null,null,null,null,null,null,null,null,null,null,null,null,null,null,null,null,null,null,"URZĄD SKARBOWY W BRODNICY","0403"]
[null,null,"  B. DANE IDENTYFIKACYJNE PODATNIKA",null,null,null,null,null,null,null,null,null,null,null,null,null,null,null,null,null,null,null,null,null,null,null,null,null,null,null,null,null,null,"URZĄD SKARBOWY W BRZEGU","1602"]
[null,null,null,null," * - dotyczy podmiotów niebędących osobami fizycznymi",null,null,null,null,null,null,null,null,null,null,null,null,null,null,null," ** - dotyczy podmiotów będących osobami fizycznymi",null,null,null,null,null,null,null,null,null,null,null,null,"URZĄD SKARBOWY W BRZESKU","1203"]
[null,null,null,null," 8. Rodzaj podatnika (zaznaczyć właściwy kwadrat):",null,null,null,null,null,null,null,null,null,null,null,null,null,null,null,null,null,null,null,null,null,null,null,null,null,null,null,null,"URZĄD SKARBOWY W BRZEZINACH","1003"]
["NOWAK"," ",null,null,null,null,null,null,null,null," 1. podatnik niebędący osobą fizyczną",null,null,null,null,null,null,null,null,null,null,null," 2. osoba fizyczna",null,null,null,null,null,null,null,null,null,null,"URZĄD SKARBOWY W BRZOZOWIE","1802"]
["JÓZEF"," ",null,null," 9. Nazwa pełna * / Nazwisko, pierwsze imię, data urodzenia **",null,null,null,null,null,null,null,null,null,null,null,null,null,null,null,null,null,null,null,null,null,null,null,null,null,null,null,null,"URZĄD SKARBOWY W BUSKU-ZDROJU","2602"]
[1011989," ",null,null,{"$f":"A23&\" \" &A24&\" \"&IF(A25<>\"\",TEXT(A25,\"00-00-0000\"),\"\")","v":"NOWAK JÓZEF 01-01-1989"},null,null,null,null,null,null,null,null,null,null,null,null,null,null,null,null,null,null,null,null,null,null,null,null,null,null,null,null,"PIERWSZY URZĄD SKARBOWY W BYDGOSZCZY","0404",null,null,null,null,null,null,null,null,null,null,{"$f":"IF(LEN($A$25)>6,IF(LEFT(RIGHT($A$25,6),2)<\"13\",IF(VALUE(LEFT($A$25,LEN($A$25)-6))<=DAY(DATE(RIGHT($A$25,4),LEFT(RIGHT($A$25,6),2)+1,0)),TRUE,FALSE),FALSE),IF(LEN($A$25)<7,IF(LEN($A$25)=0,TRUE,FALSE),TRUE))","v":true}]
[null,null,null,null,null,null,null,null,null,null,null,null,null,null,null,null,null,null,null,null,null,null,null,null,null,null,null,null,null,null,null,null,null,"DRUGI URZĄD SKARBOWY W BYDGOSZCZY","0405"]
[null,null,"  C. ROZLICZENIE PODATKU NALEŻNEGO",null,null,null,null,null,null,null,null,null,null,null,null,null,null,null,null,null,null,null,null,null,null,null,null,null,null,null,null,null,null,"TRZECI URZĄD SKARBOWY W BYDGOSZCZY","0406"]
[null,null,null,null,null,null,null,null,null,null,null,null,null,null,null,null,null,null,null," Podstawa opodatkowania w zł",null,null,null,null,null," Podatek należny w zł",null,null,null,null,null,null,null,"KUJAWSKO-POMORSKI URZĄD SKARBOWY W BYDGOSZCZY","0471"]
[null,null,null,null," 1. Dostawa towarów oraz świadczenie usług na terytorium kraju,",null,null,null,null,null,null,null,null,null,null,null,null,null,null," 10. ",null,null,null,null,null,null,null,null,null,null,null,null,null,"URZĄD SKARBOWY W BYSTRZYCY KŁODZKIEJ","0203"]
[null,null,null,null,"     zwolnione od podatku",null,null,null,null,null,null,null,null,null,null,null,null,null,null,{"$f":"Sprzedaż!H2","v":0},null,null,null,null,null,null,null,null,null,null,null,null,null,"URZĄD SKARBOWY W BYTOMIU","2405"]
[null,null,null,null," 2. Dostawa towarów oraz świadczenie usług poza terytorium",null,null,null,null,null,null,null,null,null,null,null,null,null,null," 11. ",null,null,null,null,null,null,null,null,null,null,null,null,null,"URZĄD SKARBOWY W BYTOWIE","2202"]
[null,null,null,null,"     kraju",null,null,null,null,null,null,null,null,null,null,null,null,null,null,{"$f":"Sprzedaż!I2","v":11},null,null,null,null,null,null,null,null,null,null,null,null,null,"URZĄD SKARBOWY W CHEŁMIE","0604"]
[null,null,null,null,null,null," 2a. w tym świadczenie usług, o których mowa w art. 100",null,null,null,null,null,null,null,null,null,null,null,null," 12. ",null,null,null,null,null,null,null,null,null,null,null,null,null,"URZĄD SKARBOWY W CHEŁMNIE","0407"]
[null,null,null,null,null,null,"        ust. 1 pkt 4 ustawy",null,null,null,null,null,null,null,null,null,null,null,null,{"$f":"Sprzedaż!J2","v":12},null,null,null,null,null,null,null,null,null,null,null,null,null,"URZĄD SKARBOWY W CHODZIEŻY","3037"]
[null,null,null,null," 3. Dostawa towarów oraz świadczenie usług na terytorium kraju,",null,null,null,null,null,null,null,null,null,null,null,null,null,null," 13. ",null,null,null,null,null,null,null,null,null,null,null,null,null,"URZĄD SKARBOWY W CHOJNICACH","2203"]
[null,null,null,null,"      opodatkowane stawką 0%",null,null,null,null,null,null,null,null,null,null,null,null,null,null,{"$f":"Sprzedaż!K2","v":13},null,null,null,null,null,null,null,null,null,null,null,null,null,"URZĄD SKARBOWY W CHORZOWIE","2406"]
[null,null,null,null,null,null," 3a. w tym dostawa towarów, o której mowa w art. 129",null,null,null,null,null,null,null,null,null,null,null,null," 14. ",null,null,null,null,null,null,null,null,null,null,null,null,null,"URZĄD SKARBOWY W CHOSZCZNIE","3203"]
[null,null,null,null,null,null,"       ustawy",null,null,null,null,null,null,null,null,null,null,null,null,{"$f":"Sprzedaż!L2","v":14},null,null,null,null,null,null,null,null,null,null,null,null,null,"URZĄD SKARBOWY W CHRZANOWIE","1204"]
[null,null,null,null," 4. Dostawa towarów oraz świadczenie usług na terytorium kraju,",null,null,null,null,null,null,null,null,null,null,null,null,null,null," 15. ",null,null,null,null,null," 16. ",null,null,null,null,null,null,null,"URZĄD SKARBOWY W CIECHANOWIE","1403"]
[null,null,null,null,"      opodatkowane stawką 5%",null,null,null,null,null,null,null,null,null,null,null,null,null,null,{"$f":"Sprzedaż!M2","v":15},null,null,null,null,null,{"$f":"Sprzedaż!N2","v":16},null,null,null,null,null,null,null,"URZĄD SKARBOWY W CIESZYNIE","2407"]
[null,null,null,null," 5. Dostawa towarów oraz świadczenie usług na terytorium kraju,",null,null,null,null,null,null,null,null,null,null,null,null,null,null," 17. ",null,null,null,null,null," 18. ",null,null,null,null,null,null,null,"URZĄD SKARBOWY W CZARNKOWIE","3002"]
[null,null,null,null,"      opodatkowane stawką 7% albo 8%",null,null,null,null,null,null,null,null,null,null,null,null,null,null,{"$f":"Sprzedaż!O2","v":17},null,null,null,null,null,{"$f":"Sprzedaż!P2","v":18},null,null,null,null,null,null,null,"URZĄD SKARBOWY W CZECHOWICACH-DZIEDZICACH","2408"]
[null,null,null,null," 6. Dostawa towarów oraz świadczenie usług na terytorium kraju,",null,null,null,null,null,null,null,null,null,null,null,null,null,null," 19. ",null,null,null,null,null," 20. ",null,null,null,null,null,null,null,"PIERWSZY URZĄD SKARBOWY W CZĘSTOCHOWIE","2409"]
[null,null,null,null,"      opodatkowane stawką 22% albo 23%",null,null,null,null,null,null,null,null,null,null,null,null,null,null,{"$f":"Sprzedaż!Q2","v":825},null,null,null,null,null,{"$f":"Sprzedaż!R2","v":205},null,null,null,null,null,null,null,"DRUGI URZĄD SKARBOWY W CZĘSTOCHOWIE","2410"]
[null,null,null,null," 7. Wewnątrzwspólnotowa dostawa towarów",null,null,null,null,null,null,null,null,null,null,null,null,null,null," 21. ",null,null,null,null,null,null,null,null,null,null,null,null,null,"URZĄD SKARBOWY W CZŁUCHOWIE","2204"]
[null,null,null,null,null,null,null,null,null,null,null,null,null,null,null,null,null,null,null,{"$f":"Sprzedaż!S2","v":21},null,null,null,null,null,null,null,null,null,null,null,null,null,"URZĄD SKARBOWY W DĄBROWIE GÓRNICZEJ","2411"]
[null,null,null,null," 8. Eksport towarów",null,null,null,null,null,null,null,null,null,null,null,null,null,null," 22. ",null,null,null,null,null,null,null,null,null,null,null,null,null,"URZĄD SKARBOWY W DĄBROWIE TARNOWSKIEJ","1205"]
[null,null,null,null,null,null,null,null,null,null,null,null,null,null,null,null,null,null,null,{"$f":"Sprzedaż!T2","v":22},null,null,null,null,null,null,null,null,null,null,null,null,null,"URZĄD SKARBOWY W DĘBICY","1803"]
[null,null,null,null," 9. Wewnątrzwspólnotowe nabycie towarów",null,null,null,null,null,null,null,null,null,null,null,null,null,null," 23. ",null,null,null,null,null," 24. ",null,null,null,null,null,null,null,"URZĄD SKARBOWY W DRAWSKU POMORSKIM","3204"]
[null,null,null,null,null,null,null,null,null,null,null,null,null,null,null,null,null,null,null,{"$f":"Sprzedaż!U2","v":23},null,null,null,null,null,{"$f":"Sprzedaż!V2","v":24},null,null,null,null,null,null,null,"URZĄD SKARBOWY W DREZDENKU","0812"]
[null,null,null,null," 10. Import towarów podlegający rozliczeniu zgodnie z art. 33a",null,null,null,null,null,null,null,null,null,null,null,null,null,null," 25. ",null,null,null,null,null," 26. ",null,null,null,null,null,null,null,"URZĄD SKARBOWY W DZIAŁDOWIE","2804"]
[null,null,null,null,"       ustawy",null,null,null,null,null,null,null,null,null,null,null,null,null,null,{"$f":"Sprzedaż!W2","v":25},null,null,null,null,null,{"$f":"Sprzedaż!X2","v":26},null,null,null,null,null,null,null,"URZĄD SKARBOWY W DZIERŻONIOWIE","0204"]
[null,null,null,null," 11. Import usług z wyłączeniem usług nabywanych od",null,null,null,null,null,null,null,null,null,null,null,null,null,null," 27. ",null,null,null,null,null," 28. ",null,null,null,null,null,null,null,"URZĄD SKARBOWY W ELBLĄGU","2805"]
[null,null,null,null,"      podatników podatku od wartości dodanej, do których stosuje",null,null,null,null,null,null,null,null,null,null,null,null,null,null,{"$f":"Sprzedaż!Y2","v":27},null,null,null,null,null,{"$f":"Sprzedaż!Z2","v":28},null,null,null,null,null,null,null,"URZĄD SKARBOWY W EŁKU","2806"]
[null,null,null,null,"      się art. 28b ustawy",null,null,null,null,null,null,null,null,null,null,null,null,null,null,null,null,null,null,null,null,null,null,null,null,null,null,null,null,"URZĄD SKARBOWY W GARWOLINIE","1404"]
[null,null,null,null," 12. Import usług nabywanych od podatników podatku od",null,null,null,null,null,null,null,null,null,null,null,null,null,null," 29. ",null,null,null,null,null," 30. ",null,null,null,null,null,null,null,"PIERWSZY URZĄD SKARBOWY W GDAŃSKU","2205"]
[null,null,null,null,"       wartości dodanej, do których stosuje się art. 28b ustawy",null,null,null,null,null,null,null,null,null,null,null,null,null,null,{"$f":"Sprzedaż!AA2","v":29},null,null,null,null,null,{"$f":"Sprzedaż!AB2","v":30},null,null,null,null,null,null,null,"DRUGI URZĄD SKARBOWY W GDAŃSKU","2206"]
[null,null,null,null," 13. Dostawa towarów oraz świadczenie usług, dla których",null,null,null,null,null,null,null,null,null,null,null,null,null,null," 31. ",null,null,null,null,null,null,null,null,null,null,null,null,null,"TRZECI URZĄD SKARBOWY W GDAŃSKU","2207"]
[null,null,null,null,"       podatnikiem jest nabywca zgodnie z art. 17 ust. 1 pkt 7 lub 8",null,null,null,null,null,null,null,null,null,null,null,null,null,null,{"$f":"Sprzedaż!AC2","v":31},null,null,null,null,null,null,null,null,null,null,null,null,null,"POMORSKI URZĄD SKARBOWY W GDAŃSKU","2271"]
[null,null,null,null,"       ustawy (wypełnia dostawca)",null,null,null,null,null,null,null,null,null,null,null,null,null,null,null,null,null,null,null,null,null,null,null,null,null,null,null,null,"PIERWSZY URZĄD SKARBOWY W GDYNI","2208"]
[null,null,null,null," 14. Dostawa towarów, dla których podatnikiem jest nabywca",null,null,null,null,null,null,null,null,null,null,null,null,null,null," 32. ",null,null,null,null,null," 33. ",null,null,null,null,null,null,null,"DRUGI URZĄD SKARBOWY W GDYNI","2209"]
[null,null,null,null,"      zgodnie z art. 17 ust. 1 pkt 5 ustawy (wypełnia nabywca)",null,null,null,null,null,null,null,null,null,null,null,null,null,null,{"$f":"Sprzedaż!AD2","v":32},null,null,null,null,null,{"$f":"Sprzedaż!AE2","v":33},null,null,null,null,null,null,null,"URZĄD SKARBOWY W GIŻYCKU","2807"]
[null,null,null,null," 15. Dostawa towarów oraz świadczenie usług, dla których",null,null,null,null,null,null,null,null,null,null,null,null,null,null," 34. ",null,null,null,null,null," 35. ",null,null,null,null,null,null,null,"PIERWSZY URZĄD SKARBOWY W GLIWICACH","2412"]
[null,null,null,null,"       podatnikiem jest nabywca zgodnie z art. 17 ust. 1 pkt 7 lub 8",null,null,null,null,null,null,null,null,null,null,null,null,null,null,{"$f":"Sprzedaż!AF2","v":34},null,null,null,null,null,{"$f":"Sprzedaż!AG2","v":35},null,null,null,null,null,null,null,"DRUGI URZĄD SKARBOWY W GLIWICACH","2413"]
[null,null,null,null,"      ustawy (wypełnia nabywca)",null,null,null,null,null,null,null,null,null,null,null,null,null,null,null,null,null,null,null,null,null,null,null,null,null,null,null,null,"URZĄD SKARBOWY W GŁOGOWIE","0205"]
[null,null,null,null,null,null,null,null,null,null,null,null,null,null,null,null,null,null,null,null,null,null,null,null,null,null,null,null,null,null,null,null,null,"URZĄD SKARBOWY W GŁOWNIE","1004"]
[null,null,null,null,null,null,null,null,null,null,null,null,null,null,null,null,null,null,null,null,null,null,null,null,null,null,"VAT-7(19)",null,null,"1/3",null,null,null,"URZĄD SKARBOWY W GŁUBCZYCACH","1603"]
[null,null,null,null,null,null,null,null,null,null,null,null,null,null,null,null,null,null,null,null,null,null,null,null,null,null,null,null,null,null,null,null,null,"URZĄD SKARBOWY W GNIEŹNIE","3003"]
[null,null,null,null,null,null,null,null,null,null,null,null,null,null,null,null,null,null,null,null,null,null,null,null,null,null,null,null,null,null,null,null,null,"URZĄD SKARBOWY W GOLENIOWIE","3205"]
[null,null,null,null,null,null,null,null,null,null,null,null,null,null,null,null,null,null,null,null,null,null,null,null,null,null,null,null,null,null,null,null,null,"URZĄD SKARBOWY W GOLUBIU-DOBRZYNIU","0422"]
[null,null,"          DEKLARACJA JEST SKŁADANA WYŁĄCZNIE ZA POMOCĄ ŚRODKÓW KOMUNIKACJI ELEKTRONICZNEJ         www.portalpodatkowy.mf.gov.pl",null,null,null,null,null,null,null,null,null,null,null,null,null,null,null,null,null,null,null,null,null,null,null,null,null,null,null,null,null,null,"URZĄD SKARBOWY W GORLICACH","1206"]
[null,null,null,null,null,null,null,null,null,null,null,null,null,null,null,null,null,null,null,null,null,null,null,null,null,null,null,null,null,null,null,null,null,"URZĄD SKARBOWY W GORZOWIE WIELKOPOLSKIM","0802"]
[null,null,null,null," 16. Kwota podatku należnego od towarów i usług objętych spisem z natury, o którym mowa w art. 14",null,null,null,null,null,null,null,null,null,null,null,null,null,null,null,null,null,null,null,null," 36. ",null,null,null,null,null,null,null,"URZĄD SKARBOWY W GOSTYNINIE","1405"]
[null,null,null,null,"       ust. 5 ustawy",null,null,null,null,null,null,null,null,null,null,null,null,null,null,null,null,null,null,null,null,{"$f":"Sprzedaż!AH2","v":36},null,null,null,null,null,null,null,"URZĄD SKARBOWY W GOSTYNIU","3004"]
[null,null,null,null," 17. Zwrot odliczonej lub zwróconej kwoty wydatkowanej na zakup kas rejestrujących, o którym mowa",null,null,null,null,null,null,null,null,null,null,null,null,null,null,null,null,null,null,null,null," 37. ",null,null,null,null,null,null,null,"URZĄD SKARBOWY W GÓRZE","0233"]
[null,null,null,null,"        w art. 111 ust. 6 ustawy",null,null,null,null,null,null,null,null,null,null,null,null,null,null,null,null,null,null,null,null,{"$f":"Sprzedaż!AI2","v":37},null,null,null,null,null,null,null,"URZĄD SKARBOWY W GRAJEWIE","2006"]
[null,null,null,null," 18. Kwota podatku należnego od wewnątrzwspólnotowego nabycia środków transportu, wykazanego w poz. 24,",null,null,null,null,null,null,null,null,null,null,null,null,null,null,null,null,null,null,null,null," 38. ",null,null,null,null,null,null,null,"URZĄD SKARBOWY W GRODZISKU MAZOWIECKIM","1406"]
[null,null,null,null,"        podlegająca wpłacie w terminie, o którym mowa w art. 103 ust. 3, w związku z ust. 4 ustawy",null,null,null,null,null,null,null,null,null,null,null,null,null,null,null,null,null,null,null,null,{"$f":"Sprzedaż!AJ2","v":38},null,null,null,null,null,null,null,"URZĄD SKARBOWY W GRODZISKU WIELKOPOLSKIM","3005"]
[null,null,null,null," 19. Kwota podatku od wewnątrzwspólnotowego nabycia paliw silnikowych, podlegająca wpłacie w terminach,",null,null,null,null,null,null,null,null,null,null,null,null,null,null,null,null,null,null,null,null," 39. ",null,null,null,null,null,null,null,"URZĄD SKARBOWY W GRÓJCU","1407"]
[null,null,null,null,"        o których mowa w art. 103 ust. 5a i 5b ustawy",null,null,null,null,null,null,null,null,null,null,null,null,null,null,null,null,null,null,null,null,{"$f":"Sprzedaż!AK2","v":39},null,null,null,null,null,null,null,"URZĄD SKARBOWY W GRUDZIĄDZU","0408"]
[null,null,null,null," Razem: (Poz. 40 =suma kwot z poz. 10, 11, 13, 15, 17, 19, 21, 22,",null,null,null,null,null,null,null,null,null,null,null,null,null,null," 40. ",null,null,null,null,null," 41. ",null,null,null,null,null,null,null,"URZĄD SKARBOWY W GRYFICACH","3206"]
[null,null,null,null," 23, 25, 27, 29, 31, 32 i 34. Poz. 41= suma kwot z poz. 16, 18, 20,",null,null,null,null,null,null,null,null,null,null,null,null,null,null,{"$f":"T30+T32+T36+T40+T42+T44+T46+T48+T50+T52+T54+T57+T59+T62+T64","v":1125},null,null,null,null,null,{"$f":"Z40+Z42+Z44+Z50+Z52+Z54+Z57+Z62+Z64+Z74+Z76-Z78-Z80","v":411},null,null,null,null,null,null,null,"URZĄD SKARBOWY W GRYFINIE","3207"]
[null,null,null,null," 24, 26, 28, 30, 33, 35, 36 i 37 pomniejszona o kwotę z poz. 38 i 39)",null,null,null,null,null,null,null,null,null,null,null,null,null,null,null,null,null,null,null,null,null,null,null,null,null,null,null,null,"URZĄD SKARBOWY W HAJNÓWCE","2015"]
[null,null,null,null,null,null,null,null,null,null,null,null,null,null,null,null,null,null,null,null,null,null,null,null,null,null,null,null,null,null,null,null,null,"URZĄD SKARBOWY W HRUBIESZOWIE","0605"]
[null,null,"  D. ROZLICZENIE PODATKU NALICZONEGO",null,null,null,null,null,null,null,null,null,null,null,null,null,null,null,null,null,null,null,null,null,null,null,null,null,null,null,null,null,null,"URZĄD SKARBOWY W IŁAWIE","2808"]
[null,null,"  D.1. PRZENIESIENIA",null,null,null,null,null,null,null,null,null,null,null,null,null,null,null,null,null,null,null,null,null,null," Podatek do odliczenia w zł",null,null,null,null,null,null,null,"URZĄD SKARBOWY W INOWROCŁAWIU","0409"]
[null,null,null,null," Kwota nadwyżki z poprzedniej deklaracji",null,null,null,null,null,null,null,null,null,null,null,null,null,null,null,null,null,null,null,null," 42. ",null,null,null,null,null,null,null,"URZĄD SKARBOWY W JANOWIE LUBELSKIM","0606"]
[null,null,null,null," Kwota z poz. „Kwota do przeniesienia na następny okres rozliczeniowy” z poprzedniej deklaracji lub wynikająca z decyzji.",null,null,null,null,null,null,null,null,null,null,null,null,null,null,null,null,null,null,null,null,775,null,null,null,null,null,null,null,"URZĄD SKARBOWY W JAROCINIE","3006"]
[null,null,"  D.2. NABYCIE TOWARÓW I USŁUG ORAZ PODATEK NALICZONY Z UWZGLĘDNIENIEM KOREKT",null,null,null,null,null,null,null,null,null,null,null,null,null,null,null,null,null,null,null,null,null,null,null,null,null,null,null,null,null,null,"URZĄD SKARBOWY W JAROSŁAWIU","1804"]
[null,null,null,null,null,null,null,null,null,null,null,null,null,null,null,null,null,null," Wartość netto w zł",null,null,null,null,null,null," Podatek naliczony w zł",null,null,null,null,null,null,null,"URZĄD SKARBOWY W JASTRZĘBIU-ZDROJU","2414"]
[null,null,null," Nabycie towarów i usług zaliczanych u podatnika do środków",null,null,null,null,null,null,null,null,null,null,null,null,null,null," 43. ",null,null,null,null,null,null," 44. ",null,null,null,null,null,null,null,"URZĄD SKARBOWY W JAŚLE","1805"]
[null,null,null," trwałych",null,null,null,null,null,null,null,null,null,null,null,null,null,null,{"$f":"Zakupy!H2","v":1},null,null,null,null,null,null,{"$f":"Zakupy!I2","v":1},null,null,null,null,null,null,null,"URZĄD SKARBOWY W JAWORZE","0206"]
[null,null,null," Nabycie towarów i usług pozostałych",null,null,null,null,null,null,null,null,null,null,null,null,null,null," 45. ",null,null,null,null,null,null," 46. ",null,null,null,null,null,null,null,"URZĄD SKARBOWY W JAWORZNIE","2415"]
[null,null,null,null,null,null,null,null,null,null,null,null,null,null,null,null,null,null,{"$f":"Zakupy!J2","v":482},null,null,null,null,null,null,{"$f":"Zakupy!K2","v":111},null,null,null,null,null,null,null,"URZĄD SKARBOWY W JELENIEJ GÓRZE","0207"]
[null,null,"  D.3. PODATEK NALICZONY – DO ODLICZENIA (w zł)",null,null,null,null,null,null,null,null,null,null,null,null,null,null,null,null,null,null,null,null,null,null,null,null,null,null,null,null,null,null,"URZĄD SKARBOWY W JĘDRZEJOWIE","2603"]
[null,null,null," Korekta podatku naliczonego od nabycia środków trwałych",null,null,null,null,null,null,null,null,null,null,null,null,null,null,null,null,null,null,null,null,null," 47. ",null,null,null,null,null,null,null,"URZĄD SKARBOWY W WEJHEROWIE","2220"]
[null,null,null,null,null,null,null,null,null,null,null,null,null,null,null,null,null,null,null,null,null,null,null,null,null,{"$f":"Zakupy!L2","v":0},null,null,null,null,null,null,null,"PIERWSZY URZĄD SKARBOWY W KALISZU","3007"]
[null,null,null," Korekta podatku naliczonego od pozostałych nabyć",null,null,null,null,null,null,null,null,null,null,null,null,null,null,null,null,null,null,null,null,null," 48. ",null,null,null,null,null,null,null,"DRUGI URZĄD SKARBOWY W KALISZU","3008"]
[null,null,null,null,null,null,null,null,null,null,null,null,null,null,null,null,null,null,null,null,null,null,null,null,null,{"$f":"Zakupy!M2","v":0},null,null,null,null,null,null,null,"DRUGI WIELKOPOLSKI URZĄD SKARBOWY W KALISZU","3072"]
[null,null,null," Korekta podatku naliczonego, o której mowa w art. 89b ust. 1 ustawy",null,null,null,null,null,null,null,null,null,null,null,null,null,null,null,null,null,null,null,null,null," 49. ",null,null,null,null,null,null,null,"URZĄD SKARBOWY W KAMIENIU POMORSKIM","3208"]
[null,null,null,null,null,null,null,null,null,null,null,null,null,null,null,null,null,null,null,null,null,null,null,null,null,{"$f":"Zakupy!N2","v":0},null,null,null,null,null,null,null,"URZĄD SKARBOWY W KAMIENNEJ GÓRZE","0208"]
[null,null,null," Korekta podatku naliczonego, o której mowa w art. 89b ust. 4 ustawy",null,null,null,null,null,null,null,null,null,null,null,null,null,null,null,null,null,null,null,null,null," 50. ",null,null,null,null,null,null,null,"URZĄD SKARBOWY W KARTUZACH","2210"]
[null,null,null,null,null,null,null,null,null,null,null,null,null,null,null,null,null,null,null,null,null,null,null,null,null,{"$f":"Zakupy!O2","v":0},null,null,null,null,null,null,null,"PIERWSZY URZĄD SKARBOWY W KATOWICACH","2416"]
[null,null,null," Razem kwota podatku naliczonego do odliczenia",null,null,null,null,null,null,null,null,null,null,null,null,null,null,null,null,null,null,null,null,null," 51. ",null,null,null,null,null,null,null,"DRUGI URZĄD SKARBOWY W KATOWICACH","2417"]
[null,null,null," Należy wpisać sumę kwot z poz. 42, 44, 46, 47, 48, 49 i 50.",null,null,null,null,null,null,null,null,null,null,null,null,null,null,null,null,null,null,null,null,null,{"$f":"Z88+Z92+Z94+Z97+Z99+Z101+Z103","v":887},null,null,null,null,null,null,null,"URZĄD SKARBOWY W KAZIMIERZY WIELKIEJ","2614"]
[null,null,null,null,null,null,null,null,null,null,null,null,null,null,null,null,null,null,null,null,null,null,null,null,null,null,null,null,null,null,null,null,null,"URZĄD SKARBOWY W KĘDZIERZYNIE-KOŹLU","1604"]
[null,null,"  E. OBLICZENIE WYSOKOŚCI ZOBOWIĄZANIA PODATKOWEGO LUB KWOTY ZWROTU (w zł)",null,null,null,null,null,null,null,null,null,null,null,null,null,null,null,null,null,null,null,null,null,null,null,null,null,null,null,null,null,null,"URZĄD SKARBOWY W KĘPNIE","3009"]
[null,null,null," Kwota wydatkowana na zakup kas rejestrujących, do odliczenia w danym okresie rozliczeniowym",null,null,null,null,null,null,null,null,null,null,null,null,null,null,null,null,null,null,null,null,null," 52. ",null,null,null,null,null,null,null,"URZĄD SKARBOWY W KĘTRZYNIE","2809"]
[null,null,null," Kwota wykazana w poz. 52 nie może być wyższa od różnicy kwot z poz. 41 i 51.",null,null,null,null,null,null,null,null,null,null,null,null,null,null,null,null,null,null,null,null,null,null,null,null,null,null,null,null,null,"PIERWSZY URZĄD SKARBOWY W KIELCACH","2604"]
[null,null,null," Jeżeli różnica kwot pomiędzy poz. 41 i 51 jest mniejsza lub równa 0, wówczas należy wpisać 0.",null,null,null,null,null,null,null,null,null,null,null,null,null,null,null,null,null,null,null,null,null,null,null,null,null,null,null,null,null,"DRUGI URZĄD SKARBOWY W KIELCACH","2605"]
[null,null,null," Kwota podatku objęta zaniechaniem poboru",null,null,null,null,null,null,null,null,null,null,null,null,null,null,null,null,null,null,null,null,null," 53. ",null,null,null,null,null,null,null,"URZĄD SKARBOWY W KLUCZBORKU","1605"]
[null,null,null," Kwota ta nie może być wyższa niż różnica pomiędzy kwotą z poz. 41 a sumą kwot z poz. 51 i 52.",null,null,null,null,null,null,null,null,null,null,null,null,null,null,null,null,null,null,null,null,null,null,null,null,null,null,null,null,null,"URZĄD SKARBOWY W KŁOBUCKU","2418"]
[null,null,null," Jeżeli różnica kwot pomiędzy poz. 41 i 51, pomniejszona o kwotę z poz. 52 jest mniejsza od 0, wówczas należy wpisać 0.",null,null,null,null,null,null,null,null,null,null,null,null,null,null,null,null,null,null,null,null,null,null,null,null,null,null,null,null,null,"URZĄD SKARBOWY W KŁODZKU","0209"]
[null,null,null," Kwota podatku podlegającego wpłacie do urzędu skarbowego",null,null,null,null,null,null,null,null,null,null,null,null,null,null,null,null,null,null,null,null,null," 54. ",null,null,null,null,null,null,null,"URZĄD SKARBOWY W KOLBUSZOWEJ","1806"]
[null,null,null," Jeżeli różnica kwot pomiędzy poz. 41 i 51 jest większa od 0, wówczas poz. 54=poz. 41 - poz. 51 - poz. 52 - poz. 53",null,null,null,null,null,null,null,null,null,null,null,null,null,null,null,null,null,null,null,null,null,{"$f":"IF(Z82-Z105>0,Z82-Z105-Z109-Z112,0)","v":0},null,null,null,null,null,null,null,"URZĄD SKARBOWY W KOLE","3010"]
[null,null,null," w przeciwnym wypadku należy wpisać 0.",null,null,null,null,null,null,null,null,null,null,null,null,null,null,null,null,null,null,null,null,null,null,null,null,null,null,null,null,null,"URZĄD SKARBOWY W KOLNIE","2007"]
[null,null,null," Kwota wydatkowana na zakup kas rejestrujących, przysługująca do zwrotu w danym okresie rozliczeniowym",null,null,null,null,null,null,null,null,null,null,null,null,null,null,null,null,null,null,null,null,null," 55. ",null,null,null,null,null,null,null,"URZĄD SKARBOWY W KOŁOBRZEGU","3209"]
[null,null,null,null,null,null,null,null,null,null,null,null,null,null,null,null,null,null,null,null,null,null,null,null,null,null,null,null,null,null,null,null,null,"URZĄD SKARBOWY W KONINIE","3011"]
[null,null,null," Nadwyżka podatku naliczonego nad należnym",null,null,null,null,null,null,null,null,null,null,null,null,null,null,null,null,null,null,null,null,null," 56. ",null,null,null,null,null,null,null,"URZĄD SKARBOWY W KOŃSKICH","2606"]
[null,null,null," Jeżeli różnica kwot pomiędzy poz. 51 i 41 jest większa lub równa 0, wówczas poz. 56=poz. 51 - poz. 41 + poz. 55,",null,null,null,null,null,null,null,null,null,null,null,null,null,null,null,null,null,null,null,null,null,{"$f":"IF(Z105-Z82>=0,Z105-Z82+Z118,0)","v":476},null,null,null,null,null,null,null,"PIERWSZY URZĄD SKARBOWY W KOSZALINIE","3210"]
[null,null,null," w przeciwnym wypadku należy wpisać 0.",null,null,null,null,null,null,null,null,null,null,null,null,null,null,null,null,null,null,null,null,null,null,null,null,null,null,null,null,null,"DRUGI URZĄD SKARBOWY W KOSZALINIE","3211"]
[null,null,null,null,null," Kwota do zwrotu na rachunek wskazany przez podatnika",null,null,null,null,null,null,null,null,null,null,null,null,null,null,null,null,null,null,null," 57. ",null,null,null,null,null,null,null,"URZĄD SKARBOWY W KOŚCIANIE","3012"]
[null,null,null,null,null,null,null,null,null,null,null,null,null,null,null,null,null,null,null,null,null,null,null,null,null,{"$f":"R125+Z125+R127+Z127","v":0},null,null,null,null,null,null,null,"URZĄD SKARBOWY W KOŚCIERZYNIE","2211"]
[null,null,null,null,null,null,null," w tym kwota do zwrotu",null,null,null,null,null,null,null,null,null," 58. na rachunek VAT",null,null,null,null,null,null,null," 59. w terminie 25 dni (art. 87 ust. 6)",null,null,null,null,null,null,null,"URZĄD SKARBOWY W KOZIENICACH","1408"]
[null,null,null,null,null,null,null,null,null,null,null,null,null,null,null,null,null,null,null,null,null,null,null,null,null,null,null,null,null,null,null,null,null,"PIERWSZY URZĄD SKARBOWY KRAKÓW","1207"]
[null,null,null,null,null,null,null,null,null,null,null,null,null,null,null,null,null," 60. w terminie 60 dni",null,null,null,null,null,null,null," 61. w terminie 180 dni",null,null,null,null,null,null,null,"URZĄD SKARBOWY KRAKÓW-KROWODRZA","1208"]
[null,null,null,null,null,null,null,null,null,null,null,null,null,null,null,null,null,null,null,null,null,null,null,null,null,null,null,null,null,null,null,null,null,"URZĄD SKARBOWY KRAKÓW-NOWA HUTA","1209"]
[null,null,null,null,null,null,null,null," Kwota do przeniesienia na następny okres rozliczeniowy",null,null,null,null,null,null,null,null,null,null,null,null,null,null,null,null," 62. ",null,null,null,null,null,null,null,"URZĄD SKARBOWY KRAKÓW-PODGÓRZE","1210"]
[null,null,null,null,null,null,null,null," Od kwoty z poz. 56 należy odjąć kwotę z poz. 57.",null,null,null,null,null,null,null,null,null,null,null,null,null,null,null,null,{"$f":"Z120-Z123","v":476},null,null,null,null,null,null,null,"URZĄD SKARBOWY KRAKÓW-PRĄDNIK","1211"]
[null,null,null,null,null,null,null,null,null,null,null,null,null,null,null,null,null,null,null,null,null,null,null,null,null,null,null,null,null,null,null,null,null,"URZĄD SKARBOWY KRAKÓW-STARE MIASTO","1212"]
[null,null," F. INFORMACJE DODATKOWE",null,null,null,null,null,null,null,null,null,null,null,null,null,null,null,null,null,null,null,null,null,null,null,null,null,null,null,null,null,null,"URZĄD SKARBOWY KRAKÓW-ŚRÓDMIEŚCIE","1213"]
[null,null,null," Podatnik wykonywał w okresie",null,null,null,null,null,null,null,null," 63. ",null,null,null," 64. ",null,null,null,null," 65. ",null,null,null,null,null," 66. ",null,null,null,null,null,"DRUGI URZĄD SKARBOWY KRAKÓW","1228"]
[null,null,null," rozliczeniowym czynności,",null,null,null,null,null,null,null,null,null,null,null,null,null,null,null,null,null,null,null,null,null,null,null,null,null,null,null,null,null,"URZĄD SKARBOWY W KRAPKOWICACH","1613"]
[null,null,null," o których mowa w (zaznaczyć",null,null,null,null,null,null,null,null,"             art. 119 ustawy",null,null,null,null,null," art. 120 ust. 4 lub 5 ustawy",null,null,null," art. 122 ustawy",null,null,null,null,null," art. 136 ustawy",null,null,null,null,"URZĄD SKARBOWY W KRASNYMSTAWIE","0607"]
[null,null,null," właściwe kwadraty):",null,null,null,null,null,null,null,null,null,null,null,null,null,null,null,null,null,null,null,null,null,null,null,null,null,null,null,null,null,"URZĄD SKARBOWY W KRAŚNIKU","0608"]
[null,null,null," 67. Podatnik korzysta z obniżenia zobowiązania podatkowego, o którym mowa",null,null,null,null,null,null,null,null,null,null,null,null,null,null,null,null,null," 68. Podatnik wnioskuje o zwrot podatku na rachunek VAT",null,null,null,null,null,null,null,null,null,null,null,"URZĄD SKARBOWY W KROŚNIE","1807"]
[null,null,null,"       w art. 108d ustawy",null,null,null,null,null,null,null,null,null,null,"     tak",null,null,null,null,null,null,"       (wykazany w poz. 58)",null,null,null,null,null,"      tak",null,null,null,null,null,"URZĄD SKARBOWY W KROŚNIE ODRZAŃSKIM","0803"]
[null,null,null,null,null,null,null,null,null,null,null,null,null,null,null,null,null,null,null,null,null,null,null,null,null,null,null,null,null,null,null,null,null,"URZĄD SKARBOWY W KROTOSZYNIE","3013"]
[null,null,"VAT-7(19)",null,null,null,null,null,null,"2/3",null,null,null,null,null,null,null,null,null,null,null,null,null,null,null,null,null,null,null,null,null,null,null,"URZĄD SKARBOWY W KUTNIE","1005"]
[null,null,null,null,null,null,null,null,null,null,null,null,null,null,null,null,null,null,null,null,null,null,null,null,null,null,null,null,null,null,null,null,null,"URZĄD SKARBOWY W KWIDZYNIE","2212"]
[null,null,null,null,null,null,null,null,null,null,null,null,null,null,null,null,null,null,null,null,null,null,null,null,null,null,null,null,null,null,null,null,null,"URZĄD SKARBOWY W LEGIONOWIE","1409"]
[null,null,null,null,null,null,null,null,null,null,null,null,null,null,null,null,null,null,null,null,null,null,null,null,null,null,null,null,null,null,null,null,null,"URZĄD SKARBOWY W LEGNICY","0210"]
[null,null,"          DEKLARACJA JEST SKŁADANA WYŁĄCZNIE ZA POMOCĄ ŚRODKÓW KOMUNIKACJI ELEKTRONICZNEJ         www.portalpodatkowy.mf.gov.pl",null,null,null,null,null,null,null,null,null,null,null,null,null,null,null,null,null,null,null,null,null,null,null,null,null,null,null,null,null,null,"URZĄD SKARBOWY W LESKU","1808"]
[null,null,null,null,null,null,null,null,null,null,null,null,null,null,null,null,null,null,null,null,null,null,null,null,null,null,null,null,null,null,null,null,null,"URZĄD SKARBOWY W LESZNIE","3014"]
[null,null," G. INFORMACJA O ZAŁĄCZNIKACH",null,null,null,null,null,null,null,null,null,null,null,null,null,null,null,null,null,null,null,null,null,null,null,null,null,null,null,null,null,null,"URZĄD SKARBOWY W LEŻAJSKU","1809"]
[null,null,null," Do niniejszej deklaracji dołączono (zaznaczyć właściwy kwadrat):",null,null,null,null,null,null,null,null,null,null,null,null,null,null,null,null,null,null,null,null,null,null,null,null,null,null,null,null,null,"URZĄD SKARBOWY W LĘBORKU","2213"]
[null,null,null,null,null,null,null,null,null,null,null,null,null,null,null,null,null,null,null,null,null,null,null,null,null,null,null,null,null,null,null,null,null,"URZĄD SKARBOWY W LIMANOWEJ","1214"]
[null,null,null,null,null,null,null,null,null,null,null,null,null,null,null,null,null,null,null,null,null,null,null,null,null,null,null,null,null,null,null,null,null,"URZĄD SKARBOWY W LIPNIE","0410"]
[null,null,null,null," 71. Zawiadomienie o skorygowaniu podstawy opodatkowania oraz kwoty podatku należnego (VAT-ZD)",null,null,null,null,null,null,null,null,null,null,null,null,null,null,null,null,null,null,null,null,null,null,null,null,null,null,null,null,"URZĄD SKARBOWY W LIPSKU","1447"]
[null,null,null,null,null,null,null,null,null,null,null,null,null,null,null,null,null," 1. tak",null,null,"                  2. nie",null,null,null,null,null,null,null,null,null,null,null,null,"URZĄD SKARBOWY W LUBACZOWIE","1810"]
[null,null,null,null,null,null,null,null,null,null,null,null,null,null,null,null,null,null,null,null,null,null,null,null,null,null,null,null,null,null,null,null,null,"URZĄD SKARBOWY W LUBANIU","0211"]
[null,null," H. DANE KONTAKTOWE PODATNIKA LUB OSOBY REPREZENTUJĄCEJ PODATNIKA",null,null,null,null,null,null,null,null,null,null,null,null,null,null,null,null,null,null,null,null,null,null,null,null,null,null,null,null,null,null,"URZĄD SKARBOWY W LUBARTOWIE","0609"]
[null,null,null," 72. Imię",null,null,null,null,null,null,null,null,null," 73. Nazwisko",null,null,null,null,null,null,null,null," 74. Adres e-mail",null,null,null,null,null,null,null,null,null,null,"URZĄD SKARBOWY W LUBINIE","0212"]
[null,null,null,null,null,null,null,null,null,null,null,null,null,null,null,null,null,null,null,null,null,null,null,null,null,null,null,null,null,null,null,null,null,"PIERWSZY URZĄD SKARBOWY W LUBLINIE","0610"]
[null,null,null," 75. Telefon kontaktowy",null,null,null,null,null,null,null,null,null," 76. Data wypełnienia (dzień – miesiąc – rok)",null,null,null,null,null,null,null,null,null,null,null,null,null,null,null,null,null,null,null,"DRUGI URZĄD SKARBOWY W LUBLINIE","0611"]
[null,null,null,null,null,null,null,null,null,null,null,null,null,24022019,null,null,null,null,null,null,null,null,null,null,null,null,null,null,null,null,null,null,null,"TRZECI URZĄD SKARBOWY W LUBLINIE","0612"]
[null,null,"     1) Zgodnie z art. 81 ustawy z dnia 29 sierpnia 1997 r. – Ordynacja podatkowa (Dz. U. z 2018 r. poz. 800, z późn. zm.).",null,null,null,null,null,null,null,null,null,null,null,null,null,null,null,null,null,null,null,null,null,null,null,null,null,null,null,null,null,null,"LUBELSKI URZĄD SKARBOWY W LUBLINIE","0671"]
[null,null," Pouczenia",null,null,null,null,null,null,null,null,null,null,null,null,null,null,null,null,null,null,null,null,null,null,null,null,null,null,null,null,null,null,"URZĄD SKARBOWY W LUBLIŃCU","2419"]
[null,null," W przypadku niewpłacenia w obowiązującym terminie kwoty z poz. 54 lub wpłacenia jej w niepełnej wysokości, niniejsza deklaracja stanowi podstawę do wystawienia tytułu",null,null,null,null,null,null,null,null,null,null,null,null,null,null,null,null,null,null,null,null,null,null,null,null,null,null,null,null,null,null,"URZĄD SKARBOWY W LWÓWKU ŚLĄSKIM","0213"]
[null,null," wykonawczego zgodnie z przepisami ustawy z dnia 17 czerwca 1966 r. o postępowaniu egzekucyjnym w administracji (Dz. U. z 2018 r. poz. 1314, z późn. zm.).",null,null,null,null,null,null,null,null,null,null,null,null,null,null,null,null,null,null,null,null,null,null,null,null,null,null,null,null,null,null,"URZĄD SKARBOWY W ŁAŃCUCIE","1811"]
[null,null," Za podanie nieprawdy lub zatajenie prawdy i przez to narażenie podatku na uszczuplenie grozi odpowiedzialność przewidziana w Kodeksie karnym skarbowym.",null,null,null,null,null,null,null,null,null,null,null,null,null,null,null,null,null,null,null,null,null,null,null,null,null,null,null,null,null,null,"URZĄD SKARBOWY W ŁASKU","1006"]
[null,null,null,null,null,null,null,null,null,null,null,null,null,null,null,null,null,null,null,null,null,null,null,null,null,null,null,null,null,null,null,null,null,"URZĄD SKARBOWY W ŁĘCZNEJ","0621"]
[null,null,null,null,null,null,null,null,null,null,null,null,null,null,null,null,null,null,null,null,null,null,null,null,null,null,null,null,null,null,null,null,null,"URZĄD SKARBOWY W ŁĘCZYCY","1028"]
[null,null,null,null,null,null,null,null,null,null,null,null,null,null,null,null,null,null,null,null,null,null,null,null,null,null,null,null,null,null,null,null,null,"URZĄD SKARBOWY W ŁOMŻY","2008"]
[null,null,null,null,null,null,null,null,null,null,null,null,null,null,null,null,null,null,null,null,null,null,null,null,null,null,null,null,null,null,null,null,null,"URZĄD SKARBOWY W ŁOSICACH","1410"]
[null,null,null,null,null,null,null,null,null,null,null,null,null,null,null,null,null,null,null,null,null,null,null,null,null,null,null,null,null,null,null,null,null,"URZĄD SKARBOWY W ŁOWICZU","1007"]
[null,null,null,null,null,null,null,null,null,null,null,null,null,null,null,null,null,null,null,null,null,null,null,null,null,null,null,null,null,null,null,null,null,"PIERWSZY URZĄD SKARBOWY ŁÓDŹ-BAŁUTY","1008"]
[null,null,null,null,null,null,null,null,null,null,null,null,null,null,null,null,null,null,null,null,null,null,null,null,null,null,null,null,null,null,null,null,null,"DRUGI URZĄD SKARBOWY ŁÓDŹ-BAŁUTY","1009"]
[null,null,null,null,null,null,null,null,null,null,null,null,null,null,null,null,null,null,null,null,null,null,null,null,null,null,null,null,null,null,null,null,null,"PIERWSZY URZĄD SKARBOWY ŁÓDŹ-GÓRNA","1010"]
[null,null,null,null,null,null,null,null,null,null,null,null,null,null,null,null,null,null,null,null,null,null,null,null,null,null,null,null,null,null,null,null,null,"DRUGI URZĄD SKARBOWY ŁÓDŹ-GÓRNA","1011"]
[null,null,null,null,null,null,null,null,null,null,null,null,null,null,null,null,null,null,null,null,null,null,null,null,null,null,null,null,null,null,null,null,null,"URZĄD SKARBOWY ŁÓDŹ-POLESIE","1012"]
[null,null,null,null,null,null,null,null,null,null,null,null,null,null,null,null,null,null,null,null,null,null,null,null,null,null,null,null,null,null,null,null,null,"URZĄD SKARBOWY ŁÓDŹ-ŚRÓDMIEŚCIE","1013"]
[null,null,null,null,null,null,null,null,null,null,null,null,null,null,null,null,null,null,null,null,null,null,null,null,null,null,null,null,null,null,null,null,null,"URZĄD SKARBOWY ŁÓDŹ-WIDZEW","1014"]
[null,null,null,null,null,null,null,null,null,null,null,null,null,null,null,null,null,null,null,null,null,null,null,null,null,null,null,null,null,null,null,null,null,"ŁÓDZKI URZĄD SKARBOWY W ŁODZI","1071"]
[null,null,null,null,null,null,null,null,null,null,null,null,null,null,null,null,null,null,null,null,null,null,null,null,null,null,null,null,null,null,null,null,null,"URZĄD SKARBOWY W ŁUKOWIE","0613"]
[null,null,null,null,null,null,null,null,null,null,null,null,null,null,null,null,null,null,null,null,null,null,null,null,null,null,null,null,null,null,null,null,null,"URZĄD SKARBOWY W MAKOWIE MAZOWIECKIM","1411"]
[null,null,null,null,null,null,null,null,null,null,null,null,null,null,null,null,null,null,null,null,null,null,null,null,null,null,null,null,null,null,null,null,null,"URZĄD SKARBOWY W MALBORKU","2214"]
[null,null,null,null,null,null,null,null,null,null,null,null,null,null,null,null,null,null,null,null,null,null,null,null,null,null,null,null,null,null,null,null,null,"MAŁOPOLSKI URZĄD SKARBOWY W KRAKOWIE","1271"]
[null,null,null,null,null,null,null,null,null,null,null,null,null,null,null,null,null,null,null,null,null,null,null,null,null,null,null,null,null,null,null,null,null,"URZĄD SKARBOWY W MIECHOWIE","1215"]
[null,null,null,null,null,null,null,null,null,null,null,null,null,null,null,null,null,null,null,null,null,null,null,null,null,null,null,null,null,null,null,null,null,"URZĄD SKARBOWY W MIELCU","1812"]
[null,null,null,null,null,null,null,null,null,null,null,null,null,null,null,null,null,null,null,null,null,null,null,null,null,null,null,null,null,null,null,null,null,"URZĄD SKARBOWY W MIĘDZYCHODZIE","3015"]
[null,null,null,null,null,null,null,null,null,null,null,null,null,null,null,null,null,null,null,null,null,null,null,null,null,null,null,null,null,null,null,null,null,"URZĄD SKARBOWY W MIĘDZYRZECZU","0804"]
[null,null,null,null,null,null,null,null,null,null,null,null,null,null,null,null,null,null,null,null,null,null,null,null,null,null,null,null,null,null,null,null,null,"URZĄD SKARBOWY W MIKOŁOWIE","2420"]
[null,null,null,null,null,null,null,null,null,null,null,null,null,null,null,null,null,null,null,null,null,null,null,null,null,null,null,null,null,null,null,null,null,"URZĄD SKARBOWY W MILICZU","0214"]
[null,null,null,null,null,null,null,null,null,null,null,null,null,null,null,null,null,null,null,null,null,null,null,null,null,null,null,null,null,null,null,null,null,"URZĄD SKARBOWY W MIŃSKU MAZOWIECKIM","1412"]
[null,null,null,null,null,null,null,null,null,null,null,null,null,null,null,null,null,null,null,null,null,null,null,null,null,null,null,null,null,null,null,null,null,"URZĄD SKARBOWY W MŁAWIE","1413"]
[null,null,null,null,null,null,null,null,null,null,null,null,null,null,null,null,null,null,null,null,null,null,null,null,null,null,null,null,null,null,null,null,null,"URZĄD SKARBOWY W MOGILNIE","0411"]
[null,null,null,null,null,null,null,null,null,null,null,null,null,null,null,null,null,null,null,null,null,null,null,null,null,null,null,null,null,null,null,null,null,"URZĄD SKARBOWY W MOŃKACH","2009"]
[null,null,null,null,null,null,null,null,null,null,null,null,null,null,null,null,null,null,null,null,null,null,null,null,null,null,null,null,null,null,null,null,null,"URZĄD SKARBOWY W MYSŁOWICACH","2421"]
[null,null,null,null,null,null,null,null,null,null,null,null,null,null,null,null,null,null,null,null,null,null,null,null,null,null,null,null,null,null,null,null,null,"URZĄD SKARBOWY W MYSZKOWIE","2422"]
[null,null,null,null,null,null,null,null,null,null,null,null,null,null,null,null,null,null,null,null,null,null,null,null,null,null,null,null,null,null,null,null,null,"URZĄD SKARBOWY W MYŚLENICACH","1216"]
[null,null,null,null,null,null,null,null,null,null,null,null,null,null,null,null,null,null,null,null,null,null,null,null,null,null,null,null,null,null,null,null,null,"URZĄD SKARBOWY W MYŚLIBORZU","3212"]
[null,null,null,null,null,null,null,null,null,null,null,null,null,null,null,null,null,null,null,null,null,null,null,null,null,null,null,null,null,null,null,null,null,"URZĄD SKARBOWY W NAKLE NAD NOTECIĄ","0412"]
[null,null,null,null,null,null,null,null,null,null,null,null,null,null,null,null,null,null,null,null,null,null,null,null,null,null,null,null,null,null,null,null,null,"URZĄD SKARBOWY W NAMYSŁOWIE","1606"]
[null,null,null,null,null,null,null,null,null,null,null,null,null,null,null,null,null,null,null,null,null,null,null,null,null,null,null,null,null,null,null,null,null,"URZĄD SKARBOWY W NIDZICY","2810"]
[null,null,null,null,null,null,null,null,null,null,null,null,null,null,null,null,null,null,null,null,null,null,null,null,null,null,null,null,null,null,null,null,null,"URZĄD SKARBOWY W NISKU","1823"]
[null,null,null,null,null,null,null,null,null,null,null,null,null,null,null,null,null,null,null,null,null,null,null,null,null,null,null,null,null,null,null,null,null,"URZĄD SKARBOWY W NOWEJ RUDZIE","0215"]
[null,null,null,null,null,null,null,null,null,null,null,null,null,null,null,null,null,null,null,null,null,null,null,null,null,null,null,null,null,null,null,null,null,"URZĄD SKARBOWY W NOWEJ SOLI","0805"]
[null,null,null,null,null,null,null,null,null,null,null,null,null,null,null,null,null,null,null,null,null,null,null,null,null,null,null,null,null,null,null,null,null,"URZĄD SKARBOWY W NOWYM DWORZE MAZOWIECKIM","1414"]
[null,null,null,null,null,null,null,null,null,null,null,null,null,null,null,null,null,null,null,null,null,null,null,null,null,null,null,null,null,null,null,null,null,"URZĄD SKARBOWY W NOWYM MIEŚCIE LUBAWSKIM","2811"]
[null,null,null,null,null,null,null,null,null,null,null,null,null,null,null,null,null,null,null,null,null,null,null,null,null,null,null,null,null,null,null,null,null,"URZĄD SKARBOWY W NOWYM SĄCZU","1217"]
[null,null,null,null,null,null,null,null,null,null,null,null,null,null,null,null,null,null,null,null,null,null,null,null,null,null,null,null,null,null,null,null,null,"URZĄD SKARBOWY W NOWYM TARGU","1218"]
[null,null,null,null,null,null,null,null,null,null,null,null,null,null,null,null,null,null,null,null,null,null,null,null,null,null,"VAT-7(19)",null,null,"3/3",null,null,null,"URZĄD SKARBOWY W NOWYM TOMYŚLU","3016"]
[null,null,null,null,null,null,null,null,null,null,null,null,null,null,null,null,null,null,null,null,null,null,null,null,null,null,null,null,null,null,null,null,null,"URZĄD SKARBOWY W NYSIE","1607"]
[null,null,null,null,null,null,null,null,null,null,null,null,null,null,null,null,null,null,null,null,null,null,null,null,null,null,null,null,null,null,null,null,null,"URZĄD SKARBOWY W OBORNIKACH","3038"]
[null,null,null,null,null,null,null,null,null,null,null,null,null,null,null,null,null,null,null,null,null,null,null,null,null,null,null,null,null,null,null,null,null,"URZĄD SKARBOWY W OLECKU","2812"]
[null,null,null,null,null,null,null,null,null,null,null,null,null,null,null,null,null,null,null,null,null,null,null,null,null,null,null,null,null,null,null,null,null,"URZĄD SKARBOWY W OLEŚNICY","0216"]
[null,null,null,null,null,null,null,null,null,null,null,null,null,null,null,null,null,null,null,null,null,null,null,null,null,null,null,null,null,null,null,null,null,"URZĄD SKARBOWY W OLEŚNIE","1608"]
[null,null,null,null,null,null,null,null,null,null,null,null,null,null,null,null,null,null,null,null,null,null,null,null,null,null,null,null,null,null,null,null,null,"URZĄD SKARBOWY W OLKUSZU","1219"]
[null,null,null,null,null,null,null,null,null,null,null,null,null,null,null,null,null,null,null,null,null,null,null,null,null,null,null,null,null,null,null,null,null,"URZĄD SKARBOWY W OLSZTYNIE","2813"]
[null,null,null,null,null,null,null,null,null,null,null,null,null,null,null,null,null,null,null,null,null,null,null,null,null,null,null,null,null,null,null,null,null,"WARMIŃSKO-MAZURSKI URZĄD SKARBOWY W OLSZTYNIE","2871"]
[null,null,null,null,null,null,null,null,null,null,null,null,null,null,null,null,null,null,null,null,null,null,null,null,null,null,null,null,null,null,null,null,null,"URZĄD SKARBOWY W OŁAWIE","0217"]
[null,null,null,null,null,null,null,null,null,null,null,null,null,null,null,null,null,null,null,null,null,null,null,null,null,null,null,null,null,null,null,null,null,"URZĄD SKARBOWY W OPATOWIE","2607"]
[null,null,null,null,null,null,null,null,null,null,null,null,null,null,null,null,null,null,null,null,null,null,null,null,null,null,null,null,null,null,null,null,null,"URZĄD SKARBOWY W OPOCZNIE","1015"]
[null,null,null,null,null,null,null,null,null,null,null,null,null,null,null,null,null,null,null,null,null,null,null,null,null,null,null,null,null,null,null,null,null,"PIERWSZY URZĄD SKARBOWY W OPOLU","1609"]
[null,null,null,null,null,null,null,null,null,null,null,null,null,null,null,null,null,null,null,null,null,null,null,null,null,null,null,null,null,null,null,null,null,"DRUGI URZĄD SKARBOWY W OPOLU","1610"]
[null,null,null,null,null,null,null,null,null,null,null,null,null,null,null,null,null,null,null,null,null,null,null,null,null,null,null,null,null,null,null,null,null,"OPOLSKI URZĄD SKARBOWY W OPOLU","1671"]
[null,null,null,null,null,null,null,null,null,null,null,null,null,null,null,null,null,null,null,null,null,null,null,null,null,null,null,null,null,null,null,null,null,"URZĄD SKARBOWY W OPOLU LUBELSKIM","0614"]
[null,null,null,null,null,null,null,null,null,null,null,null,null,null,null,null,null,null,null,null,null,null,null,null,null,null,null,null,null,null,null,null,null,"URZĄD SKARBOWY W OSTROŁĘCE","1415"]
[null,null,null,null,null,null,null,null,null,null,null,null,null,null,null,null,null,null,null,null,null,null,null,null,null,null,null,null,null,null,null,null,null,"URZĄD SKARBOWY W OSTROWCU ŚWIĘTOKRZYSKIM","2608"]
[null,null,null,null,null,null,null,null,null,null,null,null,null,null,null,null,null,null,null,null,null,null,null,null,null,null,null,null,null,null,null,null,null,"URZĄD SKARBOWY W OSTROWI MAZOWIECKIEJ","1416"]
[null,null,null,null,null,null,null,null,null,null,null,null,null,null,null,null,null,null,null,null,null,null,null,null,null,null,null,null,null,null,null,null,null,"URZĄD SKARBOWY W OSTROWIE WIELKOPOLSKIM","3017"]
[null,null,null,null,null,null,null,null,null,null,null,null,null,null,null,null,null,null,null,null,null,null,null,null,null,null,null,null,null,null,null,null,null,"URZĄD SKARBOWY W OSTRÓDZIE","2814"]
[null,null,null,null,null,null,null,null,null,null,null,null,null,null,null,null,null,null,null,null,null,null,null,null,null,null,null,null,null,null,null,null,null,"URZĄD SKARBOWY W OSTRZESZOWIE","3018"]
[null,null,null,null,null,null,null,null,null,null,null,null,null,null,null,null,null,null,null,null,null,null,null,null,null,null,null,null,null,null,null,null,null,"URZĄD SKARBOWY W OŚWIĘCIMIU","1220"]
[null,null,null,null,null,null,null,null,null,null,null,null,null,null,null,null,null,null,null,null,null,null,null,null,null,null,null,null,null,null,null,null,null,"URZĄD SKARBOWY W OTWOCKU","1417"]
[null,null,null,null,null,null,null,null,null,null,null,null,null,null,null,null,null,null,null,null,null,null,null,null,null,null,null,null,null,null,null,null,null,"URZĄD SKARBOWY W PABIANICACH","1016"]
[null,null,null,null,null,null,null,null,null,null,null,null,null,null,null,null,null,null,null,null,null,null,null,null,null,null,null,null,null,null,null,null,null,"URZĄD SKARBOWY W PAJĘCZNIE","1029"]
[null,null,null,null,null,null,null,null,null,null,null,null,null,null,null,null,null,null,null,null,null,null,null,null,null,null,null,null,null,null,null,null,null,"URZĄD SKARBOWY W PARCZEWIE","0615"]
[null,null,null,null,null,null,null,null,null,null,null,null,null,null,null,null,null,null,null,null,null,null,null,null,null,null,null,null,null,null,null,null,null,"URZĄD SKARBOWY W PIASECZNIE","1418"]
[null,null,null,null,null,null,null,null,null,null,null,null,null,null,null,null,null,null,null,null,null,null,null,null,null,null,null,null,null,null,null,null,null,"URZĄD SKARBOWY W PIEKARACH ŚLĄSKICH","2423"]
[null,null,null,null,null,null,null,null,null,null,null,null,null,null,null,null,null,null,null,null,null,null,null,null,null,null,null,null,null,null,null,null,null,"URZĄD SKARBOWY W PILE","3019"]
[null,null,null,null,null,null,null,null,null,null,null,null,null,null,null,null,null,null,null,null,null,null,null,null,null,null,null,null,null,null,null,null,null,"URZĄD SKARBOWY W PIŃCZOWIE","2609"]
[null,null,null,null,null,null,null,null,null,null,null,null,null,null,null,null,null,null,null,null,null,null,null,null,null,null,null,null,null,null,null,null,null,"URZĄD SKARBOWY W PIOTRKOWIE TRYBUNALSKIM","1017"]
[null,null,null,null,null,null,null,null,null,null,null,null,null,null,null,null,null,null,null,null,null,null,null,null,null,null,null,null,null,null,null,null,null,"URZĄD SKARBOWY W PISZU","2815"]
[null,null,null,null,null,null,null,null,null,null,null,null,null,null,null,null,null,null,null,null,null,null,null,null,null,null,null,null,null,null,null,null,null,"URZĄD SKARBOWY W PLESZEWIE","3039"]
[null,null,null,null,null,null,null,null,null,null,null,null,null,null,null,null,null,null,null,null,null,null,null,null,null,null,null,null,null,null,null,null,null,"URZĄD SKARBOWY W PŁOCKU","1419"]
[null,null,null,null,null,null,null,null,null,null,null,null,null,null,null,null,null,null,null,null,null,null,null,null,null,null,null,null,null,null,null,null,null,"URZĄD SKARBOWY W PŁOŃSKU","1420"]
[null,null,null,null,null,null,null,null,null,null,null,null,null,null,null,null,null,null,null,null,null,null,null,null,null,null,null,null,null,null,null,null,null,"URZĄD SKARBOWY W PODDĘBICACH","1018"]
[null,null,null,null,null,null,null,null,null,null,null,null,null,null,null,null,null,null,null,null,null,null,null,null,null,null,null,null,null,null,null,null,null,"PODLASKI URZĄD SKARBOWY W BIAŁYMSTOKU","2071"]
[null,null,null,null,null,null,null,null,null,null,null,null,null,null,null,null,null,null,null,null,null,null,null,null,null,null,null,null,null,null,null,null,null,"URZĄD SKARBOWY W POLKOWICACH","0234"]
[null,null,null,null,null,null,null,null,null,null,null,null,null,null,null,null,null,null,null,null,null,null,null,null,null,null,null,null,null,null,null,null,null,"URZĄD SKARBOWY POZNAŃ-GRUNWALD","3020"]
[null,null,null,null,null,null,null,null,null,null,null,null,null,null,null,null,null,null,null,null,null,null,null,null,null,null,null,null,null,null,null,null,null,"URZĄD SKARBOWY POZNAŃ-JEŻYCE","3021"]
[null,null,null,null,null,null,null,null,null,null,null,null,null,null,null,null,null,null,null,null,null,null,null,null,null,null,null,null,null,null,null,null,null,"URZĄD SKARBOWY POZNAŃ-NOWE MIASTO","3022"]
[null,null,null,null,null,null,null,null,null,null,null,null,null,null,null,null,null,null,null,null,null,null,null,null,null,null,null,null,null,null,null,null,null,"PIERWSZY URZĄD SKARBOWY W POZNANIU","3023"]
[null,null,null,null,null,null,null,null,null,null,null,null,null,null,null,null,null,null,null,null,null,null,null,null,null,null,null,null,null,null,null,null,null,"URZĄD SKARBOWY POZNAŃ-WINOGRADY","3025"]
[null,null,null,null,null,null,null,null,null,null,null,null,null,null,null,null,null,null,null,null,null,null,null,null,null,null,null,null,null,null,null,null,null,"URZĄD SKARBOWY POZNAŃ-WILDA","3026"]
[null,null,null,null,null,null,null,null,null,null,null,null,null,null,null,null,null,null,null,null,null,null,null,null,null,null,null,null,null,null,null,null,null,"PIERWSZY WIELKOPOLSKI URZĄD SKARBOWY W POZNANIU","3071"]
[null,null,null,null,null,null,null,null,null,null,null,null,null,null,null,null,null,null,null,null,null,null,null,null,null,null,null,null,null,null,null,null,null,"URZĄD SKARBOWY W PROSZOWICACH","1221"]
[null,null,null,null,null,null,null,null,null,null,null,null,null,null,null,null,null,null,null,null,null,null,null,null,null,null,null,null,null,null,null,null,null,"URZĄD SKARBOWY W PRUDNIKU","1611"]
[null,null,null,null,null,null,null,null,null,null,null,null,null,null,null,null,null,null,null,null,null,null,null,null,null,null,null,null,null,null,null,null,null,"URZĄD SKARBOWY W PRUSZCZU GDAŃSKIM","2221"]
[null,null,null,null,null,null,null,null,null,null,null,null,null,null,null,null,null,null,null,null,null,null,null,null,null,null,null,null,null,null,null,null,null,"URZĄD SKARBOWY W PRUSZKOWIE","1421"]
[null,null,null,null,null,null,null,null,null,null,null,null,null,null,null,null,null,null,null,null,null,null,null,null,null,null,null,null,null,null,null,null,null,"URZĄD SKARBOWY W PRZASNYSZU","1422"]
[null,null,null,null,null,null,null,null,null,null,null,null,null,null,null,null,null,null,null,null,null,null,null,null,null,null,null,null,null,null,null,null,null,"URZĄD SKARBOWY W PRZEMYŚLU","1813"]
[null,null,null,null,null,null,null,null,null,null,null,null,null,null,null,null,null,null,null,null,null,null,null,null,null,null,null,null,null,null,null,null,null,"URZĄD SKARBOWY W PRZEWORSKU","1814"]
[null,null,null,null,null,null,null,null,null,null,null,null,null,null,null,null,null,null,null,null,null,null,null,null,null,null,null,null,null,null,null,null,null,"URZĄD SKARBOWY W PRZYSUSZE","1448"]
[null,null,null,null,null,null,null,null,null,null,null,null,null,null,null,null,null,null,null,null,null,null,null,null,null,null,null,null,null,null,null,null,null,"URZĄD SKARBOWY W PSZCZYNIE","2424"]
[null,null,null,null,null,null,null,null,null,null,null,null,null,null,null,null,null,null,null,null,null,null,null,null,null,null,null,null,null,null,null,null,null,"URZĄD SKARBOWY W PUCKU","2215"]
[null,null,null,null,null,null,null,null,null,null,null,null,null,null,null,null,null,null,null,null,null,null,null,null,null,null,null,null,null,null,null,null,null,"URZĄD SKARBOWY W PUŁAWACH","0616"]
[null,null,null,null,null,null,null,null,null,null,null,null,null,null,null,null,null,null,null,null,null,null,null,null,null,null,null,null,null,null,null,null,null,"URZĄD SKARBOWY W PUŁTUSKU","1423"]
[null,null,null,null,null,null,null,null,null,null,null,null,null,null,null,null,null,null,null,null,null,null,null,null,null,null,null,null,null,null,null,null,null,"URZĄD SKARBOWY W PYRZYCACH","3213"]
[null,null,null,null,null,null,null,null,null,null,null,null,null,null,null,null,null,null,null,null,null,null,null,null,null,null,null,null,null,null,null,null,null,"URZĄD SKARBOWY W RACIBORZU","2425"]
[null,null,null,null,null,null,null,null,null,null,null,null,null,null,null,null,null,null,null,null,null,null,null,null,null,null,null,null,null,null,null,null,null,"PIERWSZY URZĄD SKARBOWY W RADOMIU","1424"]
[null,null,null,null,null,null,null,null,null,null,null,null,null,null,null,null,null,null,null,null,null,null,null,null,null,null,null,null,null,null,null,null,null,"DRUGI URZĄD SKARBOWY W RADOMIU","1425"]
[null,null,null,null,null,null,null,null,null,null,null,null,null,null,null,null,null,null,null,null,null,null,null,null,null,null,null,null,null,null,null,null,null,"TRZECI MAZOWIECKI URZĄD SKARBOWY W RADOMIU","1473"]
[null,null,null,null,null,null,null,null,null,null,null,null,null,null,null,null,null,null,null,null,null,null,null,null,null,null,null,null,null,null,null,null,null,"URZĄD SKARBOWY W RADOMSKU","1019"]
[null,null,null,null,null,null,null,null,null,null,null,null,null,null,null,null,null,null,null,null,null,null,null,null,null,null,null,null,null,null,null,null,null,"URZĄD SKARBOWY W RADZIEJOWIE","0413"]
[null,null,null,null,null,null,null,null,null,null,null,null,null,null,null,null,null,null,null,null,null,null,null,null,null,null,null,null,null,null,null,null,null,"URZĄD SKARBOWY W RADZYNIU PODLASKIM","0617"]
[null,null,null,null,null,null,null,null,null,null,null,null,null,null,null,null,null,null,null,null,null,null,null,null,null,null,null,null,null,null,null,null,null,"URZĄD SKARBOWY W RAWICZU","3027"]
[null,null,null,null,null,null,null,null,null,null,null,null,null,null,null,null,null,null,null,null,null,null,null,null,null,null,null,null,null,null,null,null,null,"URZĄD SKARBOWY W RAWIE MAZOWIECKIEJ","1020"]
[null,null,null,null,null,null,null,null,null,null,null,null,null,null,null,null,null,null,null,null,null,null,null,null,null,null,null,null,null,null,null,null,null,"URZĄD SKARBOWY W ROPCZYCACH","1815"]
[null,null,null,null,null,null,null,null,null,null,null,null,null,null,null,null,null,null,null,null,null,null,null,null,null,null,null,null,null,null,null,null,null,"URZĄD SKARBOWY W RUDZIE ŚLĄSKIEJ","2426"]
[null,null,null,null,null,null,null,null,null,null,null,null,null,null,null,null,null,null,null,null,null,null,null,null,null,null,null,null,null,null,null,null,null,"URZĄD SKARBOWY W RYBNIKU","2427"]
[null,null,null,null,null,null,null,null,null,null,null,null,null,null,null,null,null,null,null,null,null,null,null,null,null,null,null,null,null,null,null,null,null,"URZĄD SKARBOWY W RYKACH","0622"]
[null,null,null,null,null,null,null,null,null,null,null,null,null,null,null,null,null,null,null,null,null,null,null,null,null,null,null,null,null,null,null,null,null,"URZĄD SKARBOWY W RYPINIE","0414"]
[null,null,null,null,null,null,null,null,null,null,null,null,null,null,null,null,null,null,null,null,null,null,null,null,null,null,null,null,null,null,null,null,null,"PIERWSZY URZĄD SKARBOWY W RZESZOWIE","1816"]
[null,null,null,null,null,null,null,null,null,null,null,null,null,null,null,null,null,null,null,null,null,null,null,null,null,null,null,null,null,null,null,null,null,"DRUGI URZĄD SKARBOWY W RZESZOWIE","1822"]
[null,null,null,null,null,null,null,null,null,null,null,null,null,null,null,null,null,null,null,null,null,null,null,null,null,null,null,null,null,null,null,null,null,"PODKARPACKI URZĄD SKARBOWY W RZESZOWIE","1871"]
[null,null,null,null,null,null,null,null,null,null,null,null,null,null,null,null,null,null,null,null,null,null,null,null,null,null,null,null,null,null,null,null,null,"URZĄD SKARBOWY W SANDOMIERZU","2610"]
[null,null,null,null,null,null,null,null,null,null,null,null,null,null,null,null,null,null,null,null,null,null,null,null,null,null,null,null,null,null,null,null,null,"URZĄD SKARBOWY W SANOKU","1817"]
[null,null,null,null,null,null,null,null,null,null,null,null,null,null,null,null,null,null,null,null,null,null,null,null,null,null,null,null,null,null,null,null,null,"URZĄD SKARBOWY W SĘPÓLNIE KRAJEŃSKIM","0423"]
[null,null,null,null,null,null,null,null,null,null,null,null,null,null,null,null,null,null,null,null,null,null,null,null,null,null,null,null,null,null,null,null,null,"URZĄD SKARBOWY W SIEDLCACH","1426"]
[null,null,null,null,null,null,null,null,null,null,null,null,null,null,null,null,null,null,null,null,null,null,null,null,null,null,null,null,null,null,null,null,null,"URZĄD SKARBOWY W SIEMIANOWICACH ŚLĄSKICH","2428"]
[null,null,null,null,null,null,null,null,null,null,null,null,null,null,null,null,null,null,null,null,null,null,null,null,null,null,null,null,null,null,null,null,null,"URZĄD SKARBOWY W SIEMIATYCZACH","2010"]
[null,null,null,null,null,null,null,null,null,null,null,null,null,null,null,null,null,null,null,null,null,null,null,null,null,null,null,null,null,null,null,null,null,"URZĄD SKARBOWY W SIERADZU","1021"]
[null,null,null,null,null,null,null,null,null,null,null,null,null,null,null,null,null,null,null,null,null,null,null,null,null,null,null,null,null,null,null,null,null,"URZĄD SKARBOWY W SIERPCU","1427"]
[null,null,null,null,null,null,null,null,null,null,null,null,null,null,null,null,null,null,null,null,null,null,null,null,null,null,null,null,null,null,null,null,null,"URZĄD SKARBOWY W SKARŻYSKU-KAMIENNEJ","2611"]
[null,null,null,null,null,null,null,null,null,null,null,null,null,null,null,null,null,null,null,null,null,null,null,null,null,null,null,null,null,null,null,null,null,"URZĄD SKARBOWY W SKIERNIEWICACH","1022"]
[null,null,null,null,null,null,null,null,null,null,null,null,null,null,null,null,null,null,null,null,null,null,null,null,null,null,null,null,null,null,null,null,null,"URZĄD SKARBOWY W SŁUBICACH","0806"]
[null,null,null,null,null,null,null,null,null,null,null,null,null,null,null,null,null,null,null,null,null,null,null,null,null,null,null,null,null,null,null,null,null,"URZĄD SKARBOWY W SŁUPCY","3028"]
[null,null,null,null,null,null,null,null,null,null,null,null,null,null,null,null,null,null,null,null,null,null,null,null,null,null,null,null,null,null,null,null,null,"URZĄD SKARBOWY W SŁUPSKU","2216"]
[null,null,null,null,null,null,null,null,null,null,null,null,null,null,null,null,null,null,null,null,null,null,null,null,null,null,null,null,null,null,null,null,null,"URZĄD SKARBOWY W SOCHACZEWIE","1428"]
[null,null,null,null,null,null,null,null,null,null,null,null,null,null,null,null,null,null,null,null,null,null,null,null,null,null,null,null,null,null,null,null,null,"URZĄD SKARBOWY W SOKOŁOWIE PODLASKIM","1429"]
[null,null,null,null,null,null,null,null,null,null,null,null,null,null,null,null,null,null,null,null,null,null,null,null,null,null,null,null,null,null,null,null,null,"URZĄD SKARBOWY W SOKÓŁCE","2011"]
[null,null,null,null,null,null,null,null,null,null,null,null,null,null,null,null,null,null,null,null,null,null,null,null,null,null,null,null,null,null,null,null,null,"URZĄD SKARBOWY W SOPOCIE","2217"]
[null,null,null,null,null,null,null,null,null,null,null,null,null,null,null,null,null,null,null,null,null,null,null,null,null,null,null,null,null,null,null,null,null,"URZĄD SKARBOWY W SOSNOWCU","2429"]
[null,null,null,null,null,null,null,null,null,null,null,null,null,null,null,null,null,null,null,null,null,null,null,null,null,null,null,null,null,null,null,null,null,"PIERWSZY ŚLĄSKI URZĄD SKARBOWY W SOSNOWCU","2471"]
[null,null,null,null,null,null,null,null,null,null,null,null,null,null,null,null,null,null,null,null,null,null,null,null,null,null,null,null,null,null,null,null,null,"URZĄD SKARBOWY W STALOWEJ WOLI","1818"]
[null,null,null,null,null,null,null,null,null,null,null,null,null,null,null,null,null,null,null,null,null,null,null,null,null,null,null,null,null,null,null,null,null,"URZĄD SKARBOWY W STARACHOWICACH","2612"]
[null,null,null,null,null,null,null,null,null,null,null,null,null,null,null,null,null,null,null,null,null,null,null,null,null,null,null,null,null,null,null,null,null,"URZĄD SKARBOWY W STARGARDZIE","3214"]
[null,null,null,null,null,null,null,null,null,null,null,null,null,null,null,null,null,null,null,null,null,null,null,null,null,null,null,null,null,null,null,null,null,"URZĄD SKARBOWY W STAROGARDZIE GDAŃSKIM","2218"]
[null,null,null,null,null,null,null,null,null,null,null,null,null,null,null,null,null,null,null,null,null,null,null,null,null,null,null,null,null,null,null,null,null,"URZĄD SKARBOWY W STASZOWIE","2613"]
[null,null,null,null,null,null,null,null,null,null,null,null,null,null,null,null,null,null,null,null,null,null,null,null,null,null,null,null,null,null,null,null,null,"URZĄD SKARBOWY W STRZELCACH OPOLSKICH","1612"]
[null,null,null,null,null,null,null,null,null,null,null,null,null,null,null,null,null,null,null,null,null,null,null,null,null,null,null,null,null,null,null,null,null,"URZĄD SKARBOWY W STRZELINIE","0218"]
[null,null,null,null,null,null,null,null,null,null,null,null,null,null,null,null,null,null,null,null,null,null,null,null,null,null,null,null,null,null,null,null,null,"URZĄD SKARBOWY W STRZYŻOWIE","1819"]
[null,null,null,null,null,null,null,null,null,null,null,null,null,null,null,null,null,null,null,null,null,null,null,null,null,null,null,null,null,null,null,null,null,"URZĄD SKARBOWY W SUCHEJ BESKIDZKIEJ","1222"]
[null,null,null,null,null,null,null,null,null,null,null,null,null,null,null,null,null,null,null,null,null,null,null,null,null,null,null,null,null,null,null,null,null,"URZĄD SKARBOWY W SULĘCINIE","0813"]
[null,null,null,null,null,null,null,null,null,null,null,null,null,null,null,null,null,null,null,null,null,null,null,null,null,null,null,null,null,null,null,null,null,"URZĄD SKARBOWY W SUWAŁKACH","2012"]
[null,null,null,null,null,null,null,null,null,null,null,null,null,null,null,null,null,null,null,null,null,null,null,null,null,null,null,null,null,null,null,null,null,"URZĄD SKARBOWY W SZAMOTUŁACH","3029"]
[null,null,null,null,null,null,null,null,null,null,null,null,null,null,null,null,null,null,null,null,null,null,null,null,null,null,null,null,null,null,null,null,null,"PIERWSZY URZĄD SKARBOWY W SZCZECINIE","3215"]
[null,null,null,null,null,null,null,null,null,null,null,null,null,null,null,null,null,null,null,null,null,null,null,null,null,null,null,null,null,null,null,null,null,"DRUGI URZĄD SKARBOWY W SZCZECINIE","3216"]
[null,null,null,null,null,null,null,null,null,null,null,null,null,null,null,null,null,null,null,null,null,null,null,null,null,null,null,null,null,null,null,null,null,"TRZECI URZĄD SKARBOWY W SZCZECINIE","3217"]
[null,null,null,null,null,null,null,null,null,null,null,null,null,null,null,null,null,null,null,null,null,null,null,null,null,null,null,null,null,null,null,null,null,"ZACHODNIOPOMORSKI URZĄD SKARBOWY W SZCZECINIE","3271"]
[null,null,null,null,null,null,null,null,null,null,null,null,null,null,null,null,null,null,null,null,null,null,null,null,null,null,null,null,null,null,null,null,null,"URZĄD SKARBOWY W SZCZECINKU","3218"]
[null,null,null,null,null,null,null,null,null,null,null,null,null,null,null,null,null,null,null,null,null,null,null,null,null,null,null,null,null,null,null,null,null,"URZĄD SKARBOWY W SZCZYTNIE","2816"]
[null,null,null,null,null,null,null,null,null,null,null,null,null,null,null,null,null,null,null,null,null,null,null,null,null,null,null,null,null,null,null,null,null,"URZĄD SKARBOWY W SZYDŁOWCU","1430"]
[null,null,null,null,null,null,null,null,null,null,null,null,null,null,null,null,null,null,null,null,null,null,null,null,null,null,null,null,null,null,null,null,null,"URZĄD SKARBOWY W ŚREMIE","3030"]
[null,null,null,null,null,null,null,null,null,null,null,null,null,null,null,null,null,null,null,null,null,null,null,null,null,null,null,null,null,null,null,null,null,"URZĄD SKARBOWY W ŚRODZIE ŚLĄSKIEJ","0219"]
[null,null,null,null,null,null,null,null,null,null,null,null,null,null,null,null,null,null,null,null,null,null,null,null,null,null,null,null,null,null,null,null,null,"URZĄD SKARBOWY W ŚRODZIE WIELKOPOLSKIEJ","3031"]
[null,null,null,null,null,null,null,null,null,null,null,null,null,null,null,null,null,null,null,null,null,null,null,null,null,null,null,null,null,null,null,null,null,"URZĄD SKARBOWY W ŚWIDNICY","0220"]
[null,null,null,null,null,null,null,null,null,null,null,null,null,null,null,null,null,null,null,null,null,null,null,null,null,null,null,null,null,null,null,null,null,"URZĄD SKARBOWY W ŚWIEBODZINIE","0807"]
[null,null,null,null,null,null,null,null,null,null,null,null,null,null,null,null,null,null,null,null,null,null,null,null,null,null,null,null,null,null,null,null,null,"URZĄD SKARBOWY W ŚWIECIU","0415"]
[null,null,null,null,null,null,null,null,null,null,null,null,null,null,null,null,null,null,null,null,null,null,null,null,null,null,null,null,null,null,null,null,null,"ŚWIĘTOKRZYSKI URZĄD SKARBOWY W KIELCACH","2671"]
[null,null,null,null,null,null,null,null,null,null,null,null,null,null,null,null,null,null,null,null,null,null,null,null,null,null,null,null,null,null,null,null,null,"URZĄD SKARBOWY W ŚWINOUJŚCIU","3219"]
[null,null,null,null,null,null,null,null,null,null,null,null,null,null,null,null,null,null,null,null,null,null,null,null,null,null,null,null,null,null,null,null,null,"URZĄD SKARBOWY W TARNOBRZEGU","1820"]
[null,null,null,null,null,null,null,null,null,null,null,null,null,null,null,null,null,null,null,null,null,null,null,null,null,null,null,null,null,null,null,null,null,"PIERWSZY URZĄD SKARBOWY W TARNOWIE","1223"]
[null,null,null,null,null,null,null,null,null,null,null,null,null,null,null,null,null,null,null,null,null,null,null,null,null,null,null,null,null,null,null,null,null,"DRUGI URZĄD SKARBOWY W TARNOWIE","1224"]
[null,null,null,null,null,null,null,null,null,null,null,null,null,null,null,null,null,null,null,null,null,null,null,null,null,null,null,null,null,null,null,null,null,"URZĄD SKARBOWY W TARNOWSKICH GÓRACH","2430"]
[null,null,null,null,null,null,null,null,null,null,null,null,null,null,null,null,null,null,null,null,null,null,null,null,null,null,null,null,null,null,null,null,null,"URZĄD SKARBOWY W TCZEWIE","2219"]
[null,null,null,null,null,null,null,null,null,null,null,null,null,null,null,null,null,null,null,null,null,null,null,null,null,null,null,null,null,null,null,null,null,"URZĄD SKARBOWY W TOMASZOWIE LUBELSKIM","0618"]
[null,null,null,null,null,null,null,null,null,null,null,null,null,null,null,null,null,null,null,null,null,null,null,null,null,null,null,null,null,null,null,null,null,"URZĄD SKARBOWY W TOMASZOWIE MAZOWIECKIM","1023"]
[null,null,null,null,null,null,null,null,null,null,null,null,null,null,null,null,null,null,null,null,null,null,null,null,null,null,null,null,null,null,null,null,null,"PIERWSZY URZĄD SKARBOWY W TORUNIU","0416"]
[null,null,null,null,null,null,null,null,null,null,null,null,null,null,null,null,null,null,null,null,null,null,null,null,null,null,null,null,null,null,null,null,null,"DRUGI URZĄD SKARBOWY W TORUNIU","0417"]
[null,null,null,null,null,null,null,null,null,null,null,null,null,null,null,null,null,null,null,null,null,null,null,null,null,null,null,null,null,null,null,null,null,"URZĄD SKARBOWY W TRZEBNICY","0221"]
[null,null,null,null,null,null,null,null,null,null,null,null,null,null,null,null,null,null,null,null,null,null,null,null,null,null,null,null,null,null,null,null,null,"URZĄD SKARBOWY W TUCHOLI","0418"]
[null,null,null,null,null,null,null,null,null,null,null,null,null,null,null,null,null,null,null,null,null,null,null,null,null,null,null,null,null,null,null,null,null,"URZĄD SKARBOWY W TURKU","3032"]
[null,null,null,null,null,null,null,null,null,null,null,null,null,null,null,null,null,null,null,null,null,null,null,null,null,null,null,null,null,null,null,null,null,"URZĄD SKARBOWY W TYCHACH","2431"]
[null,null,null,null,null,null,null,null,null,null,null,null,null,null,null,null,null,null,null,null,null,null,null,null,null,null,null,null,null,null,null,null,null,"URZĄD SKARBOWY W USTRZYKACH DOLNYCH","1821"]
[null,null,null,null,null,null,null,null,null,null,null,null,null,null,null,null,null,null,null,null,null,null,null,null,null,null,null,null,null,null,null,null,null,"URZĄD SKARBOWY W WADOWICACH","1225"]
[null,null,null,null,null,null,null,null,null,null,null,null,null,null,null,null,null,null,null,null,null,null,null,null,null,null,null,null,null,null,null,null,null,"URZĄD SKARBOWY W WAŁBRZYCHU","0222"]
[null,null,null,null,null,null,null,null,null,null,null,null,null,null,null,null,null,null,null,null,null,null,null,null,null,null,null,null,null,null,null,null,null,"URZĄD SKARBOWY W WAŁCZU","3220"]
[null,null,null,null,null,null,null,null,null,null,null,null,null,null,null,null,null,null,null,null,null,null,null,null,null,null,null,null,null,null,null,null,null,"URZĄD SKARBOWY WARSZAWA-BEMOWO","1431"]
[null,null,null,null,null,null,null,null,null,null,null,null,null,null,null,null,null,null,null,null,null,null,null,null,null,null,null,null,null,null,null,null,null,"URZĄD SKARBOWY WARSZAWA-BIELANY","1432"]
[null,null,null,null,null,null,null,null,null,null,null,null,null,null,null,null,null,null,null,null,null,null,null,null,null,null,null,null,null,null,null,null,null,"URZĄD SKARBOWY WARSZAWA-MOKOTÓW","1433"]
[null,null,null,null,null,null,null,null,null,null,null,null,null,null,null,null,null,null,null,null,null,null,null,null,null,null,null,null,null,null,null,null,null,"URZĄD SKARBOWY WARSZAWA-PRAGA","1434"]
[null,null,null,null,null,null,null,null,null,null,null,null,null,null,null,null,null,null,null,null,null,null,null,null,null,null,null,null,null,null,null,null,null,"PIERWSZY URZĄD SKARBOWY WARSZAWA-ŚRÓDMIEŚCIE","1435"]
[null,null,null,null,null,null,null,null,null,null,null,null,null,null,null,null,null,null,null,null,null,null,null,null,null,null,null,null,null,null,null,null,null,"DRUGI URZĄD SKARBOWY WARSZAWA-ŚRÓDMIEŚCIE","1436"]
[null,null,null,null,null,null,null,null,null,null,null,null,null,null,null,null,null,null,null,null,null,null,null,null,null,null,null,null,null,null,null,null,null,"TRZECI URZĄD SKARBOWY WARSZAWA-ŚRÓDMIEŚCIE","1449"]
[null,null,null,null,null,null,null,null,null,null,null,null,null,null,null,null,null,null,null,null,null,null,null,null,null,null,null,null,null,null,null,null,null,"URZĄD SKARBOWY WARSZAWA-TARGÓWEK","1437"]
[null,null,null,null,null,null,null,null,null,null,null,null,null,null,null,null,null,null,null,null,null,null,null,null,null,null,null,null,null,null,null,null,null,"URZĄD SKARBOWY WARSZAWA-URSYNÓW","1438"]
[null,null,null,null,null,null,null,null,null,null,null,null,null,null,null,null,null,null,null,null,null,null,null,null,null,null,null,null,null,null,null,null,null,"URZĄD SKARBOWY WARSZAWA-WAWER","1439"]
[null,null,null,null,null,null,null,null,null,null,null,null,null,null,null,null,null,null,null,null,null,null,null,null,null,null,null,null,null,null,null,null,null,"URZĄD SKARBOWY WARSZAWA-WOLA","1440"]
[null,null,null,null,null,null,null,null,null,null,null,null,null,null,null,null,null,null,null,null,null,null,null,null,null,null,null,null,null,null,null,null,null,"PIERWSZY MAZOWIECKI URZĄD SKARBOWY W WARSZAWIE","1471"]
[null,null,null,null,null,null,null,null,null,null,null,null,null,null,null,null,null,null,null,null,null,null,null,null,null,null,null,null,null,null,null,null,null,"DRUGI MAZOWIECKI URZĄD SKARBOWY W WARSZAWIE","1472"]
[null,null,null,null,null,null,null,null,null,null,null,null,null,null,null,null,null,null,null,null,null,null,null,null,null,null,null,null,null,null,null,null,null,"URZĄD SKARBOWY W WĄBRZEŹNIE","0419"]
[null,null,null,null,null,null,null,null,null,null,null,null,null,null,null,null,null,null,null,null,null,null,null,null,null,null,null,null,null,null,null,null,null,"URZĄD SKARBOWY W WĄGROWCU","3033"]
[null,null,null,null,null,null,null,null,null,null,null,null,null,null,null,null,null,null,null,null,null,null,null,null,null,null,null,null,null,null,null,null,null,"URZĄD SKARBOWY W WĘGROWIE","1441"]
[null,null,null,null,null,null,null,null,null,null,null,null,null,null,null,null,null,null,null,null,null,null,null,null,null,null,null,null,null,null,null,null,null,"URZĄD SKARBOWY W WIELICZCE","1226"]
[null,null,null,null,null,null,null,null,null,null,null,null,null,null,null,null,null,null,null,null,null,null,null,null,null,null,null,null,null,null,null,null,null,"URZĄD SKARBOWY W WIELUNIU","1024"]
[null,null,null,null,null,null,null,null,null,null,null,null,null,null,null,null,null,null,null,null,null,null,null,null,null,null,null,null,null,null,null,null,null,"URZĄD SKARBOWY W WIERUSZOWIE","1027"]
[null,null,null,null,null,null,null,null,null,null,null,null,null,null,null,null,null,null,null,null,null,null,null,null,null,null,null,null,null,null,null,null,null,"URZĄD SKARBOWY WE WŁOCŁAWKU","0420"]
[null,null,null,null,null,null,null,null,null,null,null,null,null,null,null,null,null,null,null,null,null,null,null,null,null,null,null,null,null,null,null,null,null,"URZĄD SKARBOWY WE WŁODAWIE","0619"]
[null,null,null,null,null,null,null,null,null,null,null,null,null,null,null,null,null,null,null,null,null,null,null,null,null,null,null,null,null,null,null,null,null,"URZĄD SKARBOWY WE WŁOSZCZOWIE","2615"]
[null,null,null,null,null,null,null,null,null,null,null,null,null,null,null,null,null,null,null,null,null,null,null,null,null,null,null,null,null,null,null,null,null,"URZĄD SKARBOWY W WODZISŁAWIU ŚLĄSKIM","2432"]
[null,null,null,null,null,null,null,null,null,null,null,null,null,null,null,null,null,null,null,null,null,null,null,null,null,null,null,null,null,null,null,null,null,"URZĄD SKARBOWY W WOLSZTYNIE","3034"]
[null,null,null,null,null,null,null,null,null,null,null,null,null,null,null,null,null,null,null,null,null,null,null,null,null,null,null,null,null,null,null,null,null,"URZĄD SKARBOWY W WOŁOMINIE","1442"]
[null,null,null,null,null,null,null,null,null,null,null,null,null,null,null,null,null,null,null,null,null,null,null,null,null,null,null,null,null,null,null,null,null,"URZĄD SKARBOWY W WOŁOWIE","0223"]
[null,null,null,null,null,null,null,null,null,null,null,null,null,null,null,null,null,null,null,null,null,null,null,null,null,null,null,null,null,null,null,null,null,"PIERWSZY URZĄD SKARBOWY WE WROCŁAWIU","0229"]
[null,null,null,null,null,null,null,null,null,null,null,null,null,null,null,null,null,null,null,null,null,null,null,null,null,null,null,null,null,null,null,null,null,"URZĄD SKARBOWY WROCŁAW-FABRYCZNA","0224"]
[null,null,null,null,null,null,null,null,null,null,null,null,null,null,null,null,null,null,null,null,null,null,null,null,null,null,null,null,null,null,null,null,null,"URZĄD SKARBOWY WROCŁAW-KRZYKI","0225"]
[null,null,null,null,null,null,null,null,null,null,null,null,null,null,null,null,null,null,null,null,null,null,null,null,null,null,null,null,null,null,null,null,null,"URZĄD SKARBOWY WROCŁAW-PSIE POLE","0226"]
[null,null,null,null,null,null,null,null,null,null,null,null,null,null,null,null,null,null,null,null,null,null,null,null,null,null,null,null,null,null,null,null,null,"URZĄD SKARBOWY WROCŁAW-STARE MIASTO","0227"]
[null,null,null,null,null,null,null,null,null,null,null,null,null,null,null,null,null,null,null,null,null,null,null,null,null,null,null,null,null,null,null,null,null,"URZĄD SKARBOWY WROCŁAW-ŚRÓDMIEŚCIE","0228"]
[null,null,null,null,null,null,null,null,null,null,null,null,null,null,null,null,null,null,null,null,null,null,null,null,null,null,null,null,null,null,null,null,null,"DOLNOŚLĄSKI URZĄD SKARBOWY WE WROCŁAWIU","0271"]
[null,null,null,null,null,null,null,null,null,null,null,null,null,null,null,null,null,null,null,null,null,null,null,null,null,null,null,null,null,null,null,null,null,"URZĄD SKARBOWY WE WRZEŚNI","3035"]
[null,null,null,null,null,null,null,null,null,null,null,null,null,null,null,null,null,null,null,null,null,null,null,null,null,null,null,null,null,null,null,null,null,"URZĄD SKARBOWY WE WSCHOWIE","0814"]
[null,null,null,null,null,null,null,null,null,null,null,null,null,null,null,null,null,null,null,null,null,null,null,null,null,null,null,null,null,null,null,null,null,"URZĄD SKARBOWY W WYSOKIEM MAZOWIECKIEM","2013"]
[null,null,null,null,null,null,null,null,null,null,null,null,null,null,null,null,null,null,null,null,null,null,null,null,null,null,null,null,null,null,null,null,null,"URZĄD SKARBOWY W WYSZKOWIE","1443"]
[null,null,null,null,null,null,null,null,null,null,null,null,null,null,null,null,null,null,null,null,null,null,null,null,null,null,null,null,null,null,null,null,null,"URZĄD SKARBOWY W ZABRZU","2433"]
[null,null,null,null,null,null,null,null,null,null,null,null,null,null,null,null,null,null,null,null,null,null,null,null,null,null,null,null,null,null,null,null,null,"URZĄD SKARBOWY W ZAKOPANEM","1227"]
[null,null,null,null,null,null,null,null,null,null,null,null,null,null,null,null,null,null,null,null,null,null,null,null,null,null,null,null,null,null,null,null,null,"URZĄD SKARBOWY W ZAMBROWIE","2014"]
[null,null,null,null,null,null,null,null,null,null,null,null,null,null,null,null,null,null,null,null,null,null,null,null,null,null,null,null,null,null,null,null,null,"URZĄD SKARBOWY W ZAMOŚCIU","0620"]
[null,null,null,null,null,null,null,null,null,null,null,null,null,null,null,null,null,null,null,null,null,null,null,null,null,null,null,null,null,null,null,null,null,"URZĄD SKARBOWY W ZAWIERCIU","2434"]
[null,null,null,null,null,null,null,null,null,null,null,null,null,null,null,null,null,null,null,null,null,null,null,null,null,null,null,null,null,null,null,null,null,"URZĄD SKARBOWY W ZĄBKOWICACH ŚLĄSKICH","0230"]
[null,null,null,null,null,null,null,null,null,null,null,null,null,null,null,null,null,null,null,null,null,null,null,null,null,null,null,null,null,null,null,null,null,"URZĄD SKARBOWY W ZDUŃSKIEJ WOLI","1025"]
[null,null,null,null,null,null,null,null,null,null,null,null,null,null,null,null,null,null,null,null,null,null,null,null,null,null,null,null,null,null,null,null,null,"URZĄD SKARBOWY W ZGIERZU","1026"]
[null,null,null,null,null,null,null,null,null,null,null,null,null,null,null,null,null,null,null,null,null,null,null,null,null,null,null,null,null,null,null,null,null,"URZĄD SKARBOWY W ZGORZELCU","0231"]
[null,null,null,null,null,null,null,null,null,null,null,null,null,null,null,null,null,null,null,null,null,null,null,null,null,null,null,null,null,null,null,null,null,"PIERWSZY URZĄD SKARBOWY W ZIELONEJ GÓRZE","0808"]
[null,null,null,null,null,null,null,null,null,null,null,null,null,null,null,null,null,null,null,null,null,null,null,null,null,null,null,null,null,null,null,null,null,"DRUGI URZĄD SKARBOWY W ZIELONEJ GÓRZE","0809"]
[null,null,null,null,null,null,null,null,null,null,null,null,null,null,null,null,null,null,null,null,null,null,null,null,null,null,null,null,null,null,null,null,null,"LUBUSKI URZĄD SKARBOWY W ZIELONEJ GÓRZE","0871"]
[null,null,null,null,null,null,null,null,null,null,null,null,null,null,null,null,null,null,null,null,null,null,null,null,null,null,null,null,null,null,null,null,null,"URZĄD SKARBOWY W ZŁOTORYI","0232"]
[null,null,null,null,null,null,null,null,null,null,null,null,null,null,null,null,null,null,null,null,null,null,null,null,null,null,null,null,null,null,null,null,null,"URZĄD SKARBOWY W ZŁOTOWIE","3036"]
[null,null,null,null,null,null,null,null,null,null,null,null,null,null,null,null,null,null,null,null,null,null,null,null,null,null,null,null,null,null,null,null,null,"URZĄD SKARBOWY W ZWOLENIU","1444"]
[null,null,null,null,null,null,null,null,null,null,null,null,null,null,null,null,null,null,null,null,null,null,null,null,null,null,null,null,null,null,null,null,null,"URZĄD SKARBOWY W ŻAGANIU","0810"]
[null,null,null,null,null,null,null,null,null,null,null,null,null,null,null,null,null,null,null,null,null,null,null,null,null,null,null,null,null,null,null,null,null,"URZĄD SKARBOWY W ŻARACH","0811"]
[null,null,null,null,null,null,null,null,null,null,null,null,null,null,null,null,null,null,null,null,null,null,null,null,null,null,null,null,null,null,null,null,null,"URZĄD SKARBOWY W ŻNINIE","0421"]
[null,null,null,null,null,null,null,null,null,null,null,null,null,null,null,null,null,null,null,null,null,null,null,null,null,null,null,null,null,null,null,null,null,"URZĄD SKARBOWY W ŻORACH","2435"]
[null,null,null,null,null,null,null,null,null,null,null,null,null,null,null,null,null,null,null,null,null,null,null,null,null,null,null,null,null,null,null,null,null,"URZĄD SKARBOWY W ŻUROMINIE","1445"]
[null,null,null,null,null,null,null,null,null,null,null,null,null,null,null,null,null,null,null,null,null,null,null,null,null,null,null,null,null,null,null,null,null,"URZĄD SKARBOWY W ŻYRARDOWIE","1446"]
[null,null,null,null,null,null,null,null,null,null,null,null,null,null,null,null,null,null,null,null,null,null,null,null,null,null,null,null,null,null,null,null,null,"URZĄD SKARBOWY W ŻYWCU","2436"]

{"sheet":"VAT-ZD","index":4,"n_rows":288,"n_cols":243,"rows_kept":288,"cut":false,"hidden":true,"merged":[[88,50,88,51],[87,1,87,17],[87,18,87,23],[89,50,89,51],[187,42,187,47],[187,48,187,49],[118,48,118,49],[120,42,120,47],[120,48,120,49],[121,48,121,49],[187,50,187,51],[187,0,187,41],[117,42,117,47],[117,48,117,49],[117,50,117,51],[118,1,118,17],[118,18,118,23],[118,24,118,33],[118,34,118,41],[118,42,118,47],[118,50,118,51],[117,1,117,17],[117,18,117,23],[119,50,119,51],[117,24,117,33],[117,34,117,41],[120,1,120,17],[120,18,120,23],[120,24,120,33],[120,34,120,41],[120,50,120,51],[119,1,119,17],[285,9,286,9],[285,10,286,10],[285,11,286,11],[285,12,286,13],[282,39,285,39],[282,40,286,40],[282,9,282,10],[284,19,284,23],[283,28,283,29],[283,32,283,33],[283,34,283,36],[283,14,283,15],[83,1,83,52],[84,1,84,52],[85,1,85,17],[89,1,89,17],[89,18,89,23],[89,24,89,33],[89,34,89,41],[89,42,89,47],[89,48,89,49],[86,1,86,17],[87,48,87,49],[85,50,85,51],[86,50,86,51],[87,50,87,51],[88,1,88,17],[88,18,88,23],[88,24,88,33],[88,34,88,41],[88,42,88,47],[88,48,88,49],[282,32,282,33],[283,26,283,27],[282,14,282,15],[282,19,282,21],[282,22,282,23],[278,39,279,39],[278,40,279,40],[278,42,287,42],[278,17,279,17],[278,18,279,18],[278,19,279,21],[278,22,279,23],[288,2,288,44],[289,2,289,45],[287,28,287,30],[287,31,287,33],[287,34,287,38],[287,39,287,40],[285,28,286,30],[285,31,286,33],[285,34,286,38],[286,2,287,3],[287,9,287,10],[287,12,287,13],[287,14,287,16],[287,17,287,18],[287,19,287,23],[287,24,287,27],[285,14,286,16],[285,17,286,18],[285,19,286,23],[285,24,286,27],[279,45,280,45],[280,40,281,40],[281,45,287,45],[282,41,287,41],[282,43,287,43],[282,44,287,44],[278,31,279,31],[278,32,279,33],[278,34,279,36],[278,37,279,38],[278,24,279,25],[278,26,279,27],[278,28,279,29],[278,30,279,30],[280,32,281,33],[280,34,281,36],[280,24,281,25],[280,37,281,38],[280,39,281,39],[280,26,281,27],[280,28,281,29],[280,30,281,30],[280,31,281,31],[284,24,284,27],[284,28,284,30],[284,31,284,33],[284,34,284,38],[283,24,283,25],[282,34,282,36],[282,37,282,38],[283,37,283,38],[282,24,282,25],[278,12,279,12],[278,13,279,13],[278,14,279,15],[278,16,279,16],[277,34,277,36],[277,37,277,38],[278,2,285,2],[278,3,285,3],[278,4,287,4],[278,5,287,5],[278,6,287,8],[278,9,279,9],[278,10,279,10],[278,11,279,11],[280,18,281,18],[280,19,281,21],[280,22,281,23],[280,13,281,13],[280,14,281,15],[280,16,281,16],[280,17,281,17],[280,9,281,9],[280,10,281,10],[280,11,281,11],[280,12,281,12],[284,12,284,13],[284,14,284,16],[284,17,284,18],[283,19,283,21],[283,22,283,23],[282,26,282,27],[282,28,282,29],[82,2,82,45],[82,46,82,51],[277,6,277,8],[277,14,277,15],[277,19,277,21],[277,22,277,23],[277,24,277,25],[277,26,277,27],[277,28,277,29],[277,32,277,33],[79,2,79,45],[79,46,79,51],[80,2,81,45],[80,46,81,48],[80,49,80,51],[81,49,81,50],[73,2,74,7],[77,2,77,45],[77,46,77,51],[78,2,78,45],[78,46,78,51],[75,2,76,7],[75,8,75,46],[75,48,75,49],[75,50,75,51],[76,8,76,46],[76,48,76,49],[76,50,76,51],[73,48,74,49],[87,24,87,33],[87,34,87,41],[87,42,87,47],[69,50,70,51],[71,50,72,51],[73,50,74,51],[69,39,70,47],[69,48,70,49],[71,39,72,47],[71,48,72,49],[73,8,74,20],[73,21,74,28],[73,29,73,38],[73,39,74,47],[74,29,74,38],[71,2,72,7],[71,8,72,20],[71,21,72,28],[71,29,71,38],[72,29,72,38],[69,2,70,7],[69,8,70,20],[69,21,70,28],[69,29,69,38],[70,29,70,38],[67,39,68,47],[67,48,68,49],[67,50,68,51],[68,29,68,38],[67,2,68,7],[67,8,68,20],[67,21,68,28],[67,29,67,38],[65,39,66,47],[65,48,66,49],[65,50,66,51],[66,29,66,38],[65,2,66,7],[65,8,66,20],[65,21,66,28],[65,29,65,38],[63,39,64,47],[63,48,64,49],[63,50,64,51],[64,29,64,38],[63,2,64,7],[63,8,64,20],[63,21,64,28],[63,29,63,38],[61,39,62,47],[61,48,62,49],[61,50,62,51],[62,29,62,38],[60,29,60,38],[61,2,62,7],[61,8,62,20],[61,21,62,28],[61,29,61,38],[58,50,58,51],[59,2,60,7],[59,8,60,20],[59,21,60,28],[59,29,59,38],[59,39,60,47],[59,48,60,49],[59,50,60,51],[58,2,58,7],[58,8,58,20],[58,21,58,28],[58,29,58,38],[56,39,56,47],[56,48,56,49],[56,2,57,7],[58,39,58,47],[58,48,58,49],[56,50,56,51],[57,8,57,20],[57,21,57,28],[57,29,57,38],[57,39,57,47],[57,48,57,49],[57,50,57,51],[56,8,56,20],[56,21,56,28],[56,29,56,38],[53,2,53,45],[53,46,53,51],[54,2,54,45],[54,46,54,51],[48,2,48,45],[49,2,49,45],[50,2,50,45],[51,2,52,11],[51,12,51,51],[52,12,52,51],[44,2,44,45],[45,2,45,45],[46,2,46,45],[47,2,47,35],[47,36,47,41],[47,42,47,45],[40,2,40,45],[41,2,41,45],[42,2,42,45],[43,2,43,45],[36,2,36,45],[37,2,37,45],[38,2,38,45],[39,2,39,45],[32,2,32,45],[33,2,33,45],[34,2,34,45],[35,2,35,45],[30,2,30,6],[30,7,30,45],[31,2,31,6],[31,7,31,45],[28,2,28,6],[28,7,28,45],[29,2,29,6],[29,7,29,12],[29,13,29,32],[29,33,29,45],[26,2,26,6],[26,7,26,22],[26,23,26,45],[27,2,27,45],[20,2,20,10],[20,11,20,45],[21,2,21,10],[21,11,21,45],[18,2,18,10],[18,11,18,45],[19,2,19,10],[19,11,19,45],[15,2,15,45],[16,2,16,45],[17,2,17,10],[17,11,17,45],[13,27,13,32],[13,33,14,34],[13,35,13,45],[14,15,14,19],[14,23,14,26],[14,27,14,32],[13,2,14,14],[13,15,13,19],[13,20,14,22],[13,23,13,26],[9,2,9,45],[10,2,10,45],[11,2,11,45],[12,2,12,45],[86,18,86,23],[85,18,85,23],[85,24,85,33],[86,24,86,33],[6,2,6,45],[7,2,7,24],[7,25,8,37],[7,38,8,45],[8,2,8,24],[14,35,14,45],[85,42,85,47],[85,48,85,49],[0,0,0,24],[0,25,0,46],[1,1,1,45],[2,2,2,45],[3,2,4,9],[3,10,3,45],[4,10,4,45],[5,2,5,45],[86,34,86,41],[86,42,86,47],[86,48,86,49],[85,34,85,41],[22,2,22,45],[23,2,23,45],[24,2,24,45],[25,2,25,45],[90,1,90,17],[90,18,90,23],[90,24,90,33],[90,34,90,41],[90,42,90,47],[90,48,90,49],[90,50,90,51],[91,50,91,51],[92,1,92,17],[92,18,92,23],[92,24,92,33],[92,34,92,41],[92,42,92,47],[92,48,92,49],[92,50,92,51],[91,1,91,17],[91,18,91,23],[91,24,91,33],[91,34,91,41],[91,42,91,47],[91,48,91,49],[93,50,93,51],[94,1,94,17],[94,18,94,23],[94,24,94,33],[94,34,94,41],[94,42,94,47],[94,48,94,49],[94,50,94,51],[93,1,93,17],[93,18,93,23],[95,50,95,51],[96,1,96,17],[96,18,96,23],[96,24,96,33],[96,34,96,41],[96,42,96,47],[96,48,96,49],[96,50,96,51],[95,1,95,17],[95,18,95,23],[93,24,93,33],[93,34,93,41],[93,42,93,47],[93,48,93,49],[95,24,95,33],[95,34,95,41],[95,42,95,47],[95,48,95,49],[97,50,97,51],[98,1,98,17],[98,18,98,23],[98,24,98,33],[98,34,98,41],[98,42,98,47],[98,48,98,49],[98,50,98,51],[97,1,97,17],[97,18,97,23],[99,50,99,51],[100,1,100,17],[100,18,100,23],[100,24,100,33],[100,34,100,41],[100,42,100,47],[100,48,100,49],[100,50,100,51],[99,1,99,17],[99,18,99,23],[99,24,99,33],[99,34,99,41],[99,42,99,47],[99,48,99,49],[97,24,97,33],[97,34,97,41],[97,42,97,47],[97,48,97,49],[101,50,101,51],[102,1,102,17],[102,18,102,23],[102,24,102,33],[102,34,102,41],[102,42,102,47],[102,48,102,49],[102,50,102,51],[101,1,101,17],[101,18,101,23],[103,50,103,51],[104,1,104,17],[104,18,104,23],[104,24,104,33],[104,34,104,41],[104,42,104,47],[104,48,104,49],[104,50,104,51],[103,1,103,17],[103,18,103,23],[103,24,103,33],[103,34,103,41],[103,42,103,47],[103,48,103,49],[101,24,101,33],[101,34,101,41],[101,42,101,47],[101,48,101,49],[105,50,105,51],[106,1,106,17],[106,18,106,23],[106,24,106,33],[106,34,106,41],[106,42,106,47],[106,48,106,49],[106,50,106,51],[105,1,105,17],[105,18,105,23],[107,50,107,51],[108,1,108,17],[108,18,108,23],[108,24,108,33],[108,34,108,41],[108,42,108,47],[108,48,108,49],[108,50,108,51],[107,1,107,17],[107,18,107,23],[107,24,107,33],[107,34,107,41],[107,42,107,47],[107,48,107,49],[105,24,105,33],[105,34,105,41],[105,42,105,47],[105,48,105,49],[109,50,109,51],[110,1,110,17],[110,18,110,23],[110,24,110,33],[110,34,110,41],[110,42,110,47],[110,48,110,49],[110,50,110,51],[109,1,109,17],[109,18,109,23],[111,50,111,51],[112,1,112,17],[112,18,112,23],[112,24,112,33],[112,34,112,41],[112,42,112,47],[112,48,112,49],[112,50,112,51],[111,1,111,17],[111,18,111,23],[111,24,111,33],[111,34,111,41],[111,42,111,47],[111,48,111,49],[109,24,109,33],[109,34,109,41],[109,42,109,47],[109,48,109,49],[113,50,113,51],[114,1,114,17],[114,18,114,23],[114,24,114,33],[114,34,114,41],[114,42,114,47],[114,48,114,49],[114,50,114,51],[113,1,113,17],[113,18,113,23],[115,50,115,51],[116,1,116,17],[116,18,116,23],[116,24,116,33],[116,34,116,41],[116,42,116,47],[116,48,116,49],[116,50,116,51],[115,1,115,17],[115,18,115,23],[113,24,113,33],[113,34,113,41],[113,42,113,47],[113,48,113,49],[115,24,115,33],[115,34,115,41],[115,42,115,47],[115,48,115,49],[119,48,119,49],[119,24,119,33],[119,34,119,41],[121,42,121,47],[121,50,121,51],[122,1,122,17],[122,18,122,23],[122,24,122,33],[122,34,122,41],[122,42,122,47],[122,48,122,49],[122,50,122,51],[121,1,121,17],[121,18,121,23],[123,50,123,51],[124,1,124,17],[124,18,124,23],[124,24,124,33],[124,34,124,41],[124,42,124,47],[124,48,124,49],[124,50,124,51],[123,1,123,17],[123,18,123,23],[119,18,119,23],[121,24,121,33],[121,34,121,41],[119,42,119,47],[125,24,125,33],[125,34,125,41],[123,42,123,47],[123,48,123,49],[123,24,123,33],[123,34,123,41],[125,42,125,47],[125,48,125,49],[125,50,125,51],[126,1,126,17],[126,18,126,23],[126,24,126,33],[126,34,126,41],[126,42,126,47],[126,48,126,49],[126,50,126,51],[125,1,125,17],[125,18,125,23],[127,50,127,51],[128,1,128,17],[128,18,128,23],[128,24,128,33],[128,34,128,41],[128,42,128,47],[128,48,128,49],[128,50,128,51],[127,1,127,17],[127,18,127,23],[129,24,129,33],[129,34,129,41],[127,42,127,47],[127,48,127,49],[127,24,127,33],[127,34,127,41],[129,42,129,47],[129,48,129,49],[129,50,129,51],[130,1,130,17],[130,18,130,23],[130,24,130,33],[130,34,130,41],[130,42,130,47],[130,48,130,49],[130,50,130,51],[129,1,129,17],[129,18,129,23],[131,50,131,51],[132,1,132,17],[132,18,132,23],[132,24,132,33],[132,34,132,41],[132,42,132,47],[132,48,132,49],[132,50,132,51],[131,1,131,17],[131,18,131,23],[133,24,133,33],[133,34,133,41],[131,42,131,47],[131,48,131,49],[131,24,131,33],[131,34,131,41],[133,42,133,47],[133,48,133,49],[133,50,133,51],[134,1,134,17],[134,18,134,23],[134,24,134,33],[134,34,134,41],[134,42,134,47],[134,48,134,49],[134,50,134,51],[133,1,133,17],[133,18,133,23],[135,50,135,51],[136,1,136,17],[136,18,136,23],[136,24,136,33],[136,34,136,41],[136,42,136,47],[136,48,136,49],[136,50,136,51],[135,1,135,17],[135,18,135,23],[137,24,137,33],[137,34,137,41],[135,42,135,47],[135,48,135,49],[135,24,135,33],[135,34,135,41],[137,42,137,47],[137,48,137,49],[137,50,137,51],[138,1,138,17],[138,18,138,23],[138,24,138,33],[138,34,138,41],[138,42,138,47],[138,48,138,49],[138,50,138,51],[137,1,137,17],[137,18,137,23],[139,50,139,51],[140,1,140,17],[140,18,140,23],[140,24,140,33],[140,34,140,41],[140,42,140,47],[140,48,140,49],[140,50,140,51],[139,1,139,17],[139,18,139,23],[141,24,141,33],[141,34,141,41],[139,42,139,47],[139,48,139,49],[139,24,139,33],[139,34,139,41],[141,42,141,47],[141,48,141,49],[141,50,141,51],[142,1,142,17],[142,18,142,23],[142,24,142,33],[142,34,142,41],[142,42,142,47],[142,48,142,49],[142,50,142,51],[141,1,141,17],[141,18,141,23],[143,50,143,51],[144,1,144,17],[144,18,144,23],[144,24,144,33],[144,34,144,41],[144,42,144,47],[144,48,144,49],[144,50,144,51],[143,1,143,17],[143,18,143,23],[145,24,145,33],[145,34,145,41],[143,42,143,47],[143,48,143,49],[143,24,143,33],[143,34,143,41],[145,42,145,47],[145,48,145,49],[145,50,145,51],[146,1,146,17],[146,18,146,23],[146,24,146,33],[146,34,146,41],[146,42,146,47],[146,48,146,49],[146,50,146,51],[145,1,145,17],[145,18,145,23],[147,50,147,51],[148,1,148,17],[148,18,148,23],[148,24,148,33],[148,34,148,41],[148,42,148,47],[148,48,148,49],[148,50,148,51],[147,1,147,17],[147,18,147,23],[149,24,149,33],[149,34,149,41],[147,42,147,47],[147,48,147,49],[147,24,147,33],[147,34,147,41],[149,42,149,47],[149,48,149,49],[149,50,149,51],[150,1,150,17],[150,18,150,23],[150,24,150,33],[150,34,150,41],[150,42,150,47],[150,48,150,49],[150,50,150,51],[149,1,149,17],[149,18,149,23],[151,50,151,51],[152,1,152,17],[152,18,152,23],[152,24,152,33],[152,34,152,41],[152,42,152,47],[152,48,152,49],[152,50,152,51],[151,1,151,17],[151,18,151,23],[153,24,153,33],[153,34,153,41],[151,42,151,47],[151,48,151,49],[151,24,151,33],[151,34,151,41],[153,42,153,47],[153,48,153,49],[153,50,153,51],[154,1,154,17],[154,18,154,23],[154,24,154,33],[154,34,154,41],[154,42,154,47],[154,48,154,49],[154,50,154,51],[153,1,153,17],[153,18,153,23],[155,50,155,51],[156,1,156,17],[156,18,156,23],[156,24,156,33],[156,34,156,41],[156,42,156,47],[156,48,156,49],[156,50,156,51],[155,1,155,17],[155,18,155,23],[157,24,157,33],[157,34,157,41],[155,42,155,47],[155,48,155,49],[155,24,155,33],[155,34,155,41],[157,42,157,47],[157,48,157,49],[157,50,157,51],[158,1,158,17],[158,18,158,23],[158,24,158,33],[158,34,158,41],[158,42,158,47],[158,48,158,49],[158,50,158,51],[157,1,157,17],[157,18,157,23],[159,50,159,51],[160,1,160,17],[160,18,160,23],[160,24,160,33],[160,34,160,41],[160,42,160,47],[160,48,160,49],[160,50,160,51],[159,1,159,17],[159,18,159,23],[161,24,161,33],[161,34,161,41],[159,42,159,47],[159,48,159,49],[159,24,159,33],[159,34,159,41],[161,42,161,47],[161,48,161,49],[161,50,161,51],[162,1,162,17],[162,18,162,23],[162,24,162,33],[162,34,162,41],[162,42,162,47],[162,48,162,49],[162,50,162,51],[161,1,161,17],[161,18,161,23],[163,50,163,51],[164,1,164,17],[164,18,164,23],[164,24,164,33],[164,34,164,41],[164,42,164,47],[164,48,164,49],[164,50,164,51],[163,1,163,17],[163,18,163,23],[165,24,165,33],[165,34,165,41],[163,42,163,47],[163,48,163,49],[163,24,163,33],[163,34,163,41],[165,42,165,47],[165,48,165,49],[165,50,165,51],[166,1,166,17],[166,18,166,23],[166,24,166,33],[166,34,166,41],[166,42,166,47],[166,48,166,49],[166,50,166,51],[165,1,165,17],[165,18,165,23],[167,50,167,51],[168,1,168,17],[168,18,168,23],[168,24,168,33],[168,34,168,41],[168,42,168,47],[168,48,168,49],[168,50,168,51],[167,1,167,17],[167,18,167,23],[169,24,169,33],[169,34,169,41],[167,42,167,47],[167,48,167,49],[167,24,167,33],[167,34,167,41],[169,42,169,47],[169,48,169,49],[169,50,169,51],[170,1,170,17],[170,18,170,23],[170,24,170,33],[170,34,170,41],[170,42,170,47],[170,48,170,49],[170,50,170,51],[169,1,169,17],[169,18,169,23],[171,50,171,51],[172,1,172,17],[172,18,172,23],[172,24,172,33],[172,34,172,41],[172,42,172,47],[172,48,172,49],[172,50,172,51],[171,1,171,17],[171,18,171,23],[173,24,173,33],[173,34,173,41],[171,42,171,47],[171,48,171,49],[171,24,171,33],[171,34,171,41],[173,42,173,47],[173,48,173,49],[173,50,173,51],[174,1,174,17],[174,18,174,23],[174,24,174,33],[174,34,174,41],[174,42,174,47],[174,48,174,49],[174,50,174,51],[173,1,173,17],[173,18,173,23],[175,50,175,51],[176,1,176,17],[176,18,176,23],[176,24,176,33],[176,34,176,41],[176,42,176,47],[176,48,176,49],[176,50,176,51],[175,1,175,17],[175,18,175,23],[177,24,177,33],[177,34,177,41],[175,42,175,47],[175,48,175,49],[175,24,175,33],[175,34,175,41],[177,42,177,47],[177,48,177,49],[177,50,177,51],[178,1,178,17],[178,18,178,23],[178,24,178,33],[178,34,178,41],[178,42,178,47],[178,48,178,49],[178,50,178,51],[177,1,177,17],[177,18,177,23],[179,50,179,51],[180,1,180,17],[180,18,180,23],[180,24,180,33],[180,34,180,41],[180,42,180,47],[180,48,180,49],[180,50,180,51],[179,1,179,17],[179,18,179,23],[181,24,181,33],[181,34,181,41],[179,42,179,47],[179,48,179,49],[179,24,179,33],[179,34,179,41],[181,42,181,47],[181,48,181,49],[181,50,181,51],[182,1,182,17],[182,18,182,23],[182,24,182,33],[182,34,182,41],[182,42,182,47],[182,48,182,49],[182,50,182,51],[181,1,181,17],[181,18,181,23],[186,1,186,17],[186,18,186,23],[186,24,186,33]],"merged_total":1025,"flags":["merged_cut"]}
[null,null,null,null,null,null,null,null,null,null,null,null,null,null,null,null,null,null,null,null,null,null,null,null,null,null,null,null,null,null,null,null,null,null,null,null,null,null,null,null,null,null,null,null,null,null,null,null,null,null,null,null,null,null,{"$f":"IF(AND(LEN(C9)>0,LEN(C9)<>10),FALSE,IF(VALUE(MID(C9,10,1))=CEILING(MOD(((MID(C9,1,1)*6+MID(C9,2,1)*5+MID(C9,3,1)*7+MID(C9,4,1)*2+MID(C9,5,1)*3+MID(C9,6,1)*4+MID(C9,7,1)*5+MID(C9,8,1)*6+MID(C9,9,1)*7)/11),1)*10,1),TRUE,FALSE))","v":true},null,null,null,null,null,null,null,null,null,null,null,null,null,null,null,null,null,null,null,null,null,null,null,null,null,null,null,null,null,null,null,null,null,null,null,null,null,null,null,null,null,null,null,null,null,null,null,null,null,null,null,null,null,null,null,null,null,null,null,null,null,null,null,null,null,null,null,null,null,null,null,null,null,null,null,null,null,null,null,null,null,null,null,null,null,null,null,null,null,null,null,null,null,null,null,null,null,null,null,null,null,null,null,null,null,null,null,null,null,null,null,null,null,null,null,null,null,null,null,null,null,null,null,null,null,null,null,null,null,null,null,null,null,null,null,null,null,null,null,null,null,null,null,null,null,null,null,null,null,null,null,null,null,null,null,null,null,null,null,null,null,null,null,null,null,null,null,null,null,null,null,null,null,null,null,null,null,null,null,null,null,null,null,null,null,null,null,"2016-02-05"]
[]
[]
[null,null,"  POLTAX",null,null,null,null,null,null,null,"POLA JASNE WYPEŁNIA PODATNIK (WIERZYCIEL), POLA CIEMNE WYPEŁNIA URZĄD SKARBOWY. WYPEŁNIAĆ NA MASZYNIE, KOMPUTEROWO LUB"]
[null,null,null,null,null,null,null,null,null,null,"RĘCZNIE, DUŻYMI, DRUKOWANYMI LITERAMI, CZARNYM LUB NIEBIESKIM KOLOREM. PRZED WYPEŁNIENIEM ZAPOZNAĆ SIĘ Z OBJAŚNIENIAMI."]
[]
[]
[null,null," 1. Identyfikator podatkowy NIP podatnika (wierzyciela)",null,null,null,null,null,null,null,null,null,null,null,null,null,null,null,null,null,null,null,null,null,null," 2. Nr dokumentu",null,null,null,null,null,null,null,null,null,null,null,null," 3. Status"]
[null,null,{"$f":"'VAT-7'!C7","v":1111111111}]
[null,null,"  VAT-ZD"]
[null,null,"      ZAWIADOMIENIE O SKORYGOWANIU PODSTAWY OPODATKOWANIA"]
[null,null,"         ORAZ KWOTY PODATKU NALEŻNEGO"]
[]
[null,null,"za   ",null,null,null,null,null,null,null,null,null,null,null,null," 4. Miesiąc",null,null,null,null,"lub",null,null," 5. Kwartał",null,null,null," 6. Rok",null,null,null,null,null,null,null," 7. Nr załącznika 1)"]
[null,null,null,null,null,null,null,null,null,null,null,null,null,null,null,{"$f":"'VAT-7'!P11","v":1},null,null,null,null,null,null,null,null,null,null,null,{"$f":"'VAT-7'!U11","v":2019}]
[]
[null,null," Załącznik do deklaracji dla podatku od towarów i usług: VAT-7, VAT-7K, VAT-7D."]
[null,null," Podstawa prawna:",null,null,null,null,null,null,null,null,"Art.89a ust.5 ustawy z dnia 11 marca 2004 r. o podatku od towarów i usług (Dz. U. z 2011 r. Nr 177, poz. 1054, z późn. zm.),"]
[null,null,null,null,null,null,null,null,null,null,null,"zwanej dalej \"ustawą\"."]
[null,null," Składający:",null,null,null,null,null,null,null,null,"Podatnik (wierzyciel) dokonujący korekty podstawy opodatkowania oraz kwoty podatku należnego, o której mowa w art.89a ust.1."]
[null,null," Termin składania:",null,null,null,null,null,null,null,null,"W terminie złożenia deklaracji podatkowej, w której podatnik dokonuje korekty, o której mowa w art.89a ust. 1 ustawy."]
[null,null," Miejsce składania:",null,null,null,null,null,null,null,null,"Urząd skarbowy właściwy dla podatnika (wierzyciela)."]
[]
[]
[]
[null,null,"  A. DANE PODATNIKA (WIERZYCIELA)"]
[null,null,null,null,null,null,null,"* - dotyczy podmiotów niebędących osobami fizycznymi",null,null,null,null,null,null,null,null,null,null,null,null,null,null,null,"** - dotyczy podmiotów będących osobami fizycznymi"]
[null,null,"  A.1. DANE IDENTYFIKACYJNE"]
[null,null,null,null,null,null,null," 8. Rodzaj podatnika (wierzyciela) (zaznaczyć właściwy kwadrat):"]
[null,null,null,null,null,null,null,null,null,null,null,null,null,"1. podatnik (wierzyciel) niebędący osobą fizyczną",null,null,null,null,null,null,null,null,null,null,null,null,null,null,null,null,null,null,null,"2. osoba fizyczna (wierzyciel)"]
[null,null,null,null,null,null,null," 9. Nazwa pełna, REGON* / Nazwisko, pierwsze imię, data urodzenia, PESEL**"]
[null,null,null,null,null,null,null,{"$f":"'VAT-7'!E25","v":"NOWAK JÓZEF 01-01-1989"}]
[null,null,"1) Należy podać kolejny numer załącznika."]
[]
[]
[]
[]
[]
[]
[]
[]
[]
[]
[]
[]
[]
[]
[null,null,null,null,null,null,null,null,null,null,null,null,null,null,null,null,null,null,null,null,null,null,null,null,null,null,null,null,null,null,null,null,null,null,null,null,"VAT-ZD(1)",null,null,null,null,null,"1/2"]
[]
[]
[]
[null,null,"   POLTAX",null,null,null,null,null,null,null,null,null,"POLA JASNE WYPEŁNIA PODATNIK (WIERZYCIEL), POLA CIEMNE WYPEŁNIA URZĄD SKARBOWY. WYPEŁNIAĆ NA MASZYNIE, KOMPUTEROWO LUB RĘCZNIE, DUŻYMI, DRUKOWANYMI LITERAMI, CZARNYM LUB NIEBIESKIM"]
[null,null,null,null,null,null,null,null,null,null,null,null,"KOLOREM. PRZED WYPEŁNIENIEM ZAPOZNAĆ SIĘ Z OBJAŚNIENIAMI."]
[]
[]
[null,null," B. DANE IDENTYFIKACYJNE DŁUŻNIKA ORAZ INFORMACJE DOTYCZĄCE KWOT KOREKT PODSTAWY  OPODATKOWANIA ORAZ PODATKU NALEŻNEGO"]
[null,null,"Lp.",null,null,null,null,null,"Nazwa podatnika (dłużnika)",null,null,null,null,null,null,null,null,null,null,null,null,"Identyfikator",null,null,null,null,null,null,null,"Nr faktury",null,null,null,null,null,null,null,null,null,"Data upływu terminu",null,null,null,null,null,null,null,null,"Kwota korekty podstawy",null,"Kwota korekty podatku"]
[null,null,null,null,null,null,null,null,null,null,null,null,null,null,null,null,null,null,null,null,null,"podatkowy NIP\npodatnika (dłużnika)",null,null,null,null,null,null,null,"Data wystawienia faktury\n(dzień - miesiąc - rok)",null,null,null,null,null,null,null,null,null,"płatności 2)\n(dzień - miesiąc - rok)",null,null,null,null,null,null,null,null,"opodatkowania",null,"należnego"]
[null,null,"a",null,null,null,null,null,"b",null,null,null,null,null,null,null,null,null,null,null,null,"c",null,null,null,null,null,null,null,"d",null,null,null,null,null,null,null,null,null,"e",null,null,null,null,null,null,null,null,"f",null,"g"]
[null,null,1,null,null,null,null,null,null,null,null,null,null,null,null,null,null,null,null,null,null,null,null,null,null,null,null,null,null,null,null,null,null,null,null,null,null,null,null,null,null,null,null,null,null,null,null,null,null,null,null,null,null,null,{"$f":"IF(AND(LEN(V60)>0,LEN(V60)<>10),FALSE,IF(VALUE(MID(V60,10,1))=CEILING(MOD(((MID(V60,1,1)*6+MID(V60,2,1)*5+MID(V60,3,1)*7+MID(V60,4,1)*2+MID(V60,5,1)*3+MID(V60,6,1)*4+MID(V60,7,1)*5+MID(V60,8,1)*6+MID(V60,9,1)*7)/11),1)*10,1),TRUE,FALSE))","v":{"$error":"#VALUE!"}}]
[]
[null,null,2,null,null,null,null,null,null,null,null,null,null,null,null,null,null,null,null,null,null,null,null,null,null,null,null,null,null,null,null,null,null,null,null,null,null,null,null,null,null,null,null,null,null,null,null,null,null,null,null,null,null,null,{"$f":"IF(AND(LEN(V62)>0,LEN(V62)<>10),FALSE,IF(VALUE(MID(V62,10,1))=CEILING(MOD(((MID(V62,1,1)*6+MID(V62,2,1)*5+MID(V62,3,1)*7+MID(V62,4,1)*2+MID(V62,5,1)*3+MID(V62,6,1)*4+MID(V62,7,1)*5+MID(V62,8,1)*6+MID(V62,9,1)*7)/11),1)*10,1),TRUE,FALSE))","v":{"$error":"#VALUE!"}}]
[]
[null,null,3,null,null,null,null,null,null,null,null,null,null,null,null,null,null,null,null,null,null,null,null,null,null,null,null,null,null,null,null,null,null,null,null,null,null,null,null,null,null,null,null,null,null,null,null,null,null,null,null,null,null,null,{"$f":"IF(AND(LEN(V64)>0,LEN(V64)<>10),FALSE,IF(VALUE(MID(V64,10,1))=CEILING(MOD(((MID(V64,1,1)*6+MID(V64,2,1)*5+MID(V64,3,1)*7+MID(V64,4,1)*2+MID(V64,5,1)*3+MID(V64,6,1)*4+MID(V64,7,1)*5+MID(V64,8,1)*6+MID(V64,9,1)*7)/11),1)*10,1),TRUE,FALSE))","v":{"$error":"#VALUE!"}}]
[]
[null,null,4,null,null,null,null,null,null,null,null,null,null,null,null,null,null,null,null,null,null,null,null,null,null,null,null,null,null,null,null,null,null,null,null,null,null,null,null,null,null,null,null,null,null,null,null,null,null,null,null,null,null,null,{"$f":"IF(AND(LEN(V66)>0,LEN(V66)<>10),FALSE,IF(VALUE(MID(V66,10,1))=CEILING(MOD(((MID(V66,1,1)*6+MID(V66,2,1)*5+MID(V66,3,1)*7+MID(V66,4,1)*2+MID(V66,5,1)*3+MID(V66,6,1)*4+MID(V66,7,1)*5+MID(V66,8,1)*6+MID(V66,9,1)*7)/11),1)*10,1),TRUE,FALSE))","v":{"$error":"#VALUE!"}}]
[]
[null,null,5,null,null,null,null,null,null,null,null,null,null,null,null,null,null,null,null,null,null,null,null,null,null,null,null,null,null,null,null,null,null,null,null,null,null,null,null,null,null,null,null,null,null,null,null,null,null,null,null,null,null,null,{"$f":"IF(AND(LEN(V68)>0,LEN(V68)<>10),FALSE,IF(VALUE(MID(V68,10,1))=CEILING(MOD(((MID(V68,1,1)*6+MID(V68,2,1)*5+MID(V68,3,1)*7+MID(V68,4,1)*2+MID(V68,5,1)*3+MID(V68,6,1)*4+MID(V68,7,1)*5+MID(V68,8,1)*6+MID(V68,9,1)*7)/11),1)*10,1),TRUE,FALSE))","v":{"$error":"#VALUE!"}}]
[]
[null,null,6,null,null,null,null,null,null,null,null,null,null,null,null,null,null,null,null,null,null,null,null,null,null,null,null,null,null,null,null,null,null,null,null,null,null,null,null,null,null,null,null,null,null,null,null,null,null,null,null,null,null,null,{"$f":"IF(AND(LEN(V70)>0,LEN(V70)<>10),FALSE,IF(VALUE(MID(V70,10,1))=CEILING(MOD(((MID(V70,1,1)*6+MID(V70,2,1)*5+MID(V70,3,1)*7+MID(V70,4,1)*2+MID(V70,5,1)*3+MID(V70,6,1)*4+MID(V70,7,1)*5+MID(V70,8,1)*6+MID(V70,9,1)*7)/11),1)*10,1),TRUE,FALSE))","v":{"$error":"#VALUE!"}}]
[]
[null,null,7,null,null,null,null,null,null,null,null,null,null,null,null,null,null,null,null,null,null,null,null,null,null,null,null,null,null,null,null,null,null,null,null,null,null,null,null,null,null,null,null,null,null,null,null,null,null,null,null,null,null,null,{"$f":"IF(AND(LEN(V72)>0,LEN(V72)<>10),FALSE,IF(VALUE(MID(V72,10,1))=CEILING(MOD(((MID(V72,1,1)*6+MID(V72,2,1)*5+MID(V72,3,1)*7+MID(V72,4,1)*2+MID(V72,5,1)*3+MID(V72,6,1)*4+MID(V72,7,1)*5+MID(V72,8,1)*6+MID(V72,9,1)*7)/11),1)*10,1),TRUE,FALSE))","v":{"$error":"#VALUE!"}}]
[]
[null,null,8,null,null,null,null,null,null,null,null,null,null,null,null,null,null,null,null,null,null,null,null,null,null,null,null,null,null,null,null,null,null,null,null,null,null,null,null,null,null,null,null,null,null,null,null,null,null,null,null,null,null,null,{"$f":"IF(AND(LEN(V74)>0,LEN(V74)<>10),FALSE,IF(VALUE(MID(V74,10,1))=CEILING(MOD(((MID(V74,1,1)*6+MID(V74,2,1)*5+MID(V74,3,1)*7+MID(V74,4,1)*2+MID(V74,5,1)*3+MID(V74,6,1)*4+MID(V74,7,1)*5+MID(V74,8,1)*6+MID(V74,9,1)*7)/11),1)*10,1),TRUE,FALSE))","v":{"$error":"#VALUE!"}}]
[]
[null,null,null,null,null,null,null,null,"  Ogółem kwoty",null,null,null,null,null,null,null,null,null,null,null,null,null,null,null,null,null,null,null,null,null,null,null,null,null,null,null,null,null,null,null,null,null,null,null,null,null,null,null," 10.",null," 11."]
[null,null,null,null,null,null,null,null,"  Suma kwot z kolumny f i g. 3) 4)",null,null,null,null,null,null,null,null,null,null,null,null,null,null,null,null,null,null,null,null,null,null,null,null,null,null,null,null,null,null,null,null,null,null,null,null,null,null,null,{"$f":"ROUND(SUM(AW60:AX75),0)","v":0},null,{"$f":"ROUND(SUM(AY60:AZ75),0)","v":0}]
[null,null," 2) Należy podać datę (dzień - miesiąc - rok) upływu terminu płatności określonego w fakturze lub umowie."]
[null,null," 3) Kwoty należy zaokrąglić do pełnych złotych w ten sposób, że końcówki kwot wynoszące mniej niż 50 groszy pomija się,  a końcówki kwot",null,null,null,null,null,null,null,null,null,null,null,null,null,null,null,null,null,null,null,null,null,null,null,null,null,null,null,null,null,null,null,null,null,null,null,null,null,null,null,null,null,null,null," wynoszące 50 i więcej groszy podwyższa się do pełnych złotych."]
[null,null," 4) Jeżeli podatnik składa więcej niż jeden załącznik VAT-ZD, poz. 10 i 11 należy wypełnić na ostatnim składanym załączniku."]
[]
[null,null,null,null,null,null,null,null,null,null,null,null,null,null,null,null,null,null,null,null,null,null,null,null,null,null,null,null,null,null,null,null,null,null,null,null,null,null,null,null,null,null,null,null,null,null,null,null,null,"VAT-ZD(1)",null,"2/2"]
[]
[]
[null,"Zestawienie faktur"]
["Lp.","Nazwa podatnika (dłużnika)",null,null,null,null,null,null,null,null,null,null,null,null,null,null,null,null,"NIP dłużnika",null,null,null,null,null,"Nr faktury",null,null,null,null,null,null,null,null,null,"Data wystawienia",null,null,null,null,null,null,null,"Data upływu\nterminu płatności",null,null,null,null,null,"Kwota korekty netto",null,"Kwota korekty VAT"]
["a","b",null,null,null,null,null,null,null,null,null,null,null,null,null,null,null,null,"c",null,null,null,null,null,"d",null,null,null,null,null,null,null,null,null,"e",null,null,null,null,null,null,null,"f",null,null,null,null,null,"g",null,"h"]
[1,null,null,null,null,null,null,null,null,null,null,null,null,null,null,null,null,null,null,null,null,null,null,null,null,null,null,null,null,null,null,null,null,null,null,null,null,null,null,null,null,null,null,null,null,null,null,null,null,null,null,null,null,null,{"$f":"IF(AND(LEN(S88)>0,LEN(S88)<>10),FALSE,IF(VALUE(MID(S88,10,1))=CEILING(MOD(((MID(S88,1,1)*6+MID(S88,2,1)*5+MID(S88,3,1)*7+MID(S88,4,1)*2+MID(S88,5,1)*3+MID(S88,6,1)*4+MID(S88,7,1)*5+MID(S88,8,1)*6+MID(S88,9,1)*7)/11),1)*10,1),TRUE,FALSE))","v":{"$error":"#VALUE!"}}]
[2,null,null,null,null,null,null,null,null,null,null,null,null,null,null,null,null,null,null,null,null,null,null,null,null,null,null,null,null,null,null,null,null,null,null,null,null,null,null,null,null,null,null,null,null,null,null,null,null,null,null,null,null,null,{"$error":"#VALUE!"}]
[3,null,null,null,null,null,null,null,null,null,null,null,null,null,null,null,null,null,null,null,null,null,null,null,null,null,null,null,null,null,null,null,null,null,null,null,null,null,null,null,null,null,null,null,null,null,null,null,null,null,null,null,null,null,{"$error":"#VALUE!"}]
[4,null,null,null,null,null,null,null,null,null,null,null,null,null,null,null,null,null,null,null,null,null,null,null,null,null,null,null,null,null,null,null,null,null,null,null,null,null,null,null,null,null,null,null,null,null,null,null,null,null,null,null,null,null,{"$error":"#VALUE!"}]
[5,null,null,null,null,null,null,null,null,null,null,null,null,null,null,null,null,null,null,null,null,null,null,null,null,null,null,null,null,null,null,null,null,null,null,null,null,null,null,null,null,null,null,null,null,null,null,null,null,null,null,null,null,null,{"$error":"#VALUE!"}]
[6,null,null,null,null,null,null,null,null,null,null,null,null,null,null,null,null,null,null,null,null,null,null,null,null,null,null,null,null,null,null,null,null,null,null,null,null,null,null,null,null,null,null,null,null,null,null,null,null,null,null,null,null,null,{"$error":"#VALUE!"}]
[7,null,null,null,null,null,null,null,null,null,null,null,null,null,null,null,null,null,null,null,null,null,null,null,null,null,null,null,null,null,null,null,null,null,null,null,null,null,null,null,null,null,null,null,null,null,null,null,null,null,null,null,null,null,{"$error":"#VALUE!"}]
[8,null,null,null,null,null,null,null,null,null,null,null,null,null,null,null,null,null,null,null,null,null,null,null,null,null,null,null,null,null,null,null,null,null,null,null,null,null,null,null,null,null,null,null,null,null,null,null,null,null,null,null,null,null,{"$error":"#VALUE!"}]
[9,null,null,null,null,null,null,null,null,null,null,null,null,null,null,null,null,null,null,null,null,null,null,null,null,null,null,null,null,null,null,null,null,null,null,null,null,null,null,null,null,null,null,null,null,null,null,null,null,null,null,null,null,null,{"$error":"#VALUE!"}]
[10,null,null,null,null,null,null,null,null,null,null,null,null,null,null,null,null,null,null,null,null,null,null,null,null,null,null,null,null,null,null,null,null,null,null,null,null,null,null,null,null,null,null,null,null,null,null,null,null,null,null,null,null,null,{"$error":"#VALUE!"}]
[11,null,null,null,null,null,null,null,null,null,null,null,null,null,null,null,null,null,null,null,null,null,null,null,null,null,null,null,null,null,null,null,null,null,null,null,null,null,null,null,null,null,null,null,null,null,null,null,null,null,null,null,null,null,{"$error":"#VALUE!"}]
[12,null,null,null,null,null,null,null,null,null,null,null,null,null,null,null,null,null,null,null,null,null,null,null,null,null,null,null,null,null,null,null,null,null,null,null,null,null,null,null,null,null,null,null,null,null,null,null,null,null,null,null,null,null,{"$error":"#VALUE!"}]
[13,null,null,null,null,null,null,null,null,null,null,null,null,null,null,null,null,null,null,null,null,null,null,null,null,null,null,null,null,null,null,null,null,null,null,null,null,null,null,null,null,null,null,null,null,null,null,null,null,null,null,null,null,null,{"$error":"#VALUE!"}]
[14,null,null,null,null,null,null,null,null,null,null,null,null,null,null,null,null,null,null,null,null,null,null,null,null,null,null,null,null,null,null,null,null,null,null,null,null,null,null,null,null,null,null,null,null,null,null,null,null,null,null,null,null,null,{"$error":"#VALUE!"}]
[15,null,null,null,null,null,null,null,null,null,null,null,null,null,null,null,null,null,null,null,null,null,null,null,null,null,null,null,null,null,null,null,null,null,null,null,null,null,null,null,null,null,null,null,null,null,null,null,null,null,null,null,null,null,{"$error":"#VALUE!"}]
[16,null,null,null,null,null,null,null,null,null,null,null,null,null,null,null,null,null,null,null,null,null,null,null,null,null,null,null,null,null,null,null,null,null,null,null,null,null,null,null,null,null,null,null,null,null,null,null,null,null,null,null,null,null,{"$error":"#VALUE!"}]
[17,null,null,null,null,null,null,null,null,null,null,null,null,null,null,null,null,null,null,null,null,null,null,null,null,null,null,null,null,null,null,null,null,null,null,null,null,null,null,null,null,null,null,null,null,null,null,null,null,null,null,null,null,null,{"$error":"#VALUE!"}]
[18,null,null,null,null,null,null,null,null,null,null,null,null,null,null,null,null,null,null,null,null,null,null,null,null,null,null,null,null,null,null,null,null,null,null,null,null,null,null,null,null,null,null,null,null,null,null,null,null,null,null,null,null,null,{"$error":"#VALUE!"}]
[19,null,null,null,null,null,null,null,null,null,null,null,null,null,null,null,null,null,null,null,null,null,null,null,null,null,null,null,null,null,null,null,null,null,null,null,null,null,null,null,null,null,null,null,null,null,null,null,null,null,null,null,null,null,{"$error":"#VALUE!"}]
[20,null,null,null,null,null,null,null,null,null,null,null,null,null,null,null,null,null,null,null,null,null,null,null,null,null,null,null,null,null,null,null,null,null,null,null,null,null,null,null,null,null,null,null,null,null,null,null,null,null,null,null,null,null,{"$error":"#VALUE!"}]
[21,null,null,null,null,null,null,null,null,null,null,null,null,null,null,null,null,null,null,null,null,null,null,null,null,null,null,null,null,null,null,null,null,null,null,null,null,null,null,null,null,null,null,null,null,null,null,null,null,null,null,null,null,null,{"$error":"#VALUE!"}]
[22,null,null,null,null,null,null,null,null,null,null,null,null,null,null,null,null,null,null,null,null,null,null,null,null,null,null,null,null,null,null,null,null,null,null,null,null,null,null,null,null,null,null,null,null,null,null,null,null,null,null,null,null,null,{"$error":"#VALUE!"}]
[23,null,null,null,null,null,null,null,null,null,null,null,null,null,null,null,null,null,null,null,null,null,null,null,null,null,null,null,null,null,null,null,null,null,null,null,null,null,null,null,null,null,null,null,null,null,null,null,null,null,null,null,null,null,{"$error":"#VALUE!"}]
[24,null,null,null,null,null,null,null,null,null,null,null,null,null,null,null,null,null,null,null,null,null,null,null,null,null,null,null,null,null,null,null,null,null,null,null,null,null,null,null,null,null,null,null,null,null,null,null,null,null,null,null,null,null,{"$error":"#VALUE!"}]
[25,null,null,null,null,null,null,null,null,null,null,null,null,null,null,null,null,null,null,null,null,null,null,null,null,null,null,null,null,null,null,null,null,null,null,null,null,null,null,null,null,null,null,null,null,null,null,null,null,null,null,null,null,null,{"$error":"#VALUE!"}]
[26,null,null,null,null,null,null,null,null,null,null,null,null,null,null,null,null,null,null,null,null,null,null,null,null,null,null,null,null,null,null,null,null,null,null,null,null,null,null,null,null,null,null,null,null,null,null,null,null,null,null,null,null,null,{"$error":"#VALUE!"}]
[27,null,null,null,null,null,null,null,null,null,null,null,null,null,null,null,null,null,null,null,null,null,null,null,null,null,null,null,null,null,null,null,null,null,null,null,null,null,null,null,null,null,null,null,null,null,null,null,null,null,null,null,null,null,{"$error":"#VALUE!"}]
[28,null,null,null,null,null,null,null,null,null,null,null,null,null,null,null,null,null,null,null,null,null,null,null,null,null,null,null,null,null,null,null,null,null,null,null,null,null,null,null,null,null,null,null,null,null,null,null,null,null,null,null,null,null,{"$error":"#VALUE!"}]
[29,null,null,null,null,null,null,null,null,null,null,null,null,null,null,null,null,null,null,null,null,null,null,null,null,null,null,null,null,null,null,null,null,null,null,null,null,null,null,null,null,null,null,null,null,null,null,null,null,null,null,null,null,null,{"$error":"#VALUE!"}]
[30,null,null,null,null,null,null,null,null,null,null,null,null,null,null,null,null,null,null,null,null,null,null,null,null,null,null,null,null,null,null,null,null,null,null,null,null,null,null,null,null,null,null,null,null,null,null,null,null,null,null,null,null,null,{"$error":"#VALUE!"}]
[31,null,null,null,null,null,null,null,null,null,null,null,null,null,null,null,null,null,null,null,null,null,null,null,null,null,null,null,null,null,null,null,null,null,null,null,null,null,null,null,null,null,null,null,null,null,null,null,null,null,null,null,null,null,{"$error":"#VALUE!"}]
[32,null,null,null,null,null,null,null,null,null,null,null,null,null,null,null,null,null,null,null,null,null,null,null,null,null,null,null,null,null,null,null,null,null,null,null,null,null,null,null,null,null,null,null,null,null,null,null,null,null,null,null,null,null,{"$error":"#VALUE!"}]
[33,null,null,null,null,null,null,null,null,null,null,null,null,null,null,null,null,null,null,null,null,null,null,null,null,null,null,null,null,null,null,null,null,null,null,null,null,null,null,null,null,null,null,null,null,null,null,null,null,null,null,null,null,null,{"$f":"IF(AND(LEN(S120)>0,LEN(S120)<>10),FALSE,IF(VALUE(MID(S120,10,1))=CEILING(MOD(((MID(S120,1,1)*6+MID(S120,2,1)*5+MID(S120,3,1)*7+MID(S120,4,1)*2+MID(S120,5,1)*3+MID(S120,6,1)*4+MID(S120,7,1)*5+MID(S120,8,1)*6+MID(S120,9,1)*7)/11),1)*10,1),TRUE,FALSE))","v":{"$error":"#VALUE!"}}]
[34,null,null,null,null,null,null,null,null,null,null,null,null,null,null,null,null,null,null,null,null,null,null,null,null,null,null,null,null,null,null,null,null,null,null,null,null,null,null,null,null,null,null,null,null,null,null,null,null,null,null,null,null,null,{"$error":"#VALUE!"}]
[35,null,null,null,null,null,null,null,null,null,null,null,null,null,null,null,null,null,null,null,null,null,null,null,null,null,null,null,null,null,null,null,null,null,null,null,null,null,null,null,null,null,null,null,null,null,null,null,null,null,null,null,null,null,{"$error":"#VALUE!"}]
[36,null,null,null,null,null,null,null,null,null,null,null,null,null,null,null,null,null,null,null,null,null,null,null,null,null,null,null,null,null,null,null,null,null,null,null,null,null,null,null,null,null,null,null,null,null,null,null,null,null,null,null,null,null,{"$error":"#VALUE!"}]
[37,null,null,null,null,null,null,null,null,null,null,null,null,null,null,null,null,null,null,null,null,null,null,null,null,null,null,null,null,null,null,null,null,null,null,null,null,null,null,null,null,null,null,null,null,null,null,null,null,null,null,null,null,null,{"$error":"#VALUE!"}]
[38,null,null,null,null,null,null,null,null,null,null,null,null,null,null,null,null,null,null,null,null,null,null,null,null,null,null,null,null,null,null,null,null,null,null,null,null,null,null,null,null,null,null,null,null,null,null,null,null,null,null,null,null,null,{"$error":"#VALUE!"}]
[39,null,null,null,null,null,null,null,null,null,null,null,null,null,null,null,null,null,null,null,null,null,null,null,null,null,null,null,null,null,null,null,null,null,null,null,null,null,null,null,null,null,null,null,null,null,null,null,null,null,null,null,null,null,{"$error":"#VALUE!"}]
[40,null,null,null,null,null,null,null,null,null,null,null,null,null,null,null,null,null,null,null,null,null,null,null,null,null,null,null,null,null,null,null,null,null,null,null,null,null,null,null,null,null,null,null,null,null,null,null,null,null,null,null,null,null,{"$error":"#VALUE!"}]
[41,null,null,null,null,null,null,null,null,null,null,null,null,null,null,null,null,null,null,null,null,null,null,null,null,null,null,null,null,null,null,null,null,null,null,null,null,null,null,null,null,null,null,null,null,null,null,null,null,null,null,null,null,null,{"$error":"#VALUE!"}]
[42,null,null,null,null,null,null,null,null,null,null,null,null,null,null,null,null,null,null,null,null,null,null,null,null,null,null,null,null,null,null,null,null,null,null,null,null,null,null,null,null,null,null,null,null,null,null,null,null,null,null,null,null,null,{"$error":"#VALUE!"}]
[43,null,null,null,null,null,null,null,null,null,null,null,null,null,null,null,null,null,null,null,null,null,null,null,null,null,null,null,null,null,null,null,null,null,null,null,null,null,null,null,null,null,null,null,null,null,null,null,null,null,null,null,null,null,{"$error":"#VALUE!"}]
[44,null,null,null,null,null,null,null,null,null,null,null,null,null,null,null,null,null,null,null,null,null,null,null,null,null,null,null,null,null,null,null,null,null,null,null,null,null,null,null,null,null,null,null,null,null,null,null,null,null,null,null,null,null,{"$error":"#VALUE!"}]
[45,null,null,null,null,null,null,null,null,null,null,null,null,null,null,null,null,null,null,null,null,null,null,null,null,null,null,null,null,null,null,null,null,null,null,null,null,null,null,null,null,null,null,null,null,null,null,null,null,null,null,null,null,null,{"$error":"#VALUE!"}]
[46,null,null,null,null,null,null,null,null,null,null,null,null,null,null,null,null,null,null,null,null,null,null,null,null,null,null,null,null,null,null,null,null,null,null,null,null,null,null,null,null,null,null,null,null,null,null,null,null,null,null,null,null,null,{"$error":"#VALUE!"}]
[47,null,null,null,null,null,null,null,null,null,null,null,null,null,null,null,null,null,null,null,null,null,null,null,null,null,null,null,null,null,null,null,null,null,null,null,null,null,null,null,null,null,null,null,null,null,null,null,null,null,null,null,null,null,{"$error":"#VALUE!"}]
[48,null,null,null,null,null,null,null,null,null,null,null,null,null,null,null,null,null,null,null,null,null,null,null,null,null,null,null,null,null,null,null,null,null,null,null,null,null,null,null,null,null,null,null,null,null,null,null,null,null,null,null,null,null,{"$error":"#VALUE!"}]
[49,null,null,null,null,null,null,null,null,null,null,null,null,null,null,null,null,null,null,null,null,null,null,null,null,null,null,null,null,null,null,null,null,null,null,null,null,null,null,null,null,null,null,null,null,null,null,null,null,null,null,null,null,null,{"$error":"#VALUE!"}]
[50,null,null,null,null,null,null,null,null,null,null,null,null,null,null,null,null,null,null,null,null,null,null,null,null,null,null,null,null,null,null,null,null,null,null,null,null,null,null,null,null,null,null,null,null,null,null,null,null,null,null,null,null,null,{"$error":"#VALUE!"}]
[51,null,null,null,null,null,null,null,null,null,null,null,null,null,null,null,null,null,null,null,null,null,null,null,null,null,null,null,null,null,null,null,null,null,null,null,null,null,null,null,null,null,null,null,null,null,null,null,null,null,null,null,null,null,{"$error":"#VALUE!"}]
[52,null,null,null,null,null,null,null,null,null,null,null,null,null,null,null,null,null,null,null,null,null,null,null,null,null,null,null,null,null,null,null,null,null,null,null,null,null,null,null,null,null,null,null,null,null,null,null,null,null,null,null,null,null,{"$error":"#VALUE!"}]
[53,null,null,null,null,null,null,null,null,null,null,null,null,null,null,null,null,null,null,null,null,null,null,null,null,null,null,null,null,null,null,null,null,null,null,null,null,null,null,null,null,null,null,null,null,null,null,null,null,null,null,null,null,null,{"$error":"#VALUE!"}]
[54,null,null,null,null,null,null,null,null,null,null,null,null,null,null,null,null,null,null,null,null,null,null,null,null,null,null,null,null,null,null,null,null,null,null,null,null,null,null,null,null,null,null,null,null,null,null,null,null,null,null,null,null,null,{"$error":"#VALUE!"}]
[55,null,null,null,null,null,null,null,null,null,null,null,null,null,null,null,null,null,null,null,null,null,null,null,null,null,null,null,null,null,null,null,null,null,null,null,null,null,null,null,null,null,null,null,null,null,null,null,null,null,null,null,null,null,{"$error":"#VALUE!"}]
[56,null,null,null,null,null,null,null,null,null,null,null,null,null,null,null,null,null,null,null,null,null,null,null,null,null,null,null,null,null,null,null,null,null,null,null,null,null,null,null,null,null,null,null,null,null,null,null,null,null,null,null,null,null,{"$error":"#VALUE!"}]
[57,null,null,null,null,null,null,null,null,null,null,null,null,null,null,null,null,null,null,null,null,null,null,null,null,null,null,null,null,null,null,null,null,null,null,null,null,null,null,null,null,null,null,null,null,null,null,null,null,null,null,null,null,null,{"$error":"#VALUE!"}]
[58,null,null,null,null,null,null,null,null,null,null,null,null,null,null,null,null,null,null,null,null,null,null,null,null,null,null,null,null,null,null,null,null,null,null,null,null,null,null,null,null,null,null,null,null,null,null,null,null,null,null,null,null,null,{"$error":"#VALUE!"}]
[59,null,null,null,null,null,null,null,null,null,null,null,null,null,null,null,null,null,null,null,null,null,null,null,null,null,null,null,null,null,null,null,null,null,null,null,null,null,null,null,null,null,null,null,null,null,null,null,null,null,null,null,null,null,{"$error":"#VALUE!"}]
[60,null,null,null,null,null,null,null,null,null,null,null,null,null,null,null,null,null,null,null,null,null,null,null,null,null,null,null,null,null,null,null,null,null,null,null,null,null,null,null,null,null,null,null,null,null,null,null,null,null,null,null,null,null,{"$error":"#VALUE!"}]
[61,null,null,null,null,null,null,null,null,null,null,null,null,null,null,null,null,null,null,null,null,null,null,null,null,null,null,null,null,null,null,null,null,null,null,null,null,null,null,null,null,null,null,null,null,null,null,null,null,null,null,null,null,null,{"$error":"#VALUE!"}]
[62,null,null,null,null,null,null,null,null,null,null,null,null,null,null,null,null,null,null,null,null,null,null,null,null,null,null,null,null,null,null,null,null,null,null,null,null,null,null,null,null,null,null,null,null,null,null,null,null,null,null,null,null,null,{"$error":"#VALUE!"}]
[63,null,null,null,null,null,null,null,null,null,null,null,null,null,null,null,null,null,null,null,null,null,null,null,null,null,null,null,null,null,null,null,null,null,null,null,null,null,null,null,null,null,null,null,null,null,null,null,null,null,null,null,null,null,{"$error":"#VALUE!"}]
[64,null,null,null,null,null,null,null,null,null,null,null,null,null,null,null,null,null,null,null,null,null,null,null,null,null,null,null,null,null,null,null,null,null,null,null,null,null,null,null,null,null,null,null,null,null,null,null,null,null,null,null,null,null,{"$error":"#VALUE!"}]
[65,null,null,null,null,null,null,null,null,null,null,null,null,null,null,null,null,null,null,null,null,null,null,null,null,null,null,null,null,null,null,null,null,null,null,null,null,null,null,null,null,null,null,null,null,null,null,null,null,null,null,null,null,null,{"$f":"IF(AND(LEN(S152)>0,LEN(S152)<>10),FALSE,IF(VALUE(MID(S152,10,1))=CEILING(MOD(((MID(S152,1,1)*6+MID(S152,2,1)*5+MID(S152,3,1)*7+MID(S152,4,1)*2+MID(S152,5,1)*3+MID(S152,6,1)*4+MID(S152,7,1)*5+MID(S152,8,1)*6+MID(S152,9,1)*7)/11),1)*10,1),TRUE,FALSE))","v":{"$error":"#VALUE!"}}]
[66,null,null,null,null,null,null,null,null,null,null,null,null,null,null,null,null,null,null,null,null,null,null,null,null,null,null,null,null,null,null,null,null,null,null,null,null,null,null,null,null,null,null,null,null,null,null,null,null,null,null,null,null,null,{"$error":"#VALUE!"}]
[67,null,null,null,null,null,null,null,null,null,null,null,null,null,null,null,null,null,null,null,null,null,null,null,null,null,null,null,null,null,null,null,null,null,null,null,null,null,null,null,null,null,null,null,null,null,null,null,null,null,null,null,null,null,{"$error":"#VALUE!"}]
[68,null,null,null,null,null,null,null,null,null,null,null,null,null,null,null,null,null,null,null,null,null,null,null,null,null,null,null,null,null,null,null,null,null,null,null,null,null,null,null,null,null,null,null,null,null,null,null,null,null,null,null,null,null,{"$error":"#VALUE!"}]
[69,null,null,null,null,null,null,null,null,null,null,null,null,null,null,null,null,null,null,null,null,null,null,null,null,null,null,null,null,null,null,null,null,null,null,null,null,null,null,null,null,null,null,null,null,null,null,null,null,null,null,null,null,null,{"$error":"#VALUE!"}]
[70,null,null,null,null,null,null,null,null,null,null,null,null,null,null,null,null,null,null,null,null,null,null,null,null,null,null,null,null,null,null,null,null,null,null,null,null,null,null,null,null,null,null,null,null,null,null,null,null,null,null,null,null,null,{"$error":"#VALUE!"}]
[71,null,null,null,null,null,null,null,null,null,null,null,null,null,null,null,null,null,null,null,null,null,null,null,null,null,null,null,null,null,null,null,null,null,null,null,null,null,null,null,null,null,null,null,null,null,null,null,null,null,null,null,null,null,{"$error":"#VALUE!"}]
[72,null,null,null,null,null,null,null,null,null,null,null,null,null,null,null,null,null,null,null,null,null,null,null,null,null,null,null,null,null,null,null,null,null,null,null,null,null,null,null,null,null,null,null,null,null,null,null,null,null,null,null,null,null,{"$error":"#VALUE!"}]
[73,null,null,null,null,null,null,null,null,null,null,null,null,null,null,null,null,null,null,null,null,null,null,null,null,null,null,null,null,null,null,null,null,null,null,null,null,null,null,null,null,null,null,null,null,null,null,null,null,null,null,null,null,null,{"$error":"#VALUE!"}]
[74,null,null,null,null,null,null,null,null,null,null,null,null,null,null,null,null,null,null,null,null,null,null,null,null,null,null,null,null,null,null,null,null,null,null,null,null,null,null,null,null,null,null,null,null,null,null,null,null,null,null,null,null,null,{"$error":"#VALUE!"}]
[75,null,null,null,null,null,null,null,null,null,null,null,null,null,null,null,null,null,null,null,null,null,null,null,null,null,null,null,null,null,null,null,null,null,null,null,null,null,null,null,null,null,null,null,null,null,null,null,null,null,null,null,null,null,{"$error":"#VALUE!"}]
[76,null,null,null,null,null,null,null,null,null,null,null,null,null,null,null,null,null,null,null,null,null,null,null,null,null,null,null,null,null,null,null,null,null,null,null,null,null,null,null,null,null,null,null,null,null,null,null,null,null,null,null,null,null,{"$error":"#VALUE!"}]
[77,null,null,null,null,null,null,null,null,null,null,null,null,null,null,null,null,null,null,null,null,null,null,null,null,null,null,null,null,null,null,null,null,null,null,null,null,null,null,null,null,null,null,null,null,null,null,null,null,null,null,null,null,null,{"$error":"#VALUE!"}]
[78,null,null,null,null,null,null,null,null,null,null,null,null,null,null,null,null,null,null,null,null,null,null,null,null,null,null,null,null,null,null,null,null,null,null,null,null,null,null,null,null,null,null,null,null,null,null,null,null,null,null,null,null,null,{"$error":"#VALUE!"}]
[79,null,null,null,null,null,null,null,null,null,null,null,null,null,null,null,null,null,null,null,null,null,null,null,null,null,null,null,null,null,null,null,null,null,null,null,null,null,null,null,null,null,null,null,null,null,null,null,null,null,null,null,null,null,{"$error":"#VALUE!"}]
[80,null,null,null,null,null,null,null,null,null,null,null,null,null,null,null,null,null,null,null,null,null,null,null,null,null,null,null,null,null,null,null,null,null,null,null,null,null,null,null,null,null,null,null,null,null,null,null,null,null,null,null,null,null,{"$error":"#VALUE!"}]
[81,null,null,null,null,null,null,null,null,null,null,null,null,null,null,null,null,null,null,null,null,null,null,null,null,null,null,null,null,null,null,null,null,null,null,null,null,null,null,null,null,null,null,null,null,null,null,null,null,null,null,null,null,null,{"$error":"#VALUE!"}]
[82,null,null,null,null,null,null,null,null,null,null,null,null,null,null,null,null,null,null,null,null,null,null,null,null,null,null,null,null,null,null,null,null,null,null,null,null,null,null,null,null,null,null,null,null,null,null,null,null,null,null,null,null,null,{"$error":"#VALUE!"}]
[83,null,null,null,null,null,null,null,null,null,null,null,null,null,null,null,null,null,null,null,null,null,null,null,null,null,null,null,null,null,null,null,null,null,null,null,null,null,null,null,null,null,null,null,null,null,null,null,null,null,null,null,null,null,{"$error":"#VALUE!"}]
[84,null,null,null,null,null,null,null,null,null,null,null,null,null,null,null,null,null,null,null,null,null,null,null,null,null,null,null,null,null,null,null,null,null,null,null,null,null,null,null,null,null,null,null,null,null,null,null,null,null,null,null,null,null,{"$error":"#VALUE!"}]
[85,null,null,null,null,null,null,null,null,null,null,null,null,null,null,null,null,null,null,null,null,null,null,null,null,null,null,null,null,null,null,null,null,null,null,null,null,null,null,null,null,null,null,null,null,null,null,null,null,null,null,null,null,null,{"$error":"#VALUE!"}]
[86,null,null,null,null,null,null,null,null,null,null,null,null,null,null,null,null,null,null,null,null,null,null,null,null,null,null,null,null,null,null,null,null,null,null,null,null,null,null,null,null,null,null,null,null,null,null,null,null,null,null,null,null,null,{"$error":"#VALUE!"}]
[87,null,null,null,null,null,null,null,null,null,null,null,null,null,null,null,null,null,null,null,null,null,null,null,null,null,null,null,null,null,null,null,null,null,null,null,null,null,null,null,null,null,null,null,null,null,null,null,null,null,null,null,null,null,{"$error":"#VALUE!"}]
[88,null,null,null,null,null,null,null,null,null,null,null,null,null,null,null,null,null,null,null,null,null,null,null,null,null,null,null,null,null,null,null,null,null,null,null,null,null,null,null,null,null,null,null,null,null,null,null,null,null,null,null,null,null,{"$error":"#VALUE!"}]
[89,null,null,null,null,null,null,null,null,null,null,null,null,null,null,null,null,null,null,null,null,null,null,null,null,null,null,null,null,null,null,null,null,null,null,null,null,null,null,null,null,null,null,null,null,null,null,null,null,null,null,null,null,null,{"$error":"#VALUE!"}]
[90,null,null,null,null,null,null,null,null,null,null,null,null,null,null,null,null,null,null,null,null,null,null,null,null,null,null,null,null,null,null,null,null,null,null,null,null,null,null,null,null,null,null,null,null,null,null,null,null,null,null,null,null,null,{"$error":"#VALUE!"}]
[91,null,null,null,null,null,null,null,null,null,null,null,null,null,null,null,null,null,null,null,null,null,null,null,null,null,null,null,null,null,null,null,null,null,null,null,null,null,null,null,null,null,null,null,null,null,null,null,null,null,null,null,null,null,{"$error":"#VALUE!"}]
[92,null,null,null,null,null,null,null,null,null,null,null,null,null,null,null,null,null,null,null,null,null,null,null,null,null,null,null,null,null,null,null,null,null,null,null,null,null,null,null,null,null,null,null,null,null,null,null,null,null,null,null,null,null,{"$error":"#VALUE!"}]
[93,null,null,null,null,null,null,null,null,null,null,null,null,null,null,null,null,null,null,null,null,null,null,null,null,null,null,null,null,null,null,null,null,null,null,null,null,null,null,null,null,null,null,null,null,null,null,null,null,null,null,null,null,null,{"$error":"#VALUE!"}]
[94,null,null,null,null,null,null,null,null,null,null,null,null,null,null,null,null,null,null,null,null,null,null,null,null,null,null,null,null,null,null,null,null,null,null,null,null,null,null,null,null,null,null,null,null,null,null,null,null,null,null,null,null,null,{"$error":"#VALUE!"}]
[95,null,null,null,null,null,null,null,null,null,null,null,null,null,null,null,null,null,null,null,null,null,null,null,null,null,null,null,null,null,null,null,null,null,null,null,null,null,null,null,null,null,null,null,null,null,null,null,null,null,null,null,null,null,{"$error":"#VALUE!"}]
[96,null,null,null,null,null,null,null,null,null,null,null,null,null,null,null,null,null,null,null,null,null,null,null,null,null,null,null,null,null,null,null,null,null,null,null,null,null,null,null,null,null,null,null,null,null,null,null,null,null,null,null,null,null,{"$error":"#VALUE!"}]
[97,null,null,null,null,null,null,null,null,null,null,null,null,null,null,null,null,null,null,null,null,null,null,null,null,null,null,null,null,null,null,null,null,null,null,null,null,null,null,null,null,null,null,null,null,null,null,null,null,null,null,null,null,null,{"$error":"#VALUE!"}]
[98,null,null,null,null,null,null,null,null,null,null,null,null,null,null,null,null,null,null,null,null,null,null,null,null,null,null,null,null,null,null,null,null,null,null,null,null,null,null,null,null,null,null,null,null,null,null,null,null,null,null,null,null,null,{"$error":"#VALUE!"}]
[99,null,null,null,null,null,null,null,null,null,null,null,null,null,null,null,null,null,null,null,null,null,null,null,null,null,null,null,null,null,null,null,null,null,null,null,null,null,null,null,null,null,null,null,null,null,null,null,null,null,null,null,null,null,{"$error":"#VALUE!"}]
[100,null,null,null,null,null,null,null,null,null,null,null,null,null,null,null,null,null,null,null,null,null,null,null,null,null,null,null,null,null,null,null,null,null,null,null,null,null,null,null,null,null,null,null,null,null,null,null,null,null,null,null,null,null,{"$error":"#VALUE!"}]
[null,null,null,null,null,null,null,null,null,null,null,null,null,null,null,null,null,null,null,null,null,null,null,null,null,null,null,null,null,null,null,null,null,null,null,null,null,null,null,null,null,null,"Suma",null,null,null,null,null,{"$f":"SUM(AW88:AX187)","v":0},null,{"$f":"SUM(AY88:AZ187)","v":0}]
[]
[]
[]
[]
[]
[]
[]
[]
[]
[]
[]
[]
[]
[]
[]
[]
[]
[]
[]
[]
[]
[]
[]
[]
[]
[]
[]
[]
[]
[]
[]
[]
[]
[]
[]
[]
[]
[]
[]
[]
[]
[]
[]
[]
[]
[]
[]
[]
[]
[]
[]
[]
[]
[]
[]
[]
[]
[]
[]
[]
[]
[]
[]
[]
[]
[]
[]
[]
[]
[]
[]
[]
[]
[]
[]
[]
[]
[]
[]
[]
[]
[]
[]
[]
[]
[]
[]
[]
[]
[]
[null,null,"POLA JASNE WYPEŁNIA PODATNIK (WIERZYCIEL), POLA CIEMNE WYPEŁNIA URZĄD SKARBOWY. WYPEŁNIAĆ NA MASZYNIE, KOMPUTEROWO LUB RĘCZNIE, DUŻYMI, DRUKOWANYMI LITERAMI, CZARNYM LUB NIEBIESKIM","KOLOREM. PRZED WYPEŁNIENIEM ZAPOZNAĆ SIĘ Z OBJAŚNIENIAMI.",null,null," B. DANE IDENTYFIKACYJNE DŁUŻNIKA ORAZ INFORMACJE DOTYCZĄCE KWOT KOREKT PODSTAWY  OPODATKOWANIA ORAZ PODATKU NALEŻNEGO",null,null,"Kwota korekty podatku","należnego","g",null,{"$f":"AY60","v":0},null,null,{"$f":"AY62","v":0},null,{"$f":"AY64","v":0},null,null,null,{"$f":"AY66","v":0},null,null,null,{"$f":"AY68","v":0},null,null,null,{"$f":"AY70","v":0},null,{"$f":"AY72","v":0},null,null,null,null,{"$f":"AY74","v":0},null," 11.",{"$f":"AY77","v":0},null," 3) Kwoty należy zaokrąglić do pełnych złotych w ten sposób, że końcówki kwot wynoszące mniej niż 50 groszy pomija się,  a końcówki kwot  wynoszące 50 i więcej groszy podwyższa się do pełnych złotych.",null,null,"2/2"]
[null,null,null,null,null,null,null,null,null,null,null,null,null,null,null,null,null,null,null,null,null,null,null,null,null,null,null,null,null,null,null,null,null,null,null,null,null,null,null,null,null,null,null,null,null,"VAT-ZD(1)"]
[null,null,null,null,null,null,null,null,null,"Kwota korekty podstawy","opodatkowania","f",null,{"$f":"AW60","v":0},null,null,{"$f":"AW62","v":0},null,{"$f":"AW64","v":0},null,null,null,{"$f":"AW66","v":0},null,null,null,{"$f":"AW68","v":0},null,null,null,{"$f":"AW70","v":0},null,{"$f":"AW72","v":0},null,null,null,null,{"$f":"AW74","v":0},null," 10.",{"$f":"AW77","v":0}]
[]
[null,null,null,null,null,null,null,null,null,"Data upływu terminu\npłatności 2)\n(dzień - miesiąc - rok)",null,"e",null,{"$f":"AN60","v":0},null,null,{"$f":"AN62","v":0},null,{"$f":"AN64","v":0},null,null,null,{"$f":"AN66","v":0},null,null,null,{"$f":"AN68","v":0},null,null,null,{"$f":"AN70","v":0},null,{"$f":"AN72","v":0},null,null,null,null,{"$f":"AN74","v":0},null,null,"  Suma kwot z kolumny f i g. 3) 4)"," 2) Należy podać datę (dzień - miesiąc - rok) upływu terminu płatności określonego w fakturze lub umowie.",null," 4) Jeżeli podatnik składa więcej niż jeden załącznik VAT-ZD, poz. 10 i 11 należy wypełnić na ostatnim składanym załączniku."]
[null,null,null,null,null,null,null,null,null,"Nr faktury","Data wystawienia faktury\n(dzień - miesiąc - rok)","d",{"$f":"AD60","v":0},{"$f":"AD61","v":0},{"$f":"AD62","v":0},null,{"$f":"AD63","v":0},{"$f":"AD64","v":0},{"$f":"AD65","v":0},{"$f":"AD66","v":0},null,null,{"$f":"AD67","v":0},null,{"$f":"AD68","v":0},null,{"$f":"AD69","v":0},null,{"$f":"AD70","v":0},null,{"$f":"AD71","v":0},{"$f":"AD72","v":0},{"$f":"AD73","v":0},null,{"$f":"AD74","v":0},null,null,{"$f":"AD75","v":0}]
[null,null,null,null,null,null,null,null,null,"Identyfikator","podatkowy NIP\npodatnika (dłużnika)","c",{"$f":"V60","v":0},null,{"$f":"V62","v":0},null,null,{"$f":"V64","v":0},null,{"$f":"V66","v":0},null,null,null,null,{"$f":"V68","v":0},null,null,null,{"$f":"V70","v":0},null,null,{"$f":"V72","v":0},null,null,{"$f":"V74","v":0}]
[null,null,null,null,null,null,null,null,null,"Nazwa podatnika (dłużnika)",null,"b",{"$f":"I60","v":0},null,{"$f":"I62","v":0},null,null,{"$f":"I64","v":0},null,{"$f":"I66","v":0},null,null,null,null,{"$f":"I68","v":0},null,null,null,{"$f":"I70","v":0},null,null,{"$f":"I72","v":0},null,null,{"$f":"I74","v":0}]
[null,null,"   POLTAX",null,null,null,null,null,null,null,null,null,null,null,null,null,null,null,null,null,null,null,null,null,null,null,null,null,null,null,null,null,null,null,null,null,null,null,null,"  Ogółem kwoty"]
[null,null,null,null,null,null,null,null,null,"Lp.",null,"a",1,null,2,null,null,3,null,4,null,null,null,null,5,null,null,null,6,null,null,7,null,null,8]

{"sheet":"UPO","index":5,"n_rows":28,"n_cols":13,"rows_kept":28,"cut":false,"hidden":true,"merged":[[27,2,27,7],[26,2,26,9],[20,3,20,9],[21,3,21,9],[22,3,22,9],[23,3,23,9],[24,3,24,9],[25,3,25,4],[25,5,25,9],[19,4,19,5],[17,6,17,9],[18,6,18,9],[19,7,19,9],[17,3,17,5],[14,3,14,9],[15,3,15,9],[16,3,16,9],[18,3,18,5],[13,3,13,9],[12,3,12,9],[10,3,10,5],[2,3,2,9],[3,3,3,9],[5,3,5,9],[9,3,9,5],[4,2,4,9],[7,2,7,9],[8,3,8,9],[6,2,6,9],[9,6,9,9],[10,6,10,9],[11,3,11,9]]}
[null,null,null,null,null,null,null,null,null,null,null,null,"UPO-2015_Pod Jan"]
[]
[null,null,null,"    URZĘDOWE POŚWIADCZENIE ODBIORU"]
[null,null,null,"        DOKUMENTU ELEKTRONICZNEGO"]
[null,null,"   A. NAZWA PEŁNA PODMIOTU, KTÓREMU DORĘCZONO DOKUMENT ELEKTRONICZNY"]
[]
[]
[null,null,"   B. INFORMACJA O DOKUMENCIE"]
[null,null,null," Dokument został zarejestrowany w systemie teleinformatycznym Ministerstwa Finansów"]
[null,null,null," Identyfikator dokumentu:",null,null,"   Dnia (data, czas):"]
[]
[null,null,null," Skrót złożonego dokumentu - identyczny z wartością użytą do podpisu dokumentu:"]
[]
[null,null,null," Skrót dokumentu w postaci otrzymanej przez system (łącznie z podpisem elektronicznym):"]
[]
[null,null,null," Dokument zweryfikowano pod względem zgodności ze strukturą logiczną:"]
[]
[null,null,null," Identyfikator podatkowy podmiotu występującego jako",null,null," Identyfikator podatkowy podmiotu występującego jako"]
[null,null,null," pierwszy na dokumencie:",null,null," drugi na dokumencie:"]
[null,null,null," NIP",null,null,null,""]
[null,null,null," Urząd skarbowy, do którego został złożony dokument:"]
[]
[null,null,null," Stempel czasu:"]
[]
[null,null,null," Dokument wystawiony automatycznie przez system teleinformatyczny Ministerstwa Finansów"]
[null,null,null," Data i czas wystawienia dokumentu:"]
[]
[null,null,null,null,null,null,null,null,"UPO(6)","1/1"]

{"sheet":"A","index":6,"n_rows":2,"n_cols":1,"rows_kept":2,"cut":false,"hidden":true,"merged":[]}
["2029-10-20"]
["Licencja dla tego programu wygasła.\n\nPobierz nowy plik z serwisu formularzy."]